{"text_format":"1","workbook":"xlsx","n_sheets":2,"sheets":["TAB. TAXAS","TMI C1_C2"],"not_rendered":{"charts":0,"images":45,"macros":1,"external_links":2,"defined_names":15,"comments":1,"pivot_tables":0},"unopened":[],"bounds":{"document_bytes":16777216,"sheet_cells":100000,"rows_first":2000,"rows_last":500,"rows_between":2000,"halvings":0,"cell_chars":16384,"cell_head_chars":4096},"cells_cut":0,"cells_raw":0,"read":"whole","date_system":"1900"}

{"sheet":"TAB. TAXAS","index":0,"n_rows":1097,"n_cols":27,"rows_kept":1097,"cut":false,"hidden":true,"merged":[[1087,0,1087,6]]}
["Processo n.º:"]
["Requerente:"]
["Local:"]
["Tipo de Obra:"]
["Aprovação projecto:"]
[]
[]
[]
[]
[]
[]
[]
[]
[]
[]
[]
[]
[]
[]
[]
[]
[]
[]
[]
[]
[]
[]
[]
[]
[]
[]
[]
[]
[]
[]
[]
[]
[]
[]
[]
[]
[]
[]
[]
[]
[]
[]
[]
[]
[]
[]
[]
[null,null,null,null,"TAXA","QUANTIDADE","VALOR"]
["CAPÍTULO I",null,null,null,null,null,null,null,null,null,null,null,null,null,null,null,null,null,null,null,null,null,"BASE",2020,2021,2022,2022]
["SECRETARIA",null,null,null,null,null,null,null,null,null,null,null,null,null,null,null,null,null,null,null,null,null,null,0,1E-3,1.7999999999999999E-2,6.7000000000000004E-2]
[]
["1 - Afixações de editais relativos a pretensões que não sejam de interesse público - cada edital",null,null,null,{"$f":"AA57","v":7.08},null,{"$f":"IF(F57=\"\",\" \",ROUND(E57*F57,2))","v":" "},null,null,null,null,null,null,null,null,null,null,null,null,null,null,null,6.51,{"$f":"IF(W57=0,\" \",IFERROR(IF(W57>0,ROUND(W57+W57*X$55,2),\" \"),\"\"))","v":6.51},6.52,6.64,{"$f":"IF(Z57=0,\" \",IFERROR(IF(Z57>0,ROUND(Z57+Z57*AA$55,2),\" \"),\"\"))","v":7.08}]
["2 - Autos ou termos de qualquer espécie, não especialmente previstos na presente Tabela",null,null,null,7.65,null,{"$f":"IF(F58=\"\",\" \",ROUND(E58*F58,2))","v":" "},null,null,null,null,null,null,null,null,null,null,null,null,null,null,null,7.03,7.03,7.04,7.17,7.65]
["3 – Certidões de teor:",null,null,null,"",null," ",null,null,null,null,null,null,null,null,null,null,null,null,null,null,null,null," ","","",""]
["3.1 - Não excedendo uma lauda – cada",null,null,null,5.79,null," ",null,null,null,null,null,null,null,null,null,null,null,null,null,null,null,5.32,5.32,5.33,5.43,5.79]
["3.2 - Por cada lauda além da primeira",null,null,null,3.21,null," ",null,null,null,null,null,null,null,null,null,null,null,null,null,null,null,2.96,2.96,2.96,3.01,3.21]
["4 - Certidões narrativa, cada",null,null,null,18.63,null," ",null,null,null,null,null,null,null,null,null,null,null,null,null,null,null,17.13,17.13,17.149999999999999,17.46,18.63]
["4.1 - Por cada folha a mais ",null,null,null,10.93,null," ",null,null,null,null,null,null,null,null,null,null,null,null,null,null,null,10.050000000000001,10.050000000000001,10.06,10.24,10.93]
["5 - Conferência e autenticação de documentos - por cada página",null,null,null,4.49,null," ",null,null,null,null,null,null,null,null,null,null,null,null,null,null,null,4.1399999999999997,4.1399999999999997,4.1399999999999997,4.21,4.49]
["6- Buscas, por processo arquivado/ano",null,null,null,3.25,null," ",null,null,null,null,null,null,null,null,null,null,null,null,null,null,null,3,3,3,3.05,3.25]
["7 - Termos de autenticação e Fotocópias autenticadas de documentos ou processos ",null,null,null,"",null," ",null,null,null,null,null,null,null,null,null,null,null,null,null,null,null,null," ","","",""]
["a) Termo de autenticação ",null,null,null,18.43,null," ",null,null,null,null,null,null,null,null,null,null,null,null,null,null,null,16.940000000000001,16.940000000000001,16.96,17.27,18.43]
["a) Formato A4 - por cada página",null,null,null,1.93,null," ",null,null,null,null,null,null,null,null,null,null,null,null,null,null,null,1.78,1.78,1.78,1.81,1.93]
["b) Formato A3 - por cada página",null,null,null,2.0099999999999998,null," ",null,null,null,null,null,null,null,null,null,null,null,null,null,null,null,1.85,1.85,1.85,1.88,2.0099999999999998]
["c) Formato A2 - por cada página",null,null,null,3.8,null," ",null,null,null,null,null,null,null,null,null,null,null,null,null,null,null,3.5,3.5,3.5,3.56,3.8]
["c) Em formato superior a A2",null,null,null,7.62,null," ",null,null,null,null,null,null,null,null,null,null,null,null,null,null,null,7,7,7.01,7.14,7.62]
["8 - Fotocópias simples de documentos ou processos em arquivo",null,null,null,"",null," ",null,null,null,null,null,null,null,null,null,null,null,null,null,null,null,null," ","","",""]
["8.1 Preto e Branco",null,null,null,"",null," ",null,null,null,null,null,null,null,null,null,null,null,null,null,null,null,null," ","","",""]
["a) Formato A4 - por cada página",null,null,null,0.33,null," ",null,null,null,null,null,null,null,null,null,null,null,null,null,null,null,0.3,0.3,0.3,0.31,0.33]
["b) Formato A3 - por cada página",null,null,null,0.39,null," ",null,null,null,null,null,null,null,null,null,null,null,null,null,null,null,0.36,0.36,0.36,0.37,0.39]
["c) Formato A2 - por cada página",null,null,null,0.76,null," ",null,null,null,null,null,null,null,null,null,null,null,null,null,null,null,0.7,0.7,0.7,0.71,0.76]
["c) Em formato superior a A2",null,null,null,3.25,null," ",null,null,null,null,null,null,null,null,null,null,null,null,null,null,null,3,{"$f":"IF(W77=0,\" \",IFERROR(IF(W77>0,ROUND(W77+W77*X$55,2),\" \"),\"\"))","v":3},3,3.05,3.25]
["8.2 Cores",null,null,null,"",null," ",null,null,null,null,null,null,null,null,null,null,null,null,null,null,null,null," ","","",""]
["a) Formato A4 - por cada página",null,null,null,0.63,null," ",null,null,null,null,null,null,null,null,null,null,null,null,null,null,null,0.57999999999999996,0.57999999999999996,0.57999999999999996,0.59,0.63]
["b) Formato A3 - por cada página",null,null,null,0.76,null," ",null,null,null,null,null,null,null,null,null,null,null,null,null,null,null,0.7,0.7,0.7,0.71,0.76]
["c) Formato A2 - por cada página",null,null,null,1.53,null," ",null,null,null,null,null,null,null,null,null,null,null,null,null,null,null,1.4,1.4,1.4,1.43,1.53]
["c) Em formato superior a A2",null,null,null,6.53,null," ",null,null,null,null,null,null,null,null,null,null,null,null,null,null,null,6,6,6.01,6.12,6.53]
["9 - Rubricas, em livros, processos e documentos, quando legalmente exigidos - cada rubrica",null,null,null,0.38,null," ",null,null,null,null,null,null,null,null,null,null,null,null,null,null,null,0.35,0.35,0.35,0.36,0.38]
["10 - Termos de abertura e encerramento em livros sujeitos a esta formalidade - cada livro",null,null,null,3.95,null," ",null,null,null,null,null,null,null,null,null,null,null,null,null,null,null,3.63,3.63,3.63,3.7,3.95]
["11 - Termos de entrega de documentos juntos a processos, cuja restituição haja sido autorizada – cada",null,null,null,3.95,null," ",null,null,null,null,null,null,null,null,null,null,null,null,null,null,null,3.63,3.63,3.63,3.7,3.95]
["12 - Reapreciação do pedido para emissão de segunda guia de recebimento, por falta de pagamento da guia originária no dia da sua emissão",null,null,null,19.2,null,{"$f":"IF(F86=\"\",\" \",ROUND(E86*F86,2))","v":" "},null,null,null,null,null,null,null,null,null,null,null,null,null,null,null,17.649999999999999,17.649999999999999,17.670000000000002,17.989999999999998,19.2]
["13 - Fornecimento a pedido dos interessados de documentos necessários à substituição dos que tenham sido extraviados ou em mau estado",null,null,null,9.5399999999999991,null," ",null,null,null,null,null,null,null,null,null,null,null,null,null,null,null,8.77,8.77,8.7799999999999994,8.94,9.5399999999999991]
["14 - Outros registos.",null,null,null,3.79,null," ",null,null,null,null,null,null,null,null,null,null,null,null,null,null,null,3.49,3.49,3.49,3.55,3.79]
["15 – Averbamentos não especialmente previstos no código regulamentar",null,null,null,6.37,null," ",null,null,null,null,null,null,null,null,null,null,null,null,null,null,null,5.85,5.85,5.86,5.97,6.37]
["16 - Alvarás não especialmente previstos no código regulamentar",null,null,null,8.93,null," ",null,null,null,null,null,null,null,null,null,null,null,null,null,null,null,8.2100000000000009,8.2100000000000009,8.2200000000000006,8.3699999999999992,8.93]
["17 - Atestados ou documentos análogos e suas confirmações",null,null,null,7.65,null," ",null,null,null,null,null,null,null,null,null,null,null,null,null,null,null,7.03,7.03,7.04,7.17,7.65]
["18 - Requisição para emprego de substâncias explosivas",null,null,null,26.78,null," ",null,null,null,null,null,null,null,null,null,null,null,null,null,null,null,24.64,24.64,24.66,25.1,26.78]
["19 - Outros serviços ou actos não especialmente previstos nesta tabela ou em legislação especial.",null,null,null,24.09,null," ",null,null,null,null,null,null,null,null,null,null,null,null,null,null,null,22.16,22.16,22.18,22.58,24.09]
["20 - Certidões de dispensa de autorização de utilização e outras relacionadas com operações urbanísticas",null,null,null,57.6,null," ",null,null,null,null,null,null,null,null,null,null,null,null,null,null,null,52.98,52.98,53.03,53.98,57.6]
["21- Pedido de desistência da pretensão",null,null,null,6.53,null," ",null,null,null,null,null,null,null,null,null,null,null,null,null,null,null,6,6,6.01,6.12,6.53]
["22- Pedido de urgência - acresce ao valor previsto 50%",null,null,null,"",null," ",null,null,null,null,null,null,null,null,null,null,null,null,null,null,null,null," ","","",""]
["23- Fornecimento de cópias ou outras reproduções em suporte digital de armazenamento:",null,null,null,"",null," ",null,null,null,null,null,null,null,null,null,null,null,null,null,null,null,null,{"$f":"IF(W97=0,\" \",IFERROR(IF(W97>0,ROUND(W97+W97*X$55,2),\" \"),\"\"))","v":" "},"","",""]
["23.1 CD, custo por unidade",null,null,null,9.41,null," ",null,null,null,null,null,null,null,null,null,null,null,null,null,null,null,8.65,8.65,8.66,8.82,9.41]
["23.2 DVD, custo por unidade",null,null,null,8.8699999999999992,null," ",null,null,null,null,null,null,null,null,null,null,null,null,null,null,null,8.15,8.15,8.16,8.31,8.8699999999999992]
["23.3 Outros serviços",null,null,null,8.5500000000000007,null," ",null,null,null,null,null,null,null,null,null,null,null,null,null,null,null,7.86,7.86,7.87,8.01,8.5500000000000007]
[null,null,null,null,"",null,{"$f":"IF(F101=\"\",\" \",ROUND(E101*F101,2))","v":" "},null,null,null,null,null,null,null,null,null,null,null,null,null,null,null,null," ","","",""]
[null,null,null,null,"",null," ",null,null,null,null,null,null,null,null,null,null,null,null,null,null,null,null," ","","",""]
["CAPÍTULO II",null,null,null,"",null," ",null,null,null,null,null,null,null,null,null,null,null,null,null,null,null,null," ","","",""]
["INSPECÇÕES E VISTORIAS",null,null,null,"",null," ",null,null,null,null,null,null,null,null,null,null,null,null,null,null,null,null," ","","",""]
[null,null,null,null,"",null," ",null,null,null,null,null,null,null,null,null,null,null,null,null,null,null,null," ","","",""]
["Seccção I",null,null,null,"",null," ",null,null,null,null,null,null,null,null,null,null,null,null,null,null,null,null," ","","",""]
["Inspecção higio-sanitária",null,null,null,"",null," ",null,null,null,null,null,null,null,null,null,null,null,null,null,null,null,null," ","","",""]
[null,null,null,null,"",null," ",null,null,null,null,null,null,null,null,null,null,null,null,null,null,null,null," ","","",""]
[null,null,null,null,25.63,null," ",null,null,null,null,null,null,null,null,null,null,null,null,null,null,null,23.58,23.58,23.6,24.02,25.63]
["1 - Inspecção sanitária a produtos e/ou instalações, por inspecção",null,null,null,48.73,null," ",null,null,null,null,null,null,null,null,null,null,null,null,null,null,null,44.82,44.82,44.86,45.67,48.73]
["2 - Inspecção para identificação de animais",null,null,null,"",null," ",null,null,null,null,null,null,null,null,null,null,null,null,null,null,null,null," ","","",""]
[null,null,null,null,"",null," ",null,null,null,null,null,null,null,null,null,null,null,null,null,null,null,null," ","","",""]
["Secção II",null,null,null,"",null," ",null,null,null,null,null,null,null,null,null,null,null,null,null,null,null,null," ","","",""]
["Inspecções e Vistorias",null,null,null,"",null," ",null,null,null,null,null,null,null,null,null,null,null,null,null,null,null,null," ","","",""]
[null,null,null,null,"",null," ",null,null,null,null,null,null,null,null,null,null,null,null,null,null,null,null," ","","",""]
["1 - Inspecção de ascensores, monta-cargas, escadas mecânicas e tapetes rolantes:",null,null,null,"",null," ",null,null,null,null,null,null,null,null,null,null,null,null,null,null,null,null," ","","",""]
["1.1 - Inspecção periódica",null,null,null,89.81,null," ",null,null,null,null,null,null,null,null,null,null,null,null,null,null,null,82.6,{"$f":"IF(W117=0,\" \",IFERROR(IF(W117>0,ROUND(W117+W117*X$55,2),\" \"),\"\"))","v":82.6},82.68,84.17,89.81]
["1.2 - Reinspecção periódica",null,null,null,51.32,null," ",null,null,null,null,null,null,null,null,null,null,null,null,null,null,null,47.2,47.2,47.25,48.1,51.32]
["1.3 - Inspecção extraordinária",null,null,null,89.81,null," ",null,null,null,null,null,null,null,null,null,null,null,null,null,null,null,82.6,82.6,82.68,84.17,89.81]
["2 -Vistoria para redução de caução",null,null,null,67.959999999999994,null," ",null,null,null,null,null,null,null,null,null,null,null,null,null,null,null,62.5,62.5,62.56,63.69,67.959999999999994]
["3 - Vistoria para efeitos de recepção provisória ou definitiva de obras de urbanização",null,null,null,{"$f":"AA121","v":34.590000000000003},null," ",null,null,null,null,null,null,null,null,null,null,null,null,null,null,null,31.82,31.82,31.85,32.42,34.590000000000003]
["3.1 - ao montante definido no número anterior acresce 0,5% do valor das obras de urbanização a vistoriar",null,null,null,"",null,{"$f":"IF(F122=\"\",\" \",ROUND(E122*F122,2))","v":" "},null,null,null,null,null,null,null,null,null,null,null,null,null,null,null,null," ","","",""]
["4 - Vistoria para efeitos de arrendamento e de emissão de licença ou autorização de utilização para habitação e turismo rural, incluindo as de conservação",null,null,null,65.39,null," ",null,null,null,null,null,null,null,null,null,null,null,null,null,null,null,60.14,60.14,60.2,61.28,65.39]
["4.1 - ao montante definido no número anterior acresce por metro quadrado de area de construção, acima dos 200 m2 ",null,null,null,0.38,null," ",null,null,null,null,null,null,null,null,null,null,null,null,null,null,null,0.35,0.35,0.35,0.36,0.38]
["5 - Vistorias a estabelecimentos comerciais, serviços, empreendimentos turísticos e estabelecimentos de alojamento local",null,null,null,"",null," ",null,null,null,null,null,null,null,null,null,null,null,null,null,null,null,null," ","","",""]
["5.1 - Pela realização de vistoria inicial ou complementar destinada à concessão de licenças ou autorizações de utilização, ou outras, acrescida do custo de peritos exteriores ao município",null,null,null,"",null," ",null,null,null,null,null,null,null,null,null,null,null,null,null,null,null,null," ","","",""]
["a) Para estabelecimento com area de construção até 300 m2",null,null,null,80.790000000000006,null," ",null,null,null,null,null,null,null,null,null,null,null,null,null,null,null,74.31,74.31,74.38,75.72,80.790000000000006]
["b) Para estabelecimento com area de construção superior a 300 m2 e até 1000 m2",null,null,null,106.45,null," ",null,null,null,null,null,null,null,null,null,null,null,null,null,null,null,97.91,97.91,98.01,99.77,106.45]
["c) Para estabelecimento com area de construção superior a 1000m2",null,null,null,157.79,null," ",null,null,null,null,null,null,null,null,null,null,null,null,null,null,null,145.12,145.12,145.27000000000001,147.88,157.79]
["6 - Vistorias a estabelecimentos industriais, oficinas e armazens, acrescida do custo de peritos exteriores ao município",null,null,null,"",null,{"$f":"IF(F130=\"\",\" \",ROUND(E130*F130,2))","v":" "},null,null,null,null,null,null,null,null,null,null,null,null,null,null,null,null," ","","",""]
["6.1 - Pela realização de vistoria inicial ou complementar destinada à concessão de licenças ou autorizações de utilização, ou outras que não de exploração, acrescida do custo de peritos exteriores ao município",null,null,null,"",null," ",null,null,null,null,null,null,null,null,null,null,null,null,null,null,null,null," ","","",""]
["a) Para estabelecimento com area de construção até 500 m2",null,null,null,55.12,null," ",null,null,null,null,null,null,null,null,null,null,null,null,null,null,null,50.7,50.7,50.75,51.66,55.12]
["b) Para estabelecimento com area de construção superior a 500 m2 e até 1000m2",null,null,null,80.790000000000006,null," ",null,null,null,null,null,null,null,null,null,null,null,null,null,null,null,74.31,74.31,74.38,75.72,80.790000000000006]
["c) Para estabelecimento com area de construção superior a 1000m2",null,null,null,132.13,null," ",null,null,null,null,null,null,null,null,null,null,null,null,null,null,null,121.52,121.52,121.64,123.83,132.13]
["7 - Pela realização de vistoria inicial ou complementar destinada à emissão de licença ou autorização de utilização de estabelecimentos de restauração e/ou bebidas, acrescida do custo de peritos exteriores ao município",null,null,null,"",null,{"$f":"IF(F135=\"\",\" \",ROUND(E135*F135,2))","v":" "},null,null,null,null,null,null,null,null,null,null,null,null,null,null,null,null," ","","",""]
["a) Para estabelecimento com area de construção até 300 m2",null,null,null,80.790000000000006,null,{"$f":"IF(F136=\"\",\" \",ROUND(E136*F136,2))","v":" "},null,null,null,null,null,null,null,null,null,null,null,null,null,null,null,74.31,74.31,74.38,75.72,80.790000000000006]
["b) Para estabelecimento com area de construção superior a 300 m2 e até 1000 m2",null,null,null,106.45,null," ",null,null,null,null,null,null,null,null,null,null,null,null,null,null,null,97.91,{"$f":"IF(W137=0,\" \",IFERROR(IF(W137>0,ROUND(W137+W137*X$55,2),\" \"),\"\"))","v":97.91},98.01,99.77,106.45]
["c) Para estabelecimento com area de construção superior a 1000m2",null,null,null,157.79,null," ",null,null,null,null,null,null,null,null,null,null,null,null,null,null,null,145.12,145.12,145.27000000000001,147.88,157.79]
["8 - Pela realização de vistoria para efeitos de emissão de licença ou autorização de utilização para restauração e/ou bebidas que disponham ainda de sala ou de espaços destinados a dança, às taxas previstas no número anterior, acrescerá ainda a taxa correspondente à da vistoria para funcionamento dos recintos fixos de diversão, prevista no ponto 20 desta secção",null,null,null,"",null," ",null,null,null,null,null,null,null,null,null,null,null,null,null,null,null,null," ","","",""]
["9 - Autorização extraordinária de prestação de serviços de restauração ou de bebidas com carácter esporádico e/ou ocasional, devidamente remunerada e anunciada junto ao público, em instalações amovíveis ou pré-fabricadas.",null,null,null,80.790000000000006,null," ",null,null,null,null,null,null,null,null,null,null,null,null,null,null,null,74.31,74.31,74.38,75.72,80.790000000000006]
["10 - Vistoria aos estabelecimentos previstos no regime jurídico sobre a instalação de estabelecimentos de comércio alimentar e certos estabelecimentos de comércio não alimentar e prestação de serviços, actualmente previstos no DL 259/2007, de 17 de Julho",null,null,null,"",null," ",null,null,null,null,null,null,null,null,null,null,null,null,null,null,null,null," ","","",""]
["11 - Vistoria a ginásios (health clubs)",null,null,null,130.58000000000001,null," ",null,null,null,null,null,null,null,null,null,null,null,null,null,null,null,120.1,120.1,120.22,122.38,130.58000000000001]
["12 - Vistoria a Hotéis e outros estabelecimentos similares",null,null,null,156.24,null," ",null,null,null,null,null,null,null,null,null,null,null,null,null,null,null,143.69999999999999,143.69999999999999,143.84,146.43,156.24]
["13 - Vistoria a Parques de campismo",null,null,null,161.59,null," ",null,null,null,null,null,null,null,null,null,null,null,null,null,null,null,148.61000000000001,148.61000000000001,148.76,151.44,161.59]
["14 - Vistoria inicial, final ou periódica relativa ao processo de licenciamento das instalações de armazenamento de produtos de petróleo e de postos de abastecimento de combustíveis",null,null,null,"",null," ",null,null,null,null,null,null,null,null,null,null,null,null,null,null,null,null," ","","",""]
["14.1 - instalações da classe A1",null,null,null,176.56,null," ",null,null,null,null,null,null,null,null,null,null,null,null,null,null,null,162.38,162.38,162.54,165.47,176.56]
["14.2 - instalações da classe A2",null,null,null,202.22,null," ",null,null,null,null,null,null,null,null,null,null,null,null,null,null,null,185.98,185.98,186.17,189.52,202.22]
["14.3 - instalações da classe A3",null,null,null,227.89,null," ",null,null,null,null,null,null,null,null,null,null,null,null,null,null,null,209.59,209.59,209.8,213.58,227.89]
["14.4 - Instalações de classe B2",null,null,null,176.56,null," ",null,null,null,null,null,null,null,null,null,null,null,null,null,null,null,162.38,162.38,162.54,165.47,176.56]
["14.5 - Outras instalações não expressamente definidas",null,null,null,240.72,null," ",null,null,null,null,null,null,null,null,null,null,null,null,null,null,null,221.39,221.39,221.61,225.6,240.72]
["15 - Repetição de vistoria: 75% do valor da taxa devida pela vistoria correspondente",null,null,null,"",null," ",null,null,null,null,null,null,null,null,null,null,null,null,null,null,null,null," ","","",""]
["16 -Vistorias a estabelecimentos industriais",null,null,null,"",null," ",null,null,null,null,null,null,null,null,null,null,null,null,null,null,null,null," ","","",""]
["16.1 - Vistorias para verificação das condições do exercício da actividade ou do cumprimento das medidas impostas nas decisões proferidas sobre as reclamações e recursos hierárquicos",null,null,null,109.31,null," ",null,null,null,null,null,null,null,null,null,null,null,null,null,null,null,100.54,100.54,100.64,102.45,109.31]
["16.2 - Vistorias para verificação do cumprimento das medidas impostas aquando da desactivação definitiva do estabelecimento industrial",null,null,null,57.98,null," ",null,null,null,null,null,null,null,null,null,null,null,null,null,null,null,53.33,53.33,53.38,54.34,57.98]
["16.3 -  Vistoria de controlo para verificação de cumprimento das condições fixadas ou medidas impostas",null,null,null,63.12,null," ",null,null,null,null,null,null,null,null,null,null,null,null,null,null,null,58.05,58.05,58.11,59.16,63.12]
["16.4 -  Vistoria em que intervenham entidades da administação central: Acresce 20% do valor da taxa devida pela vistoria correspondente",null,null,null,"",null," ",null,null,null,null,null,null,null,null,null,null,null,null,null,null,null,null," ","","",""]
["17 - Vistoria de segurança em recintos de espectáculos e divertimentos públicos",null,null,null,93.63,null," ",null,null,null,null,null,null,null,null,null,null,null,null,null,null,null,86.11,{"$f":"IF(W157=0,\" \",IFERROR(IF(W157>0,ROUND(W157+W157*X$55,2),\" \"),\"\"))","v":86.11},86.2,87.75,93.63]
["18 - Vistoria para licença de recinto itinerante ou improvisado",null,null,null,80.790000000000006,null," ",null,null,null,null,null,null,null,null,null,null,null,null,null,null,null,74.31,74.31,74.38,75.72,80.790000000000006]
["19 - Vistoria para licença acidental de recinto para espectáculo de natureza artística",null,null,null,80.790000000000006,null," ",null,null,null,null,null,null,null,null,null,null,null,null,null,null,null,74.31,74.31,74.38,75.72,80.790000000000006]
["20 - Vistoria para funcionamento dos recintos fixos de diversão",null,null,null,101.32,null," ",null,null,null,null,null,null,null,null,null,null,null,null,null,null,null,93.19,93.19,93.28,94.96,101.32]
["21 - Vistoria de arrrendamento para fins não habitacionais de prédios ou fracções não licenciados",null,null,null,132.83000000000001,null," ",null,null,null,null,null,null,null,null,null,null,null,null,null,null,null,122.17,122.17,122.29,124.49,132.83000000000001]
["a) Acresce o valor da taxa fixada nos números 5.1. ou 6.1 da presente secção, consoante a utilização",null,null,null,"",null," ",null,null,null,null,null,null,null,null,null,null,null,null,null,null,null,null," ","","",""]
["22 - Vistorias para efeitos de propriedade horizontal",null,null,null,"",null," ",null,null,null,null,null,null,null,null,null,null,null,null,null,null,null,null," ","","",""]
["22.1 - Para habitação, por cada",null,null,null,6.37,null," ",null,null,null,null,null,null,null,null,null,null,null,null,null,null,null,5.85,5.85,5.86,5.97,6.37]
["22.2 - Para outros fins, por cada",null,null,null,8.93,null," ",null,null,null,null,null,null,null,null,null,null,null,null,null,null,null,8.2100000000000009,8.2100000000000009,8.2200000000000006,8.3699999999999992,8.93]
["23 - Vistoria para medição de ruído ( art.º13 º do DL 9/2007, de 17 de Janeiro)",null,null,null,158.97,null," ",null,null,null,null,null,null,null,null,null,null,null,null,null,null,null,146.21,146.21,146.36000000000001,148.99,158.97]
["24 - Vistorias a ciclomotores, veículos agrícolas e táxis",null,null,null,22.07,null," ",null,null,null,null,null,null,null,null,null,null,null,null,null,null,null,20.29,20.29,20.309999999999999,20.68,22.07]
["25 - Ensaios e Vistorias a que se referem o art.º 84º,  a alínea b) no n.º 1 do artigo 92º e o art.º 158º do presente Código Regulamentar",null,null,null,22.79,null," ",null,null,null,null,null,null,null,null,null,null,null,null,null,null,null,20.96,20.96,20.98,21.36,22.79]
["26 - Vistorias a viaturas de transporte e venda de pão",null,null,null,132.91999999999999,null," ",null,null,null,null,null,null,null,null,null,null,null,null,null,null,null,122.25,122.25,122.37,124.57,132.91999999999999]
["27 - Acresce a todas as vistorias em que seja obrigatória a presença do veterinário municipal",null,null,null,29.47,null," ",null,null,null,null,null,null,null,null,null,null,null,null,null,null,null,27.1,27.1,27.13,27.62,29.47]
["28 - Outras vistorias não previstas nos números anteriores",null,null,null,66.11,null," ",null,null,null,null,null,null,null,null,null,null,null,null,null,null,null,60.8,60.8,60.86,61.96,66.11]
["29 - Inspeção ao local para efeitos do cumprimento do artigo 645º do Código Regulamentar e outras não expressamente previstas, no âmbito da Proteção Civil",null,null,null,11.72,null," ",null,null,null,null,null,null,null,null,null,null,null,null,null,null,null,10.78,10.78,10.79,10.98,11.72]
[null,null,null,null,"",null," ",null,null,null,null,null,null,null,null,null,null,null,null,null,null,null,null," ","","",""]
[null,null,null,null,"",null," ",null,null,null,null,null,null,null,null,null,null,null,null,null,null,null,null," ","","",""]
[null,null,null,null,"",null," ",null,null,null,null,null,null,null,null,null,null,null,null,null,null,null,null," ","","",""]
[null,null,null,null,"",null," ",null,null,null,null,null,null,null,null,null,null,null,null,null,null,null,null," ","","",""]
[null,null,null,null,"",null," ",null,null,null,null,null,null,null,null,null,null,null,null,null,null,null,null,{"$f":"IF(W177=0,\" \",IFERROR(IF(W177>0,ROUND(W177+W177*X$55,2),\" \"),\"\"))","v":" "},"","",""]
[null,null,null,null,"",null," ",null,null,null,null,null,null,null,null,null,null,null,null,null,null,null,null," ","","",""]
[null,null,null,null,"",null," ",null,null,null,null,null,null,null,null,null,null,null,null,null,null,null,null," ","","",""]
[null,null,null,null,"",null," ",null,null,null,null,null,null,null,null,null,null,null,null,null,null,null,null," ","","",""]
[null,null,null,null,"",null," ",null,null,null,null,null,null,null,null,null,null,null,null,null,null,null,null," ","","",""]
[null,null,null,null,"",null," ",null,null,null,null,null,null,null,null,null,null,null,null,null,null,null,null," ","","",""]
[null,null,null,null,"",null," ",null,null,null,null,null,null,null,null,null,null,null,null,null,null,null,null," ","","",""]
["CAPÍTULO III",null,null,null,"",null," ",null,null,null,null,null,null,null,null,null,null,null,null,null,null,null,null," ","","",""]
["CEMITÉRIOS",null,null,null,{"$f":"AA185","v":""},null," ",null,null,null,null,null,null,null,null,null,null,null,null,null,null,null,null," ","","",""]
[null,null,null,null,"",null," ",null,null,null,null,null,null,null,null,null,null,null,null,null,null,null,null," ","","",""]
["Secção I",null,null,null,"",null," ",null,null,null,null,null,null,null,null,null,null,null,null,null,null,null,null," ","","",""]
["Inumações",null,null,null,"",null," ",null,null,null,null,null,null,null,null,null,null,null,null,null,null,null,null," ","","",""]
[null,null,null,null,"",null," ",null,null,null,null,null,null,null,null,null,null,null,null,null,null,null,null," ","","",""]
["1 - Inumação em covais",null,null,null,"",null," ",null,null,null,null,null,null,null,null,null,null,null,null,null,null,null,null," ","","",""]
["a) Sepulturas temporárias",null,null,null,25.63,null," ",null,null,null,null,null,null,null,null,null,null,null,null,null,null,null,23.58,23.58,23.6,24.02,25.63]
["b) Sepulturas perpétuas:",null,null,null,41.04,null," ",null,null,null,null,null,null,null,null,null,null,null,null,null,null,null,37.74,37.74,37.78,38.46,41.04]
["2 - Inumação em jazigos particulares - por cada:",null,null,null,48.73,null," ",null,null,null,null,null,null,null,null,null,null,null,null,null,null,null,44.82,44.82,44.86,45.67,48.73]
["3 - Inumação em jazigos municipais e sua ocupação:",null,null,null,"",null," ",null,null,null,null,null,null,null,null,null,null,null,null,null,null,null,null," ","","",""]
["3.1 - Por cada período de um ano ou fracção:",null,null,null,"",null," ",null,null,null,null,null,null,null,null,null,null,null,null,null,null,null,null," ","","",""]
["a) catacumbas simples",null,null,null,41.04,null," ",null,null,null,null,null,null,null,null,null,null,null,null,null,null,null,37.74,37.74,37.78,38.46,41.04]
["b) catacumbas duplas",null,null,null,56.43,null," ",null,null,null,null,null,null,null,null,null,null,null,null,null,null,null,51.9,{"$f":"IF(W197=0,\" \",IFERROR(IF(W197>0,ROUND(W197+W197*X$55,2),\" \"),\"\"))","v":51.9},51.95,52.89,56.43]
[null,null,null,null,"",null," ",null,null,null,null,null,null,null,null,null,null,null,null,null,null,null,null," ","","",""]
["Secção II",null,null,null,"",null," ",null,null,null,null,null,null,null,null,null,null,null,null,null,null,null,null," ","","",""]
["Exumações e Trasladações",null,null,null,"",null,{"$f":"IF(F200=\"\",\" \",ROUND(E200*F200,2))","v":" "},null,null,null,null,null,null,null,null,null,null,null,null,null,null,null,null," ","","",""]
[null,null,null,null,"",null," ",null,null,null,null,null,null,null,null,null,null,null,null,null,null,null,null," ","","",""]
["1 - Por cada ossada e trasladação dentro do mesmo cemitério ",null,null,null,74.400000000000006,null," ",null,null,null,null,null,null,null,null,null,null,null,null,null,null,null,68.430000000000007,68.430000000000007,68.5,69.73,74.400000000000006]
[null,null,null,null,"",null," ",null,null,null,null,null,null,null,null,null,null,null,null,null,null,null,null," ","","",""]
["Secção III",null,null,null,"",null," ",null,null,null,null,null,null,null,null,null,null,null,null,null,null,null,null," ","","",""]
["Ocupação de sepulturas e ossários municipais",null,null,null,"",null," ",null,null,null,null,null,null,null,null,null,null,null,null,null,null,null,null," ","","",""]
[null,null,null,null,"",null," ",null,null,null,null,null,null,null,null,null,null,null,null,null,null,null,null," ","","",""]
["1 - Por cada, por ano ou fracção",null,null,null,13.32,null," ",null,null,null,null,null,null,null,null,null,null,null,null,null,null,null,12.25,12.25,12.26,12.48,13.32]
["1.1 -  Com carácter perpétuo",null,null,null,308.14999999999998,null," ",null,null,null,null,null,null,null,null,null,null,null,null,null,null,null,283.41000000000003,283.41000000000003,283.69,288.8,308.14999999999998]
[null,null,null,null,"",null," ",null,null,null,null,null,null,null,null,null,null,null,null,null,null,null,null," ","","",""]
["Secção IV",null,null,null,"",null," ",null,null,null,null,null,null,null,null,null,null,null,null,null,null,null,null," ","","",""]
["Concessão de terrenos",null,null,null,"",null," ",null,null,null,null,null,null,null,null,null,null,null,null,null,null,null,null," ","","",""]
[null,null,null,null,"",null," ",null,null,null,null,null,null,null,null,null,null,null,null,null,null,null,null," ","","",""]
["1 - Para sepultura perpétua",null,null,null,1231.1400000000001,null," ",null,null,null,null,null,null,null,null,null,null,null,null,null,null,null,1132.3,1132.3,1133.43,1153.83,1231.1400000000001]
["2 - Para jazigos",null,null,null,"",null," ",null,null,null,null,null,null,null,null,null,null,null,null,null,null,null,null," ","","",""]
["a) Pelos primeiros 3 m2",null,null,null,1872.77,null," ",null,null,null,null,null,null,null,null,null,null,null,null,null,null,null,1722.42,1722.42,1724.14,1755.17,1872.77]
["b) Cada m2 a mais",null,null,null,794.82,null," ",null,null,null,null,null,null,null,null,null,null,null,null,null,null,null,731.01,731.01,731.74,744.91,794.82]
["c) Aos valores previstos nas alíneas anteriores, havendo jazigo, acresce",null,null,null,10537.25,null," ",null,null,null,null,null,null,null,null,null,null,null,null,null,null,null,9691.2800000000007,{"$f":"IF(W217=0,\" \",IFERROR(IF(W217>0,ROUND(W217+W217*X$55,2),\" \"),\"\"))","v":9691.2800000000007},9700.9699999999993,9875.59,10537.25]
[null,null,null,null,"",null," ",null,null,null,null,null,null,null,null,null,null,null,null,null,null,null,null," ","","",""]
["Secção V",null,null,null,"",null," ",null,null,null,null,null,null,null,null,null,null,null,null,null,null,null,null," ","","",""]
["Obras em jazigos e sepulturas",null,null,null,"",null," ",null,null,null,null,null,null,null,null,null,null,null,null,null,null,null,null," ","","",""]
[null,null,null,null,"",null," ",null,null,null,null,null,null,null,null,null,null,null,null,null,null,null,null," ","","",""]
["1 - Obras em jazigos e sepulturas:",null,null,null,"",null," ",null,null,null,null,null,null,null,null,null,null,null,null,null,null,null,null," ","","",""]
["1.1 - Construção, reconstrução, ampliação ou modificação de jazigos particulares ",null,null,null,"",null," ",null,null,null,null,null,null,null,null,null,null,null,null,null,null,null,null," ","","",""]
["a) Por título",null,null,null,136.47999999999999,null," ",null,null,null,null,null,null,null,null,null,null,null,null,null,null,null,125.52,125.52,125.65,127.91,136.47999999999999]
["b) Em função do prazo, ",null,null,null,"",null," ",null,null,null,null,null,null,null,null,null,null,null,null,null,null,null,null," ","","",""]
["b1) pelos primeiros quinze dias",null,null,null,5.8,null," ",null,null,null,null,null,null,null,null,null,null,null,null,null,null,null,5.33,5.33,5.34,5.44,5.8]
["b2) Por cada dia a mais",null,null,null,4,null," ",null,null,null,null,null,null,null,null,null,null,null,null,null,null,null,3.68,3.68,3.68,3.75,4]
["c) Por cada metro quadrado de area de construção",null,null,null,2.97,null," ",null,null,null,null,null,null,null,null,null,null,null,null,null,null,null,2.73,2.73,2.73,2.78,2.97]
["1.2 - Revestimento em cantaria ou mármore de sepulturas perpétuas - por sepultura",null,null,null,25.63,null," ",null,null,null,null,null,null,null,null,null,null,null,null,null,null,null,23.58,23.58,23.6,24.02,25.63]
["1.3 - Revestimento de sepulturas temporárias a mármore ou granito - por sepultura",null,null,null,16.399999999999999,null," ",null,null,null,null,null,null,null,null,null,null,null,null,null,null,null,15.08,15.08,15.1,15.37,16.399999999999999]
[null,null,null,null,"",null," ",null,null,null,null,null,null,null,null,null,null,null,null,null,null,null,null," ","","",""]
["Secção VI",null,null,null,"",null," ",null,null,null,null,null,null,null,null,null,null,null,null,null,null,null,null," ","","",""]
["Serviços diversos",null,null,null,"",null," ",null,null,null,null,null,null,null,null,null,null,null,null,null,null,null,null," ","","",""]
[null,null,null,null,"",null," ",null,null,null,null,null,null,null,null,null,null,null,null,null,null,null,null," ","","",""]
["1 -  Averbamento em título de jazigo ou sepultura perpétua - cada",null,null,null,72.790000000000006,null," ",null,null,null,null,null,null,null,null,null,null,null,null,null,null,null,66.94,66.94,67.010000000000005,68.22,72.790000000000006]
["2 - Construção de bordadura e sua conservação, durante o período de inumação",null,null,null,"",null," ",null,null,null,null,null,null,null,null,null,null,null,null,null,null,null,null," ","","",""]
["a) Em argamassa de cimento",null,null,null,37.36,null," ",null,null,null,null,null,null,null,null,null,null,null,null,null,null,null,34.36,{"$f":"IF(W237=0,\" \",IFERROR(IF(W237>0,ROUND(W237+W237*X$55,2),\" \"),\"\"))","v":34.36},34.39,35.01,37.36]
["b) Em cantaria ou mármore",null,null,null,72.790000000000006,null," ",null,null,null,null,null,null,null,null,null,null,null,null,null,null,null,66.94,66.94,67.010000000000005,68.22,72.790000000000006]
["3 - Colocação da cruz",null,null,null,16.329999999999998,null," ",null,null,null,null,null,null,null,null,null,null,null,null,null,null,null,15.01,15.01,15.03,15.3,16.329999999999998]
["4 - Utilização da capela, incluindo seus materiais",null,null,null,"",null," ",null,null,null,null,null,null,null,null,null,null,null,null,null,null,null,null," ","","",""]
["a) Pelo período de vinte e quatro horas ou fracção",null,null,null,16.329999999999998,null," ",null,null,null,null,null,null,null,null,null,null,null,null,null,null,null,15.01,15.01,15.03,15.3,16.329999999999998]
["5 - Soldagem de caixões",null,null,null,"",null," ",null,null,null,null,null,null,null,null,null,null,null,null,null,null,null,null," ","","",""]
["a) Dentro de horas de expediente",null,null,null,18.37,null," ",null,null,null,null,null,null,null,null,null,null,null,null,null,null,null,16.899999999999999,16.899999999999999,16.920000000000002,17.22,18.37]
["b) Fora de horas de expediente",null,null,null,34.28,null," ",null,null,null,null,null,null,null,null,null,null,null,null,null,null,null,31.53,31.53,31.56,32.130000000000003,34.28]
["6 - Depósito transitório de caixões:",null,null,null,"",null," ",null,null,null,null,null,null,null,null,null,null,null,null,null,null,null,null," ","","",""]
["a) Pelo período de vinte e quatro horas ou fracção .",null,null,null,7.6,null," ",null,null,null,null,null,null,null,null,null,null,null,null,null,null,null,6.98,6.98,6.99,7.12,7.6]
["b) Pelo período de 15 dias ou fracção, para efeitos de obras.",null,null,null,16.329999999999998,null," ",null,null,null,null,null,null,null,null,null,null,null,null,null,null,null,15.01,15.01,15.03,15.3,16.329999999999998]
["7 - Remoção de caixões e ossadas",null,null,null,16.329999999999998,null," ",null,null,null,null,null,null,null,null,null,null,null,null,null,null,null,15.01,15.01,15.03,15.3,16.329999999999998]
["8 - Reserva anual de sepultura",null,null,null,{"$f":"AA249","v":37.36},null," ",null,null,null,null,null,null,null,null,null,null,null,null,null,null,null,34.36,34.36,34.39,35.01,37.36]
["9 - Reabertura do cemitério fora das horas regulamentares",null,null,null,72.790000000000006,null," ",null,null,null,null,null,null,null,null,null,null,null,null,null,null,null,66.94,66.94,67.010000000000005,68.22,72.790000000000006]
[null,null,null,null,"",null," ",null,null,null,null,null,null,null,null,null,null,null,null,null,null,null,null," ","","",""]
[null,null,null,null,"",null," ",null,null,null,null,null,null,null,null,null,null,null,null,null,null,null,null," ","","",""]
[null,null,null,null,"",null," ",null,null,null,null,null,null,null,null,null,null,null,null,null,null,null,null," ","","",""]
[null,null,null,null,"",null," ",null,null,null,null,null,null,null,null,null,null,null,null,null,null,null,null," ","","",""]
[null,null,null,null,"",null," ",null,null,null,null,null,null,null,null,null,null,null,null,null,null,null,null," ","","",""]
[null,null,null,null,"",null," ",null,null,null,null,null,null,null,null,null,null,null,null,null,null,null,null," ","","",""]
[null,null,null,null,"",null," ",null,null,null,null,null,null,null,null,null,null,null,null,null,null,null,null,{"$f":"IF(W257=0,\" \",IFERROR(IF(W257>0,ROUND(W257+W257*X$55,2),\" \"),\"\"))","v":" "},"","",""]
[null,null,null,null,"",null," ",null,null,null,null,null,null,null,null,null,null,null,null,null,null,null,null," ","","",""]
[null,null,null,null,"",null," ",null,null,null,null,null,null,null,null,null,null,null,null,null,null,null,null," ","","",""]
[null,null,null,null,"",null," ",null,null,null,null,null,null,null,null,null,null,null,null,null,null,null,null," ","","",""]
[null,null,null,null,"",null," ",null,null,null,null,null,null,null,null,null,null,null,null,null,null,null,null," ","","",""]
[null,null,null,null,"",null," ",null,null,null,null,null,null,null,null,null,null,null,null,null,null,null,null," ","","",""]
[null,null,null,null,"",null," ",null,null,null,null,null,null,null,null,null,null,null,null,null,null,null,null," ","","",""]
[null,null,null,null,"",null,{"$f":"IF(F264=\"\",\" \",ROUND(E264*F264,2))","v":" "},null,null,null,null,null,null,null,null,null,null,null,null,null,null,null,null," ","","",""]
[null,null,null,null,"",null," ",null,null,null,null,null,null,null,null,null,null,null,null,null,null,null,null," ","","",""]
[null,null,null,null,"",null," ",null,null,null,null,null,null,null,null,null,null,null,null,null,null,null,null," ","","",""]
[null,null,null,null,"",null," ",null,null,null,null,null,null,null,null,null,null,null,null,null,null,null,null," ","","",""]
[null,null,null,null,"",null," ",null,null,null,null,null,null,null,null,null,null,null,null,null,null,null,null," ","","",""]
[null,null,null,null,"",null," ",null,null,null,null,null,null,null,null,null,null,null,null,null,null,null,null," ","","",""]
[null,null,null,null,"",null," ",null,null,null,null,null,null,null,null,null,null,null,null,null,null,null,null," ","","",""]
[null,null,null,null,"",null," ",null,null,null,null,null,null,null,null,null,null,null,null,null,null,null,null," ","","",""]
[null,null,null,null,"",null," ",null,null,null,null,null,null,null,null,null,null,null,null,null,null,null,null," ","","",""]
[null,null,null,null,"",null," ",null,null,null,null,null,null,null,null,null,null,null,null,null,null,null,null," ","","",""]
[null,null,null,null,"",null," ",null,null,null,null,null,null,null,null,null,null,null,null,null,null,null,null," ","","",""]
[null,null,null,null,"",null," ",null,null,null,null,null,null,null,null,null,null,null,null,null,null,null,null," ","","",""]
[null,null,null,null,"",null," ",null,null,null,null,null,null,null,null,null,null,null,null,null,null,null,null," ","","",""]
[null,null,null,null,"",null," ",null,null,null,null,null,null,null,null,null,null,null,null,null,null,null,null,{"$f":"IF(W277=0,\" \",IFERROR(IF(W277>0,ROUND(W277+W277*X$55,2),\" \"),\"\"))","v":" "},"","",""]
[null,null,null,null,"",null," ",null,null,null,null,null,null,null,null,null,null,null,null,null,null,null,null," ","","",""]
[null,null,null,null,"",null," ",null,null,null,null,null,null,null,null,null,null,null,null,null,null,null,null," ","","",""]
[null,null,null,null,"",null," ",null,null,null,null,null,null,null,null,null,null,null,null,null,null,null,null," ","","",""]
[null,null,null,null,"",null," ",null,null,null,null,null,null,null,null,null,null,null,null,null,null,null,null," ","","",""]
[null,null,null,null,"",null," ",null,null,null,null,null,null,null,null,null,null,null,null,null,null,null,null," ","","",""]
[null,null,null,null,"",null," ",null,null,null,null,null,null,null,null,null,null,null,null,null,null,null,null," ","","",""]
[null,null,null,null,"",null," ",null,null,null,null,null,null,null,null,null,null,null,null,null,null,null,null," ","","",""]
[null,null,null,null,"",null," ",null,null,null,null,null,null,null,null,null,null,null,null,null,null,null,null," ","","",""]
[null,null,null,null,"",null," ",null,null,null,null,null,null,null,null,null,null,null,null,null,null,null,null," ","","",""]
[null,null,null,null,"",null," ",null,null,null,null,null,null,null,null,null,null,null,null,null,null,null,null," ","","",""]
[null,null,null,null,"",null," ",null,null,null,null,null,null,null,null,null,null,null,null,null,null,null,null," ","","",""]
[null,null,null,null,"",null," ",null,null,null,null,null,null,null,null,null,null,null,null,null,null,null,null," ","","",""]
[null,null,null,null,"",null," ",null,null,null,null,null,null,null,null,null,null,null,null,null,null,null,null," ","","",""]
[null,null,null,null,"",null," ",null,null,null,null,null,null,null,null,null,null,null,null,null,null,null,null," ","","",""]
["CAPÍTULO IV",null,null,null,"",null," ",null,null,null,null,null,null,null,null,null,null,null,null,null,null,null,null," ","","",""]
["Licenciamentos e autorizações  diversas ",null,null,null,"",null," ",null,null,null,null,null,null,null,null,null,null,null,null,null,null,null,null," ","","",""]
[null,null,null,null,"",null," ",null,null,null,null,null,null,null,null,null,null,null,null,null,null,null,null," ","","",""]
["Secção I",null,null,null,"",null," ",null,null,null,null,null,null,null,null,null,null,null,null,null,null,null,null," ","","",""]
["Licenciamento de instalações de armazenamento de produtos de petróleo e de postos de abastecimento de combustíveis",null,null,null,"",null," ",null,null,null,null,null,null,null,null,null,null,null,null,null,null,null,null," ","","",""]
[null,null,null,null,"",null," ",null,null,null,null,null,null,null,null,null,null,null,null,null,null,null,null,{"$f":"IF(W297=0,\" \",IFERROR(IF(W297>0,ROUND(W297+W297*X$55,2),\" \"),\"\"))","v":" "},"","",""]
["1 – Apreciação dos pedidos de aprovação dos projectos de construção e alteração",null,null,null,"",null," ",null,null,null,null,null,null,null,null,null,null,null,null,null,null,null,null," ","","",""]
["a) instalações da classe A1",null,null,null,198.63,null,{"$f":"IF(F299=\"\",\" \",ROUND(E299*F299,2))","v":" "},null,null,null,null,null,null,null,null,null,null,null,null,null,null,null,182.69,182.69,182.87,186.16,198.63]
["b instalações da classe A2",null,null,null,249.97,null,{"$f":"IF(F300=\"\",\" \",ROUND(E300*F300,2))","v":" "},null,null,null,null,null,null,null,null,null,null,null,null,null,null,null,229.9,229.9,230.13,234.27,249.97]
["c) instalações da classe A3",null,null,null,301.3,null," ",null,null,null,null,null,null,null,null,null,null,null,null,null,null,null,277.11,277.11,277.39,282.38,301.3]
["d) outras instalações não expressamente definidas",null,null,null,352.62,null," ",null,null,null,null,null,null,null,null,null,null,null,null,null,null,null,324.32,324.32,324.64,330.48,352.62]
["2 - Reapreciação dos projectos: 50% do valor da taxa devida pela apreciação inicial correpondente",null,null,null,"",null," ",null,null,null,null,null,null,null,null,null,null,null,null,null,null,null,null," ","","",""]
["3 - Emissão de segunda via de certificado de aprovação de projecto ou de inspecção",null,null,null,12.53,null," ",null,null,null,null,null,null,null,null,null,null,null,null,null,null,null,11.52,11.52,11.53,11.74,12.53]
["4 - Emissão do alvará de licença de exploração",null,null,null,2228.71,null," ",null,null,null,null,null,null,null,null,null,null,null,null,null,null,null,2049.7800000000002,2049.7800000000002,2051.83,2088.7600000000002,2228.71]
["5 - Averbamentos",null,null,null,352.62,null," ",null,null,null,null,null,null,null,null,null,null,null,null,null,null,null,324.32,324.32,324.64,330.48,352.62]
["6 - Renovação do alvará de licença de exploração",null,null,null,2228.71,null," ",null,null,null,null,null,null,null,null,null,null,null,null,null,null,null,2049.7800000000002,2049.7800000000002,2051.83,2088.7600000000002,2228.71]
[null,null,null,null,"",null," ",null,null,null,null,null,null,null,null,null,null,null,null,null,null,null,null," ","","",""]
["Secção II",null,null,null,"",null," ",null,null,null,null,null,null,null,null,null,null,null,null,null,null,null,null," ","","",""]
["Licenciamento da actividade industrial",null,null,null,"",null," ",null,null,null,null,null,null,null,null,null,null,null,null,null,null,null,null," ","","",""]
[null,null,null,null,"",null," ",null,null,null,null,null,null,null,null,null,null,null,null,null,null,null,null," ","","",""]
["1 - Recepção do registo e verificação da sua conformidade",null,null,null,164.22,null," ",null,null,null,null,null,null,null,null,null,null,null,null,null,null,null,151.04,151.04,151.19,153.91,164.22]
["2 - Apreciação dos pedidos de regularização",null,null,null,{"$f":"AA313","v":191.95},null," ",null,null,null,null,null,null,null,null,null,null,null,null,null,null,null,176.54,176.54,176.72,179.9,191.95]
["3 - Averbamento de transmissão da licença de exploração ",null,null,null,343.89,null," ",null,null,null,null,null,null,null,null,null,null,null,null,null,null,null,316.27999999999997,316.27999999999997,316.60000000000002,322.3,343.89]
[null,null,null,null,"",null," ",null,null,null,null,null,null,null,null,null,null,null,null,null,null,null,null," ","","",""]
["Secção III",null,null,null,"",null," ",null,null,null,null,null,null,null,null,null,null,null,null,null,null,null,null," ","","",""]
[" Intervenção sobre o exercício de actividades diversas",null,null,null,"",null," ",null,null,null,null,null,null,null,null,null,null,null,null,null,null,null,null,{"$f":"IF(W317=0,\" \",IFERROR(IF(W317>0,ROUND(W317+W317*X$55,2),\" \"),\"\"))","v":" "},"","",""]
[null,null,null,null,"",null," ",null,null,null,null,null,null,null,null,null,null,null,null,null,null,null,null," ","","",""]
["1 - Emissão de licença de recinto itinerante ou improvisado",null,null,null,55.12,null," ",null,null,null,null,null,null,null,null,null,null,null,null,null,null,null,50.7,50.7,50.75,51.66,55.12]
["1.1 - Acresce por cada dia além do primeiro",null,null,null,9.9700000000000006,null," ",null,null,null,null,null,null,null,null,null,null,null,null,null,null,null,9.16,9.16,9.17,9.34,9.9700000000000006]
["2 - Emissão de licença acidental de recinto para espectáculo de natureza artística",null,null,null,29.47,null," ",null,null,null,null,null,null,null,null,null,null,null,null,null,null,null,27.1,27.1,27.13,27.62,29.47]
["2.1 - Acresce por cada dia além do primeiro",null,null,null,5.34,null," ",null,null,null,null,null,null,null,null,null,null,null,null,null,null,null,4.91,4.91,4.91,5,5.34]
["3 - Emissão de licença para funcionamento dos recintos fixos de diversão",null,null,null,34.590000000000003,null," ",null,null,null,null,null,null,null,null,null,null,null,null,null,null,null,31.82,31.82,31.85,32.42,34.590000000000003]
["4 - Emissão de licenças de:",null,null,null,"",null," ",null,null,null,null,null,null,null,null,null,null,null,null,null,null,null,null," ","","",""]
["4.1 - Guarda-nocturno - por ano",null,null,null,24.99,null," ",null,null,null,null,null,null,null,null,null,null,null,null,null,null,null,22.99,22.99,23.01,23.42,24.99]
["4.2 - Realização de acampamentos ocasionais",null,null,null,78.89,null," ",null,null,null,null,null,null,null,null,null,null,null,null,null,null,null,72.56,72.56,72.63,73.94,78.89]
["4.3 - Realização de espectáculos de natureza desportiva nas vias, jardins e demais lugares públicos ao ar livre - por dia",null,null,null,24.99,null," ",null,null,null,null,null,null,null,null,null,null,null,null,null,null,null,22.99,22.99,23.01,23.42,24.99]
["5 - Exploração de máquinas automáticas, mecânicas, eléctricas e electrónicas de diversão:",null,null,null,"",null,{"$f":"IF(F328=\"\",\" \",ROUND(E328*F328,2))","v":" "},null,null,null,null,null,null,null,null,null,null,null,null,null,null,null,null," ","","",""]
["a) Registo de cada máquina",null,null,null,156.24,null," ",null,null,null,null,null,null,null,null,null,null,null,null,null,null,null,143.69999999999999,143.69999999999999,143.84,146.43,156.24]
["b) Segunda via do título de registo",null,null,null,54.3,null," ",null,null,null,null,null,null,null,null,null,null,null,null,null,null,null,49.94,49.94,49.99,50.89,54.3]
["c) Averbamento por transferência de propriedade",null,null,null,66.42,null," ",null,null,null,null,null,null,null,null,null,null,null,null,null,null,null,61.09,61.09,61.15,62.25,66.42]
["6 - Autorização para a Realização de fogueiras e queimadas",null,null,null,34.47,null," ",null,null,null,null,null,null,null,null,null,null,null,null,null,null,null,31.71,31.71,31.74,32.31,34.47]
["7 - Autorização para lançamento de fogo de artifício e outros artefactos pirotécnicos, por dia",null,null,null,11.49,null," ",null,null,null,null,null,null,null,null,null,null,null,null,null,null,null,10.57,10.57,10.58,10.77,11.49]
["8 - Pela apresentação da Mera Comunicação Prévia prevista no DL n.º 10/2015, de 16/01",null,null,null,17.66,null," ",null,null,null,null,null,null,null,null,null,null,null,null,null,null,null,16.239999999999998,16.239999999999998,16.260000000000002,16.55,17.66]
["9 - Pela apresentação de comunicação prévia com prazo de registo de alojamento local",null,null,null,71.84,null," ",null,null,null,null,null,null,null,null,null,null,null,null,null,null,null,66.069999999999993,66.069999999999993,66.14,67.33,71.84]
[null,null,null,null,"",null," ",null,null,null,null,null,null,null,null,null,null,null,null,null,null,null,null," ","","",""]
["Seccção IV",null,null,null,"",null," ",null,null,null,null,null,null,null,null,null,null,null,null,null,null,null,null,{"$f":"IF(W337=0,\" \",IFERROR(IF(W337>0,ROUND(W337+W337*X$55,2),\" \"),\"\"))","v":" "},"","",""]
["Licenças de exploração para actividade de transporte em táxi, de condução e licenciamento de veículos",null,null,null,"",null," ",null,null,null,null,null,null,null,null,null,null,null,null,null,null,null,null," ","","",""]
[null,null,null,null,"",null," ",null,null,null,null,null,null,null,null,null,null,null,null,null,null,null,null," ","","",""]
["1 - Emissão de licença de veículo afecto ao transporte de taxi",null,null,null,56.56,null," ",null,null,null,null,null,null,null,null,null,null,null,null,null,null,null,52.02,52.02,52.07,53.01,56.56]
["2 - Emissão de segunda via de licença  de veículo",null,null,null,43.71,null," ",null,null,null,null,null,null,null,null,null,null,null,null,null,null,null,40.21,40.21,40.25,40.97,43.71]
["3 - Averbamento por alteração do título ",null,null,null,51.43,null," ",null,null,null,null,null,null,null,null,null,null,null,null,null,null,null,47.3,47.3,47.35,48.2,51.43]
[null,null,null,null,"",null,{"$f":"IF(F343=\"\",\" \",ROUND(E343*F343,2))","v":" "},null,null,null,null,null,null,null,null,null,null,null,null,null,null,null,null," ","","",""]
["Secção V",null,null,null,"",null," ",null,null,null,null,null,null,null,null,null,null,null,null,null,null,null,null," ","","",""]
["Infra-estruturas de radiocomunicações e aerogeradores",null,null,null,"",null," ",null,null,null,null,null,null,null,null,null,null,null,null,null,null,null,null," ","","",""]
[null,null,null,null,"",null," ",null,null,null,null,null,null,null,null,null,null,null,null,null,null,null,null," ","","",""]
["1 - Instalação de infra-estruturas de suporte de radiocomunicações e respectivos acessórios",null,null,null,"",null," ",null,null,null,null,null,null,null,null,null,null,null,null,null,null,null,null," ","","",""]
["a) autorização normal",null,null,null,170.11,null," ",null,null,null,null,null,null,null,null,null,null,null,null,null,null,null,156.44999999999999,156.44999999999999,156.61000000000001,159.43,170.11]
["b) autorização limitada, por cada ano ou fracção",null,null,null,37.159999999999997,null," ",null,null,null,null,null,null,null,null,null,null,null,null,null,null,null,34.18,34.18,34.21,34.83,37.159999999999997]
["2 - Instalação de aerogeradores, por cada",null,null,null,106.45,null," ",null,null,null,null,null,null,null,null,null,null,null,null,null,null,null,97.91,97.91,98.01,99.77,106.45]
[null,null,null,null,"",null," ",null,null,null,null,null,null,null,null,null,null,null,null,null,null,null,null," ","","",""]
["Secção VI",null,null,null,"",null,{"$f":"IF(F352=\"\",\" \",ROUND(E352*F352,2))","v":" "},null,null,null,null,null,null,null,null,null,null,null,null,null,null,null,null," ","","",""]
["Pareceres, licenças ou autorizações diversos",null,null,null,"",null,{"$f":"IF(F353=\"\",\" \",ROUND(E353*F353,2))","v":" "},null,null,null,null,null,null,null,null,null,null,null,null,null,null,null,null," ","","",""]
[null,null,null,null,"",null," ",null,null,null,null,null,null,null,null,null,null,null,null,null,null,null,null," ","","",""]
["1 - Parecer sobre a utilização de explosivos",null,null,null,44.86,null," ",null,null,null,null,null,null,null,null,null,null,null,null,null,null,null,41.26,41.26,41.3,42.04,44.86]
["2 - Parecer no âmbito de projectos florestais, por hectare",null,null,null,9.9700000000000006,null," ",null,null,null,null,null,null,null,null,null,null,null,null,null,null,null,9.16,9.16,9.17,9.34,9.9700000000000006]
["3 - Taxa pela emissão urgente de pareceres, licenças e autorizações policiais diversas, acresce 50% do valor devido pela taxa normal",null,null,null,"",null," ",null,null,null,null,null,null,null,null,null,null,null,null,null,null,null,null,{"$f":"IF(W357=0,\" \",IFERROR(IF(W357>0,ROUND(W357+W357*X$55,2),\" \"),\"\"))","v":" "},"","",""]
["4 - Vedações provisórias destinadas a vedar terrenos confinantes com a via pública - por metro linear ou  fracção e por ano",null,null,null,1.74,null," ",null,null,null,null,null,null,null,null,null,null,null,null,null,null,null,1.6,1.6,1.6,1.63,1.74]
["5 - Outros pareceres ou licenças ou autorizações não especificadas",null,null,null,101.32,null," ",null,null,null,null,null,null,null,null,null,null,null,null,null,null,null,93.19,93.19,93.28,94.96,101.32]
["6 - Pedido de reapreciação por caducidade da licença ou autorização",null,null,null,40.11,null," ",null,null,null,null,null,null,null,null,null,null,null,null,null,null,null,36.89,36.89,36.93,37.590000000000003,40.11]
[null,null,null,null,"",null," ",null,null,null,null,null,null,null,null,null,null,null,null,null,null,null,null," ","","",""]
["Secção VII",null,null,null,"",null," ",null,null,null,null,null,null,null,null,null,null,null,null,null,null,null,null," ","","",""]
["Diversos",null,null,null,"",null," ",null,null,null,null,null,null,null,null,null,null,null,null,null,null,null,null," ","","",""]
[null,null,null,null,"",null," ",null,null,null,null,null,null,null,null,null,null,null,null,null,null,null,null," ","","",""]
["1 - Desselagem de máquinas, aparelhos e demais equipamentos",null,null,null,87.24,null," ",null,null,null,null,null,null,null,null,null,null,null,null,null,null,null,80.23,80.23,80.31,81.760000000000005,87.24]
["2 - Atribuição de número de polícia, por cada",null,null,null,20.68,null," ",null,null,null,null,null,null,null,null,null,null,null,null,null,null,null,19.02,19.02,19.04,19.38,20.68]
[null,null,null,null,"",null," ",null,null,null,null,null,null,null,null,null,null,null,null,null,null,null,null," ","","",""]
[null,null,null,null,"",null," ",null,null,null,null,null,null,null,null,null,null,null,null,null,null,null,null," ","","",""]
[null,null,null,null,"",null," ",null,null,null,null,null,null,null,null,null,null,null,null,null,null,null,null," ","","",""]
[null,null,null,null,"",null," ",null,null,null,null,null,null,null,null,null,null,null,null,null,null,null,null," ","","",""]
[null,null,null,null,"",null," ",null,null,null,null,null,null,null,null,null,null,null,null,null,null,null,null," ","","",""]
[null,null,null,null,"",null," ",null,null,null,null,null,null,null,null,null,null,null,null,null,null,null,null," ","","",""]
[null,null,null,null,"",null," ",null,null,null,null,null,null,null,null,null,null,null,null,null,null,null,null," ","","",""]
[null,null,null,null,"",null," ",null,null,null,null,null,null,null,null,null,null,null,null,null,null,null,null," ","","",""]
[null,null,null,null,"",null," ",null,null,null,null,null,null,null,null,null,null,null,null,null,null,null,null," ","","",""]
[null,null,null,null,"",null," ",null,null,null,null,null,null,null,null,null,null,null,null,null,null,null,null," ","","",""]
[null,null,null,null,{"$f":"AA377","v":""},null," ",null,null,null,null,null,null,null,null,null,null,null,null,null,null,null,null,{"$f":"IF(W377=0,\" \",IFERROR(IF(W377>0,ROUND(W377+W377*X$55,2),\" \"),\"\"))","v":" "},"","",""]
[null,null,null,null,"",null," ",null,null,null,null,null,null,null,null,null,null,null,null,null,null,null,null," ","","",""]
[null,null,null,null,"",null," ",null,null,null,null,null,null,null,null,null,null,null,null,null,null,null,null," ","","",""]
[null,null,null,null,"",null," ",null,null,null,null,null,null,null,null,null,null,null,null,null,null,null,null," ","","",""]
[null,null,null,null,"",null,{"$f":"IF(F381=\"\",\" \",ROUND(E381*F381,2))","v":" "},null,null,null,null,null,null,null,null,null,null,null,null,null,null,null,null," ","","",""]
[null,null,null,null,"",null," ",null,null,null,null,null,null,null,null,null,null,null,null,null,null,null,null," ","","",""]
[null,null,null,null,"",null," ",null,null,null,null,null,null,null,null,null,null,null,null,null,null,null,null," ","","",""]
[null,null,null,null,"",null," ",null,null,null,null,null,null,null,null,null,null,null,null,null,null,null,null," ","","",""]
[null,null,null,null,"",null," ",null,null,null,null,null,null,null,null,null,null,null,null,null,null,null,null," ","","",""]
[null,null,null,null,"",null," ",null,null,null,null,null,null,null,null,null,null,null,null,null,null,null,null," ","","",""]
[null,null,null,null,"",null," ",null,null,null,null,null,null,null,null,null,null,null,null,null,null,null,null," ","","",""]
[null,null,null,null,"",null," ",null,null,null,null,null,null,null,null,null,null,null,null,null,null,null,null," ","","",""]
[null,null,null,null,"",null," ",null,null,null,null,null,null,null,null,null,null,null,null,null,null,null,null," ","","",""]
[null,null,null,null,"",null," ",null,null,null,null,null,null,null,null,null,null,null,null,null,null,null,null," ","","",""]
[null,null,null,null,"",null," ",null,null,null,null,null,null,null,null,null,null,null,null,null,null,null,null," ","","",""]
[null,null,null,null,"",null," ",null,null,null,null,null,null,null,null,null,null,null,null,null,null,null,null," ","","",""]
[null,null,null,null,"",null," ",null,null,null,null,null,null,null,null,null,null,null,null,null,null,null,null," ","","",""]
["CAPITULO V",null,null,null,"",null," ",null,null,null,null,null,null,null,null,null,null,null,null,null,null,null,null," ","","",""]
["AMBIENTE",null,null,null,"",null," ",null,null,null,null,null,null,null,null,null,null,null,null,null,null,null,null," ","","",""]
[null,null,null,null,"",null,{"$f":"IF(F396=\"\",\" \",ROUND(E396*F396,2))","v":" "},null,null,null,null,null,null,null,null,null,null,null,null,null,null,null,null," ","","",""]
["Secção I",null,null,null,"",null," ",null,null,null,null,null,null,null,null,null,null,null,null,null,null,null,null,{"$f":"IF(W397=0,\" \",IFERROR(IF(W397>0,ROUND(W397+W397*X$55,2),\" \"),\"\"))","v":" "},"","",""]
["Animais",null,null,null,"",null," ",null,null,null,null,null,null,null,null,null,null,null,null,null,null,null,null," ","","",""]
[null,null,null,null,"",null," ",null,null,null,null,null,null,null,null,null,null,null,null,null,null,null,null," ","","",""]
["1 - Serviços relacionados com animais",null,null,null,"",null," ",null,null,null,null,null,null,null,null,null,null,null,null,null,null,null,null," ","","",""]
["1.2 - captura, recolha e abate compulsivo de animais de companhia",null,null,null,"",null," ",null,null,null,null,null,null,null,null,null,null,null,null,null,null,null,null," ","","",""]
["1.2.1 - captura e recolha de animais de companhia",null,null,null,19.47,null," ",null,null,null,null,null,null,null,null,null,null,null,null,null,null,null,17.91,17.91,17.93,18.25,19.47]
["1.2.2 - abate compulsivo de animais de companhia",null,null,null,30.71,null," ",null,null,null,null,null,null,null,null,null,null,null,null,null,null,null,28.24,28.24,28.27,28.78,30.71]
["1.3 - vistoria a viaturas e atrelados de transporte de animais vivos",null,null,null,19.09,null," ",null,null,null,null,null,null,null,null,null,null,null,null,null,null,null,17.55,17.55,17.57,17.89,19.09]
["2 - Taxa de occisão de animais domésticos",null,null,null,36.86,null," ",null,null,null,null,null,null,null,null,null,null,null,null,null,null,null,33.909999999999997,33.909999999999997,33.94,34.549999999999997,36.86]
["3 - Taxa de destruição de animais domésticos ",null,null,null,51.25,null," ",null,null,null,null,null,null,null,null,null,null,null,null,null,null,null,47.13,47.13,47.18,48.03,51.25]
[null,null,null,null,"",null," ",null,null,null,null,null,null,null,null,null,null,null,null,null,null,null,null," ","","",""]
["Secção II",null,null,null,"",null," ",null,null,null,null,null,null,null,null,null,null,null,null,null,null,null,null," ","","",""]
["Licenças especiais de ruído",null,null,null,"",null," ",null,null,null,null,null,null,null,null,null,null,null,null,null,null,null,null," ","","",""]
[null,null,null,null,"",null," ",null,null,null,null,null,null,null,null,null,null,null,null,null,null,null,null," ","","",""]
["1 - Emissão de licenças especiais de ruído para o exercício de actividades ruidosas de carácter temporário em:",null,null,null,"",null," ",null,null,null,null,null,null,null,null,null,null,null,null,null,null,null,null," ","","",""]
["1.1 - Dias úteis e por hora:",null,null,null,"",null," ",null,null,null,null,null,null,null,null,null,null,null,null,null,null,null,null," ","","",""]
["a) Das 7 às 20 horas",null,null,null,9.19,null," ",null,null,null,null,null,null,null,null,null,null,null,null,null,null,null,8.4499999999999993,8.4499999999999993,8.4600000000000009,8.61,9.19]
["b) Das 20 às 23 horas",null,null,null,12,null," ",null,null,null,null,null,null,null,null,null,null,null,null,null,null,null,11.04,11.04,11.05,11.25,12]
["c) Das 23 às 7horas",null,null,null,"",null," ",null,null,null,null,null,null,null,null,null,null,null,null,null,null,null,null," ","","",""]
["c.1) 1ª hora",null,null,null,14.83,null," ",null,null,null,null,null,null,null,null,null,null,null,null,null,null,null,13.64,13.64,13.65,13.9,14.83]
["c.2) 2ª hora",null,null,null,17.66,null,{"$f":"IF(F417=\"\",\" \",ROUND(E417*F417,2))","v":" "},null,null,null,null,null,null,null,null,null,null,null,null,null,null,null,16.239999999999998,{"$f":"IF(W417=0,\" \",IFERROR(IF(W417>0,ROUND(W417+W417*X$55,2),\" \"),\"\"))","v":16.239999999999998},16.260000000000002,16.55,17.66]
["c.3) 3ª hora e seguintes",null,null,null,20.48,null," ",null,null,null,null,null,null,null,null,null,null,null,null,null,null,null,18.829999999999998,18.829999999999998,18.850000000000001,19.190000000000001,20.48]
["1. 2 - Sábados, domingos e feriados - por hora",null,null,null,20.48,null," ",null,null,null,null,null,null,null,null,null,null,null,null,null,null,null,18.829999999999998,18.829999999999998,18.850000000000001,19.190000000000001,20.48]
["2 - Pela emissão de licenças especiais de ruído para a realização de obras de construção civil é fixado um valor máximo por mês de 250 €",null,null,null,"",null,{"$f":"IF(F420=\"\",\" \",F420)","v":" "},null,null,null,null,null,null,null,null,null,null,null,null,null,null,null,null," ","","",""]
[null,null,null,null,"",null,{"$f":"IF(F421=\"\",\" \",ROUND(E421*F421,2))","v":" "},null,null,null,null,null,null,null,null,null,null,null,null,null,null,null,null," ","","",""]
["Secção III",null,null,null,"",null,{"$f":"IF(F422=\"\",\" \",ROUND(E422*F422,2))","v":" "},null,null,null,null,null,null,null,null,null,null,null,null,null,null,null,null," ","","",""]
["Informações sobre ambiente",null,null,null,"",null," ",null,null,null,null,null,null,null,null,null,null,null,null,null,null,null,null," ","","",""]
[null,null,null,null,"",null," ",null,null,null,null,null,null,null,null,null,null,null,null,null,null,null,null," ","","",""]
["1 - Por cada informação",null,null,null,9.19,null," ",null,null,null,null,null,null,null,null,null,null,null,null,null,null,null,8.4499999999999993,8.4499999999999993,8.4600000000000009,8.61,9.19]
[null,null,null,null,"",null," ",null,null,null,null,null,null,null,null,null,null,null,null,null,null,null,null," ","","",""]
["Secção IV**",null,null,null,"",null," ",null,null,null,null,null,null,null,null,null,null,null,null,null,null,null,null," ","","",""]
["Desobstruções em redes de drenagem de águas residuais e esvaziamento de fossas",null,null,null,"",null," ",null,null,null,null,null,null,null,null,null,null,null,null,null,null,null,null," ","","",""]
[null,null,null,null,"",null," ",null,null,null,null,null,null,null,null,null,null,null,null,null,null,null,null," ","","",""]
["1 - Por cada intervenção com recurso a camião-cisterna",null,null,null,61.16,null," ",null,null,null,null,null,null,null,null,null,null,null,null,null,null,null,56.250784029652991,56.25,56.31,57.32,61.16]
["2 - Por cada intervenção com recurso a tractor",null,null,null,35.770000000000003,null," ",null,null,null,null,null,null,null,null,null,null,null,null,null,null,null,32.901726893528533,32.9,32.93,33.520000000000003,35.770000000000003]
[null,null,null,null,"",null," ",null,null,null,null,null,null,null,null,null,null,null,null,null,null,null,null," ","","",""]
["Secção V ",null,null,null,"",null," ",null,null,null,null,null,null,null,null,null,null,null,null,null,null,null,null," ","","",""]
["TAXA DE RECURSOS HÍDRICOS*",null,null,null,"",null," ",null,null,null,null,null,null,null,null,null,null,null,null,null,null,null,null," ","","",""]
[null,null,null,null,"",null," ",null,null,null,null,null,null,null,null,null,null,null,null,null,null,null,null," ","","",""]
["1 - TRH Água - por m3 total de água fornecido ao consumidor e por mês",null,null,null,"",null," ",null,null,null,null,null,null,null,null,null,null,null,null,null,null,null,null," ","","",""]
["2 - TRH Saneamento - por m3 de efluentes descarregados no sistema pelo consumidor e por mês",null,null,null,"",null," ",null,null,null,null,null,null,null,null,null,null,null,null,null,null,null,null,{"$f":"IF(W437=0,\" \",IFERROR(IF(W437>0,ROUND(W437+W437*X$55,2),\" \"),\"\"))","v":" "},"","",""]
["* - Atualização após informação do Instituto da Água, I.P. (INAG, IP)",null,null,null,"",null," ",null,null,null,null,null,null,null,null,null,null,null,null,null,null,null,null," ","","",""]
["** - Concessionado à Águas do Norte, SA",null,null,null,"",null," ",null,null,null,null,null,null,null,null,null,null,null,null,null,null,null,null," ","","",""]
[null,null,null,null,"",null," ",null,null,null,null,null,null,null,null,null,null,null,null,null,null,null,null," ","","",""]
[null,null,null,null,{"$f":"AA441","v":""},null," ",null,null,null,null,null,null,null,null,null,null,null,null,null,null,null,null," ","","",""]
[null,null,null,null,"",null," ",null,null,null,null,null,null,null,null,null,null,null,null,null,null,null,null," ","","",""]
[null,null,null,null,"",null," ",null,null,null,null,null,null,null,null,null,null,null,null,null,null,null,null," ","","",""]
[null,null,null,null,"",null," ",null,null,null,null,null,null,null,null,null,null,null,null,null,null,null,null," ","","",""]
["CAPÍTULO VI",null,null,null,"",null," ",null,null,null,null,null,null,null,null,null,null,null,null,null,null,null,null," ","","",""]
["GESTÃO DO ESPAÇO PÚBLICO",null,null,null,"",null," ",null,null,null,null,null,null,null,null,null,null,null,null,null,null,null,null," ","","",""]
[null,null,null,null,"",null," ",null,null,null,null,null,null,null,null,null,null,null,null,null,null,null,null," ","","",""]
["Secção I",null,null,null,"",null," ",null,null,null,null,null,null,null,null,null,null,null,null,null,null,null,null," ","","",""]
["Publicidade visual afecta a mobiliário urbano ou autónomo",null,null,null,"",null," ",null,null,null,null,null,null,null,null,null,null,null,null,null,null,null,null," ","","",""]
[null,null,null,null,"",null," ",null,null,null,null,null,null,null,null,null,null,null,null,null,null,null,null," ","","",""]
["1 - Por cada informação prévia",null,null,null,12.72,null," ",null,null,null,null,null,null,null,null,null,null,null,null,null,null,null,11.7,11.7,11.71,11.92,12.72]
["2 - Por cada licença",null,null,null,15.8,null," ",null,null,null,null,null,null,null,null,null,null,null,null,null,null,null,14.54,14.54,14.55,14.81,15.8]
["3 - Publicidade exibida em:",null,null,null,"",null," ",null,null,null,null,null,null,null,null,null,null,null,null,null,null,null,null," ","","",""]
["3.1 - Painéis luminosos ou directamente iluminados - por m2 e por mês:",null,null,null,"",null," ",null,null,null,null,null,null,null,null,null,null,null,null,null,null,null,null," ","","",""]
["3.1.1 - Ocupando a via pública:",null,null,null,"",null," ",null,null,null,null,null,null,null,null,null,null,null,null,null,null,null,null," ","","",""]
["a) Estáticos",null,null,null,4.5,null," ",null,null,null,null,null,null,null,null,null,null,null,null,null,null,null,4.1500000000000004,4.1500000000000004,4.1500000000000004,4.22,4.5]
["b) Rotativos",null,null,null,6.06,null," ",null,null,null,null,null,null,null,null,null,null,null,null,null,null,null,5.57,{"$f":"IF(W457=0,\" \",IFERROR(IF(W457>0,ROUND(W457+W457*X$55,2),\" \"),\"\"))","v":5.57},5.58,5.68,6.06]
["3.1.2 - Não ocupando a via pública:",null,null,null,"",null," ",null,null,null,null,null,null,null,null,null,null,null,null,null,null,null,null," ","","",""]
["a) Estáticos",null,null,null,3.59,null," ",null,null,null,null,null,null,null,null,null,null,null,null,null,null,null,3.3,3.3,3.3,3.36,3.59]
["b) Rotativos",null,null,null,3.88,null," ",null,null,null,null,null,null,null,null,null,null,null,null,null,null,null,3.58,3.58,3.58,3.64,3.88]
["3.2 - Painéis não luminosos - por m2 e por mês:",null,null,null,"",null," ",null,null,null,null,null,null,null,null,null,null,null,null,null,null,null,null," ","","",""]
["3.2.1 - Ocupando a via pública:",null,null,null,"",null," ",null,null,null,null,null,null,null,null,null,null,null,null,null,null,null,null," ","","",""]
["a) Estáticos",null,null,null,2.36,null," ",null,null,null,null,null,null,null,null,null,null,null,null,null,null,null,2.17,2.17,2.17,2.21,2.36]
["b) Rotativos",null,null,null,2.66,null," ",null,null,null,null,null,null,null,null,null,null,null,null,null,null,null,2.4500000000000002,2.4500000000000002,2.4500000000000002,2.4900000000000002,2.66]
["3.2.2 - Não ocupando a via pública:",null,null,null,"",null," ",null,null,null,null,null,null,null,null,null,null,null,null,null,null,null,null," ","","",""]
["a) Estáticos",null,null,null,2.04,null," ",null,null,null,null,null,null,null,null,null,null,null,null,null,null,null,1.88,1.88,1.88,1.91,2.04]
["b) Rotativos",null,null,null,2.5099999999999998,null," ",null,null,null,null,null,null,null,null,null,null,null,null,null,null,null,2.31,2.31,2.31,2.35,2.5099999999999998]
["3.3 - Mupis, colunas publicitárias, anúncios publicitários e semelhantes - por m2 e por mês:",null,null,null,"",null," ",null,null,null,null,null,null,null,null,null,null,null,null,null,null,null,null," ","","",""]
["a) Ocupando a via pública",null,null,null,6.82,null," ",null,null,null,null,null,null,null,null,null,null,null,null,null,null,null,6.27,6.27,6.28,6.39,6.82]
["b) Não ocupando a via pública",null,null,null,6.06,null," ",null,null,null,null,null,null,null,null,null,null,null,null,null,null,null,5.57,5.57,5.58,5.68,6.06]
["3.4 - Pendões, bandeiras e bandeirolas- por m2 e por mês",null,null,null,5.54,null," ",null,null,null,null,null,null,null,null,null,null,null,null,null,null,null,5.09,5.09,5.0999999999999996,5.19,5.54]
["3.5 - Abrigos de transportes públicos",null,null,null,5.75,null," ",null,null,null,null,null,null,null,null,null,null,null,null,null,null,null,5.28,5.28,5.29,5.39,5.75]
[null,null,null,null,"",null," ",null,null,null,null,null,null,null,null,null,null,null,null,null,null,null,null," ","","",""]
["Secção II",null,null,null,"",null,{"$f":"IF(F474=\"\",\" \",ROUND(E474*F474,2))","v":" "},null,null,null,null,null,null,null,null,null,null,null,null,null,null,null,null," ","","",""]
["Publicidade instalada em edifícios",null,null,null,"",null," ",null,null,null,null,null,null,null,null,null,null,null,null,null,null,null,null," ","","",""]
[null,null,null,null,"",null," ",null,null,null,null,null,null,null,null,null,null,null,null,null,null,null,null," ","","",""]
["1 - Publicidade em edifícios:",null,null,null,"",null," ",null,null,null,null,null,null,null,null,null,null,null,null,null,null,null,null,{"$f":"IF(W477=0,\" \",IFERROR(IF(W477>0,ROUND(W477+W477*X$55,2),\" \"),\"\"))","v":" "},"","",""]
["1,2 - Anúncios luminosos ou directamente iluminados - por m2 e por mês",null,null,null,3.59,null," ",null,null,null,null,null,null,null,null,null,null,null,null,null,null,null,3.3,3.3,3.3,3.36,3.59]
["1,3 - Anúncios não luminosos - por m2 e por mês",null,null,null,2.66,null," ",null,null,null,null,null,null,null,null,null,null,null,null,null,null,null,2.4500000000000002,2.4500000000000002,2.4500000000000002,2.4900000000000002,2.66]
["2 - Lonas publicitárias instaladas em empenas ou fachadas e andaimes de obras - por m2 e por mês",null,null,null,"",null," ",null,null,null,null,null,null,null,null,null,null,null,null,null,null,null,null," ","","",""]
["a) Iluminadas",null,null,null,4.8099999999999996,null," ",null,null,null,null,null,null,null,null,null,null,null,null,null,null,null,4.43,4.43,4.43,4.51,4.8099999999999996]
["b) Não iluminadas",null,null,null,4.5,null," ",null,null,null,null,null,null,null,null,null,null,null,null,null,null,null,4.1500000000000004,4.1500000000000004,4.1500000000000004,4.22,4.5]
["3 - Anúncios electrónicos, sistema de vídeo e similares - por m2 e por mês  ",null,null,null,"",null," ",null,null,null,null,null,null,null,null,null,null,null,null,null,null,null,null," ","","",""]
["a) No local onde o anunciante exerce a actividade",null,null,null,3.88,null," ",null,null,null,null,null,null,null,null,null,null,null,null,null,null,null,3.58,3.58,3.58,3.64,3.88]
["b) Fora do local onde o anunciante exerce a actividade",null,null,null,4.8099999999999996,null," ",null,null,null,null,null,null,null,null,null,null,null,null,null,null,null,4.43,4.43,4.43,4.51,4.8099999999999996]
["4 - Placas e tabuletas, por m2 e por mês",null,null,null,2.97,null,{"$f":"IF(F486=\"\",\" \",ROUND(E486*F486,2))","v":" "},null,null,null,null,null,null,null,null,null,null,null,null,null,null,null,2.73,2.73,2.73,2.78,2.97]
["5 - Palas e Alpendres, por m2 e por mês",null,null,null,3.28,null," ",null,null,null,null,null,null,null,null,null,null,null,null,null,null,null,3.02,3.02,3.02,3.07,3.28]
[null,null,null,null,"",null," ",null,null,null,null,null,null,null,null,null,null,null,null,null,null,null,null," ","","",""]
["Secção III",null,null,null,"",null," ",null,null,null,null,null,null,null,null,null,null,null,null,null,null,null,null," ","","",""]
["Publicidade Móvel",null,null,null,"",null," ",null,null,null,null,null,null,null,null,null,null,null,null,null,null,null,null," ","","",""]
[null,null,null,null,"",null," ",null,null,null,null,null,null,null,null,null,null,null,null,null,null,null,null," ","","",""]
["1 - Publicidade em transportes públicos:",null,null,null,"",null," ",null,null,null,null,null,null,null,null,null,null,null,null,null,null,null,null," ","","",""]
["a) Transportes colectivos, por m2, por mês",null,null,null,2.36,null," ",null,null,null,null,null,null,null,null,null,null,null,null,null,null,null,2.17,2.17,2.17,2.21,2.36]
["b) Em táxis, por m2 e por mês",null,null,null,2.04,null," ",null,null,null,null,null,null,null,null,null,null,null,null,null,null,null,1.88,1.88,1.88,1.91,2.04]
["2 - Publicidade em veículos - por veículo e por mês",null,null,null,"",null," ",null,null,null,null,null,null,null,null,null,null,null,null,null,null,null,null," ","","",""]
["a) Ciclomotores e motociclos",null,null,null,1.74,null," ",null,null,null,null,null,null,null,null,null,null,null,null,null,null,null,1.6,1.6,1.6,1.63,1.74]
["b) Veículos ligeiros de passageiros e mistos",null,null,null,1.89,null," ",null,null,null,null,null,null,null,null,null,null,null,null,null,null,null,1.74,{"$f":"IF(W497=0,\" \",IFERROR(IF(W497>0,ROUND(W497+W497*X$55,2),\" \"),\"\"))","v":1.74},1.74,1.77,1.89]
["c) Veículos ligeiros de mercadorias",null,null,null,2.2000000000000002,null," ",null,null,null,null,null,null,null,null,null,null,null,null,null,null,null,2.02,2.02,2.02,2.06,2.2000000000000002]
["d) Veículos pesados",null,null,null,2.5099999999999998,null," ",null,null,null,null,null,null,null,null,null,null,null,null,null,null,null,2.31,2.31,2.31,2.35,2.5099999999999998]
["e) Reboques",null,null,null,2.5099999999999998,null," ",null,null,null,null,null,null,null,null,null,null,null,null,null,null,null,2.31,2.31,2.31,2.35,2.5099999999999998]
["f) Semi-reboques",null,null,null,2.5099999999999998,null," ",null,null,null,null,null,null,null,null,null,null,null,null,null,null,null,2.31,2.31,2.31,2.35,2.5099999999999998]
["3 - Publicidade em veículos utilizados exclusivamente para o exercício da actividade publicitária - por cada e por m2:",null,null,null,"",null,{"$f":"IF(F502=\"\",\" \",ROUND(E502*F502,2))","v":" "},null,null,null,null,null,null,null,null,null,null,null,null,null,null,null,null," ","","",""]
["a) Por dia",null,null,null,4.5,null,{"$f":"IF(F503=\"\",\" \",ROUND(E503*F503,2))","v":" "},null,null,null,null,null,null,null,null,null,null,null,null,null,null,null,4.1500000000000004,4.1500000000000004,4.1500000000000004,4.22,4.5]
["b) Por semana",null,null,null,13.75,null," ",null,null,null,null,null,null,null,null,null,null,null,null,null,null,null,12.65,12.65,12.66,12.89,13.75]
["c) Por mês",null,null,null,{"$f":"AA505","v":22.98},null," ",null,null,null,null,null,null,null,null,null,null,null,null,null,null,null,21.14,21.14,21.16,21.54,22.98]
["4 - Identificação em veículos:",null,null,null,"",null," ",null,null,null,null,null,null,null,null,null,null,null,null,null,null,null,null," ","","",""]
["a) ciclomotores e motociclos, por veículo e por ano",null,null,null,1.59,null," ",null,null,null,null,null,null,null,null,null,null,null,null,null,null,null,1.46,1.46,1.46,1.49,1.59]
["b) outros veículos ligeiros e pesados, reboques e semi-reboques, por veículo e por ano",null,null,null,1.62,null," ",null,null,null,null,null,null,null,null,null,null,null,null,null,null,null,1.49,1.49,1.49,1.52,1.62]
["c) em frota de veículos ligeiros ou pesados, reboques e semi-reboques (por conjuntos de 3 veículos)",null,null,null,1.74,null," ",null,null,null,null,null,null,null,null,null,null,null,null,null,null,null,1.6,1.6,1.6,1.63,1.74]
["5 - Publicidade em outros meios - por m2:",null,null,null,"",null," ",null,null,null,null,null,null,null,null,null,null,null,null,null,null,null,null," ","","",""]
["a) Por dia",null,null,null,3.28,null," ",null,null,null,null,null,null,null,null,null,null,null,null,null,null,null,3.02,3.02,3.02,3.07,3.28]
["b) Por semana",null,null,null,8.82,null," ",null,null,null,null,null,null,null,null,null,null,null,null,null,null,null,8.11,8.11,8.1199999999999992,8.27,8.82]
["c) Por mês",null,null,null,13.75,null," ",null,null,null,null,null,null,null,null,null,null,null,null,null,null,null,12.65,12.65,12.66,12.89,13.75]
[null,null,null,null,"",null," ",null,null,null,null,null,null,null,null,null,null,null,null,null,null,null,null," ","","",""]
["Secção IV",null,null,null,"",null," ",null,null,null,null,null,null,null,null,null,null,null,null,null,null,null,null," ","","",""]
["Publicidade sonora",null,null,null,"",null," ",null,null,null,null,null,null,null,null,null,null,null,null,null,null,null,null," ","","",""]
[null,null,null,null,"",null," ",null,null,null,null,null,null,null,null,null,null,null,null,null,null,null,null,{"$f":"IF(W517=0,\" \",IFERROR(IF(W517>0,ROUND(W517+W517*X$55,2),\" \"),\"\"))","v":" "},"","",""]
["1 - Aparelhos de rádio ou televisão, altifalantes ou outros aparelhos fazendo emissões directas, com fins publicitários, na ou para a via pública:",null,null,null,"",null," ",null,null,null,null,null,null,null,null,null,null,null,null,null,null,null,null," ","","",""]
["a) Por dia ou fracção",null,null,null,10.16,null," ",null,null,null,null,null,null,null,null,null,null,null,null,null,null,null,9.34,9.34,9.35,9.52,10.16]
["b) Por semana",null,null,null,18.37,null," ",null,null,null,null,null,null,null,null,null,null,null,null,null,null,null,16.899999999999999,16.899999999999999,16.920000000000002,17.22,18.37]
["c) Por mês",null,null,null,43.78,null," ",null,null,null,null,null,null,null,null,null,null,null,null,null,null,null,40.26,40.26,40.299999999999997,41.03,43.78]
[null,null,null,null,"",null," ",null,null,null,null,null,null,null,null,null,null,null,null,null,null,null,null," ","","",""]
["Secção V",null,null,null,"",null," ",null,null,null,null,null,null,null,null,null,null,null,null,null,null,null,null," ","","",""]
["Campanhas publicitárias de rua",null,null,null,"",null," ",null,null,null,null,null,null,null,null,null,null,null,null,null,null,null,null," ","","",""]
[null,null,null,null,"",null," ",null,null,null,null,null,null,null,null,null,null,null,null,null,null,null,null," ","","",""]
["1 - Distribuição de panfletos - por dia",null,null,null,7.6,null," ",null,null,null,null,null,null,null,null,null,null,null,null,null,null,null,6.98,6.98,6.99,7.12,7.6]
["2 - Banca Promocional ",null,null,null,8.3699999999999992,null,{"$f":"IF(F527=\"\",\" \",ROUND(E527*F527,2))","v":" "},null,null,null,null,null,null,null,null,null,null,null,null,null,null,null,7.69,7.69,7.7,7.84,8.3699999999999992]
["3 - Outras acções promocionais de natureza publicitária - por dia e por m2",null,null,null,12.21,null,{"$f":"IF(F528=\"\",\" \",ROUND(E528*F528,2))","v":" "},null,null,null,null,null,null,null,null,null,null,null,null,null,null,null,11.23,11.23,11.24,11.44,12.21]
[null,null,null,null,"",null," ",null,null,null,null,null,null,null,null,null,null,null,null,null,null,null,null," ","","",""]
["Secção VI",null,null,null,"",null," ",null,null,null,null,null,null,null,null,null,null,null,null,null,null,null,null," ","","",""]
["Publicidade diversa",null,null,null,"",null," ",null,null,null,null,null,null,null,null,null,null,null,null,null,null,null,null," ","","",""]
[null,null,null,null,"",null," ",null,null,null,null,null,null,null,null,null,null,null,null,null,null,null,null," ","","",""]
["1 - Publicidade em guarda-sóis, em guarda-ventos - por unidade e por mês:",null,null,null,4.5,null," ",null,null,null,null,null,null,null,null,null,null,null,null,null,null,null,4.1500000000000004,4.1500000000000004,4.1500000000000004,4.22,4.5]
["2 - Exposição no exterior dos estabelecimentos ou dos prédios onde aqueles se encontram (desde que ocupem mais do que, 0,30m de passeio a partir da fachada do estabelecimento, sendo que, ocupando até àquele limite e desde que permitam a livre circulação de pessoas com mobilidade reduzida, se encontram isentos):",null,null,null,"",null," ",null,null,null,null,null,null,null,null,null,null,null,null,null,null,null,null," ","","",""]
["a) De jornais, revistas ou livros - por m2 ou fracção e por mês",null,null,null,12.21,null," ",null,null,null,null,null,null,null,null,null,null,null,null,null,null,null,11.23,11.23,11.24,11.44,12.21]
["b) De fazendas, flores e semelhantes - por m2 ou fracção e por mês",null,null,null,10.67,null," ",null,null,null,null,null,null,null,null,null,null,null,null,null,null,null,9.81,9.81,9.82,10,10.67]
["c) De veículos - por unidade e por mês",null,null,null,15.28,null," ",null,null,null,null,null,null,null,null,null,null,null,null,null,null,null,14.06,{"$f":"IF(W537=0,\" \",IFERROR(IF(W537>0,ROUND(W537+W537*X$55,2),\" \"),\"\"))","v":14.06},14.07,14.32,15.28]
["d) Outros objectos - por m2 ou por fracção e por mês",null,null,null,12.72,null," ",null,null,null,null,null,null,null,null,null,null,null,null,null,null,null,11.7,11.7,11.71,11.92,12.72]
["3 - Vitrines, mostradores e semelhantes, em lugar que enteste com a via pública - por m2 e por mês",null,null,null,3.88,null," ",null,null,null,null,null,null,null,null,null,null,null,null,null,null,null,3.58,3.58,3.58,3.64,3.88]
["4 - Placas de proibição de afixação de publicidade - por cada e por ano ",null,null,null,1.74,null," ",null,null,null,null,null,null,null,null,null,null,null,null,null,null,null,1.6,1.6,1.6,1.63,1.74]
["5 – Toldos",null,null,null,"",null," ",null,null,null,null,null,null,null,null,null,null,null,null,null,null,null,null," ","","",""]
["a) pela identificação, por m2 ou fracção e por ano",null,null,null,3.59,null," ",null,null,null,null,null,null,null,null,null,null,null,null,null,null,null,3.3,3.3,3.3,3.36,3.59]
["b) por publicidade, por m2 ou fracção e por ano",null,null,null,4.2,null," ",null,null,null,null,null,null,null,null,null,null,null,null,null,null,null,3.87,3.87,3.87,3.94,4.2]
["6 - Outra publicidade não incluída nos números anteriores - por m2 ou fracção",null,null,null,"",null," ",null,null,null,null,null,null,null,null,null,null,null,null,null,null,null,null," ","","",""]
["a) Por dia",null,null,null,1.48,null," ",null,null,null,null,null,null,null,null,null,null,null,null,null,null,null,1.37,1.37,1.37,1.39,1.48]
["b) Por mês",null,null,null,1.68,null," ",null,null,null,null,null,null,null,null,null,null,null,null,null,null,null,1.54,1.54,1.54,1.57,1.68]
["c) Por ano",null,null,null,6.37,null," ",null,null,null,null,null,null,null,null,null,null,null,null,null,null,null,5.85,5.85,5.86,5.97,6.37]
[null,null,null,null,"",null," ",null,null,null,null,null,null,null,null,null,null,null,null,null,null,null,null," ","","",""]
["Secção VII",null,null,null,"",null," ",null,null,null,null,null,null,null,null,null,null,null,null,null,null,null,null," ","","",""]
["Alteração dos termos ou condições do licenciamento",null,null,null,"",null," ",null,null,null,null,null,null,null,null,null,null,null,null,null,null,null,null," ","","",""]
[null,null,null,null,"",null," ",null,null,null,null,null,null,null,null,null,null,null,null,null,null,null,null," ","","",""]
["1 - Alteração da mensagem publicitária- 25% do valor da taxa devida",null,null,null,"",null," ",null,null,null,null,null,null,null,null,null,null,null,null,null,null,null,null," ","","",""]
["2 - Averbamento de substituição do titular de licenciamento de publicidade: 15% do valor da taxa devida",null,null,null,"",null," ",null,null,null,null,null,null,null,null,null,null,null,null,null,null,null,null," ","","",""]
["3 - Renovação da licença: 75% do valor da taxa devida",null,null,null,"",null," ",null,null,null,null,null,null,null,null,null,null,null,null,null,null,null,null," ","","",""]
[null,null,null,null,"",null," ",null,null,null,null,null,null,null,null,null,null,null,null,null,null,null,null," ","","",""]
[null,null,null,null,"",null," ",null,null,null,null,null,null,null,null,null,null,null,null,null,null,null,null," ","","",""]
[null,null,null,null,"",null," ",null,null,null,null,null,null,null,null,null,null,null,null,null,null,null,null,{"$f":"IF(W557=0,\" \",IFERROR(IF(W557>0,ROUND(W557+W557*X$55,2),\" \"),\"\"))","v":" "},"","",""]
[null,null,null,null,"",null," ",null,null,null,null,null,null,null,null,null,null,null,null,null,null,null,null," ","","",""]
["Capitulo VII",null,null,null,"",null," ",null,null,null,null,null,null,null,null,null,null,null,null,null,null,null,null," ","","",""]
["UTILIZAÇÃO DO DOMÍNIO PÚBLICO E PRIVADO MUNICIPAL",null,null,null,"",null," ",null,null,null,null,null,null,null,null,null,null,null,null,null,null,null,null," ","","",""]
[null,null,null,null,"",null," ",null,null,null,null,null,null,null,null,null,null,null,null,null,null,null,null," ","","",""]
["Taxa municipal dos direitos de passagem (TMDP) - 0,25%  sobre a facturação mensal emitida pelas empresas que oferecem redes e serviços de comunicações electrónicas acessíveis ao público, em local fixo, para todos os clientes finais do município de Amarante, é fixada até 31 de Dezembro de cada ano, pela Assembleia Municipal,  para vigorar no ano seguinte",null,null,null,"",null," ",null,null,null,null,null,null,null,null,null,null,null,null,null,null,null,null," ","","",""]
[null,null,null,null,"",null," ",null,null,null,null,null,null,null,null,null,null,null,null,null,null,null,null," ","","",""]
[null,null,null,null,"",null," ",null,null,null,null,null,null,null,null,null,null,null,null,null,null,null,null," ","","",""]
[null,null,null,null,"",null," ",null,null,null,null,null,null,null,null,null,null,null,null,null,null,null,null," ","","",""]
[null,null,null,null,"",null," ",null,null,null,null,null,null,null,null,null,null,null,null,null,null,null,null," ","","",""]
[null,null,null,null,"",null," ",null,null,null,null,null,null,null,null,null,null,null,null,null,null,null,null," ","","",""]
[null,null,null,null,"",null," ",null,null,null,null,null,null,null,null,null,null,null,null,null,null,null,null," ","","",""]
[null,null,null,null,{"$f":"AA569","v":""},null," ",null,null,null,null,null,null,null,null,null,null,null,null,null,null,null,null," ","","",""]
[null,null,null,null,"",null," ",null,null,null,null,null,null,null,null,null,null,null,null,null,null,null,null," ","","",""]
[null,null,null,null,"",null," ",null,null,null,null,null,null,null,null,null,null,null,null,null,null,null,null," ","","",""]
[null,null,null,null,"",null," ",null,null,null,null,null,null,null,null,null,null,null,null,null,null,null,null," ","","",""]
[null,null,null,null,"",null," ",null,null,null,null,null,null,null,null,null,null,null,null,null,null,null,null," ","","",""]
[null,null,null,null,"",null," ",null,null,null,null,null,null,null,null,null,null,null,null,null,null,null,null," ","","",""]
[null,null,null,null,"",null," ",null,null,null,null,null,null,null,null,null,null,null,null,null,null,null,null," ","","",""]
[null,null,null,null,"",null," ",null,null,null,null,null,null,null,null,null,null,null,null,null,null,null,null," ","","",""]
[null,null,null,null,"",null," ",null,null,null,null,null,null,null,null,null,null,null,null,null,null,null,null,{"$f":"IF(W577=0,\" \",IFERROR(IF(W577>0,ROUND(W577+W577*X$55,2),\" \"),\"\"))","v":" "},"","",""]
[null,null,null,null,"",null," ",null,null,null,null,null,null,null,null,null,null,null,null,null,null,null,null," ","","",""]
[null,null,null,null,"",null," ",null,null,null,null,null,null,null,null,null,null,null,null,null,null,null,null," ","","",""]
[null,null,null,null,"",null," ",null,null,null,null,null,null,null,null,null,null,null,null,null,null,null,null," ","","",""]
[null,null,null,null,"",null," ",null,null,null,null,null,null,null,null,null,null,null,null,null,null,null,null," ","","",""]
[null,null,null,null,"",null," ",null,null,null,null,null,null,null,null,null,null,null,null,null,null,null,null," ","","",""]
[null,null,null,null,"",null," ",null,null,null,null,null,null,null,null,null,null,null,null,null,null,null,null," ","","",""]
[null,null,null,null,"",null," ",null,null,null,null,null,null,null,null,null,null,null,null,null,null,null,null," ","","",""]
[null,null,null,null,"",null," ",null,null,null,null,null,null,null,null,null,null,null,null,null,null,null,null," ","","",""]
[null,null,null,null,"",null," ",null,null,null,null,null,null,null,null,null,null,null,null,null,null,null,null," ","","",""]
[null,null,null,null,"",null," ",null,null,null,null,null,null,null,null,null,null,null,null,null,null,null,null," ","","",""]
[null,null,null,null,"",null," ",null,null,null,null,null,null,null,null,null,null,null,null,null,null,null,null," ","","",""]
[null,null,null,null,"",null," ",null,null,null,null,null,null,null,null,null,null,null,null,null,null,null,null," ","","",""]
[null,null,null,null,"",null," ",null,null,null,null,null,null,null,null,null,null,null,null,null,null,null,null," ","","",""]
[null,null,null,null,"",null," ",null,null,null,null,null,null,null,null,null,null,null,null,null,null,null,null," ","","",""]
[null,null,null,null,"",null,{"$f":"IF(F592=\"\",\" \",ROUND(E592*F592,2))","v":" "},null,null,null,null,null,null,null,null,null,null,null,null,null,null,null,null," ","","",""]
["CAPÍTULO VIII",null,null,null,"",null," ",null,null,null,null,null,null,null,null,null,null,null,null,null,null,null,null," ","","",""]
["OCUPAÇÃO DE DOMÍNIO PÚBLICO",null,null,null,"",null," ",null,null,null,null,null,null,null,null,null,null,null,null,null,null,null,null," ","","",""]
[null,null,null,null,"",null," ",null,null,null,null,null,null,null,null,null,null,null,null,null,null,null,null," ","","",""]
["Secção I",null,null,null,"",null," ",null,null,null,null,null,null,null,null,null,null,null,null,null,null,null,null," ","","",""]
["Ocupação da via pública por motivo de obras",null,null,null,"",null," ",null,null,null,null,null,null,null,null,null,null,null,null,null,null,null,null,{"$f":"IF(W597=0,\" \",IFERROR(IF(W597>0,ROUND(W597+W597*X$55,2),\" \"),\"\"))","v":" "},"","",""]
[null,null,null,null,"",null," ",null,null,null,null,null,null,null,null,null,null,null,null,null,null,null,null," ","","",""]
["1 - Por cada alvará de licença ou autorização",null,null,null,5.79,null," ",null,null,null,null,null,null,null,null,null,null,null,null,null,null,null,5.32,5.32,5.33,5.43,5.79]
["2 - Averbamento ",null,null,null,5.79,null," ",null,null,null,null,null,null,null,null,null,null,null,null,null,null,null,5.32,5.32,5.33,5.43,5.79]
["3 - Ocupação da via pública,em zona de estacionamento condicionado, por dia e por metro quadrado",null,null,null,"",null," ",null,null,null,null,null,null,null,null,null,null,null,null,null,null,null,null," ","","",""]
["a) até 30 dias",null,null,null,0.43,null," ",null,null,null,null,null,null,null,null,null,null,null,null,null,null,null,0.39,0.39,0.39,0.4,0.43]
["b) de 31 dias até 60 dias",null,null,null,0.46,null," ",null,null,null,null,null,null,null,null,null,null,null,null,null,null,null,0.42,0.42,0.42,0.43,0.46]
["c) mais de 60 dias",null,null,null,0.49,null," ",null,null,null,null,null,null,null,null,null,null,null,null,null,null,null,0.45,0.45,0.45,0.46,0.49]
["4 - Ocupação da via pública em area urbana, por dia e por metro quadrado",null,null,null,"",null," ",null,null,null,null,null,null,null,null,null,null,null,null,null,null,null,null," ","","",""]
["a) até 30 dias",null,null,null,0.28999999999999998,null," ",null,null,null,null,null,null,null,null,null,null,null,null,null,null,null,0.27,0.27,0.27,0.27,0.28999999999999998]
["b) de 31 dias até 60 dias",null,null,null,0.33,null," ",null,null,null,null,null,null,null,null,null,null,null,null,null,null,null,0.3,0.3,0.3,0.31,0.33]
["c) mais de 60 dias",null,null,null,0.36,null," ",null,null,null,null,null,null,null,null,null,null,null,null,null,null,null,0.33,0.33,0.33,0.34,0.36]
["5 - Ocupação da via pública fora de area urbana, por dia e por metro quadrado",null,null,null,"",null," ",null,null,null,null,null,null,null,null,null,null,null,null,null,null,null,null," ","","",""]
["a) até 30 dias",null,null,null,0.25,null," ",null,null,null,null,null,null,null,null,null,null,null,null,null,null,null,0.23,0.23,0.23,0.23,0.25]
["b) de 31 dias até 60 dias",null,null,null,0.27,null," ",null,null,null,null,null,null,null,null,null,null,null,null,null,null,null,0.25,0.25,0.25,0.25,0.27]
["c) mais de 60 dias",null,null,null,0.28999999999999998,null," ",null,null,null,null,null,null,null,null,null,null,null,null,null,null,null,0.27,0.27,0.27,0.27,0.28999999999999998]
["Secção II",null,null,null,"",null," ",null,null,null,null,null,null,null,null,null,null,null,null,null,null,null,null," ","","",""]
["Ocupação do espaço aéreo da via pública",null,null,null,"",null," ",null,null,null,null,null,null,null,null,null,null,null,null,null,null,null,null," ","","",""]
[null,null,null,null,"",null," ",null,null,null,null,null,null,null,null,null,null,null,null,null,null,null,null," ","","",""]
["1 - Por cada alvará de licença ou autorização",null,null,null,5.79,null," ",null,null,null,null,null,null,null,null,null,null,null,null,null,null,null,5.32,5.32,5.33,5.43,5.79]
["2 - Por cada averbamento",null,null,null,5.79,null," ",null,null,null,null,null,null,null,null,null,null,null,null,null,null,null,5.32,{"$f":"IF(W617=0,\" \",IFERROR(IF(W617>0,ROUND(W617+W617*X$55,2),\" \"),\"\"))","v":5.32},5.33,5.43,5.79]
["3 - Antenas:",null,null,null,"",null," ",null,null,null,null,null,null,null,null,null,null,null,null,null,null,null,null," ","","",""]
["3.1 - De operadores de telecomunicações:",null,null,null,"",null," ",null,null,null,null,null,null,null,null,null,null,null,null,null,null,null,null," ","","",""]
["a) Instaladas no domínio público - por cada e por ano",null,null,null,517.70000000000005,null," ",null,null,null,null,null,null,null,null,null,null,null,null,null,null,null,476.13,476.13,476.61,485.19,517.70000000000005]
["b) Instaladas em propriedade particular com projecção para o domínio público - por cada e por ano",null,null,null,517.70000000000005,null," ",null,null,null,null,null,null,null,null,null,null,null,null,null,null,null,476.13,476.13,476.61,485.19,517.70000000000005]
["3.2 - Outras, atravessando a via pública - por metro linear e por ano",null,null,null,4.5,null," ",null,null,null,null,null,null,null,null,null,null,null,null,null,null,null,4.1500000000000004,4.1500000000000004,4.1500000000000004,4.22,4.5]
["4 - Fios telegráficos, telefónicos ou eléctricos, ou espias - por metro linear e por ano",null,null,null,4.5,null," ",null,null,null,null,null,null,null,null,null,null,null,null,null,null,null,4.1500000000000004,4.1500000000000004,4.1500000000000004,4.22,4.5]
["5 - Alpendres ou toldos fixos, não integrados nos edifícios - por metro linear de frente e por ano:",null,null,null,"",null," ",null,null,null,null,null,null,null,null,null,null,null,null,null,null,null,null," ","","",""]
["a) Até um metro de avanço",null,null,null,7.08,null," ",null,null,null,null,null,null,null,null,null,null,null,null,null,null,null,6.51,6.51,6.52,6.64,7.08]
["b) Mais de um metro de avanço",null,null,null,8.3699999999999992,null," ",null,null,null,null,null,null,null,null,null,null,null,null,null,null,null,7.69,7.69,7.7,7.84,8.3699999999999992]
["6 - Toldos móveis - por m2 ou fracção e por ano:",null,null,null,"",null," ",null,null,null,null,null,null,null,null,null,null,null,null,null,null,null,null," ","","",""]
["a) Até um metro de avanço",null,null,null,7.08,null," ",null,null,null,null,null,null,null,null,null,null,null,null,null,null,null,6.51,6.51,6.52,6.64,7.08]
["b) Mais de um metro de avanço",null,null,null,8.3699999999999992,null," ",null,null,null,null,null,null,null,null,null,null,null,null,null,null,null,7.69,7.69,7.7,7.84,8.3699999999999992]
["7 - Passarelas ou outras construções ou ocupações do espaço aéreo - por m2 ou fracção de projecção sobre a via pública e por mês",null,null,null,12.21,null," ",null,null,null,null,null,null,null,null,null,null,null,null,null,null,null,11.23,11.23,11.24,11.44,12.21]
["8 - Aparelhos de ar condicionado fixos no exterior dos edifícios - por ano ou fracção:",null,null,null,"",null," ",null,null,null,null,null,null,null,null,null,null,null,null,null,null,null,null," ","","",""]
["a) Até 0,2 m3",null,null,null,23.07,null," ",null,null,null,null,null,null,null,null,null,null,null,null,null,null,null,21.22,21.22,21.24,21.62,23.07]
["b) Por cada m3 a mais",null,null,null,{"$f":"AA633","v":4.5},null," ",null,null,null,null,null,null,null,null,null,null,null,null,null,null,null,4.1500000000000004,4.1500000000000004,4.1500000000000004,4.22,4.5]
[null,null,null,null,"",null," ",null,null,null,null,null,null,null,null,null,null,null,null,null,null,null,null," ","","",""]
["Secção III",null,null,null,"",null," ",null,null,null,null,null,null,null,null,null,null,null,null,null,null,null,null," ","","",""]
["Ocupações diversas do solo",null,null,null,"",null," ",null,null,null,null,null,null,null,null,null,null,null,null,null,null,null,null," ","","",""]
[null,null,null,null,"",null," ",null,null,null,null,null,null,null,null,null,null,null,null,null,null,null,null,{"$f":"IF(W637=0,\" \",IFERROR(IF(W637>0,ROUND(W637+W637*X$55,2),\" \"),\"\"))","v":" "},"","",""]
["1 - Por cada alvará de licença ou autorização",null,null,null,5.79,null," ",null,null,null,null,null,null,null,null,null,null,null,null,null,null,null,5.32,5.32,5.33,5.43,5.79]
["2 - Averbamento ",null,null,null,5.79,null," ",null,null,null,null,null,null,null,null,null,null,null,null,null,null,null,5.32,5.32,5.33,5.43,5.79]
["3 - Postes e marcos - por cada:",null,null,null,"",null," ",null,null,null,null,null,null,null,null,null,null,null,null,null,null,null,null," ","","",""]
["a) Para suporte de fios telegráficos, telefónicos ou eléctricos - por cada e por ano",null,null,null,10.93,null," ",null,null,null,null,null,null,null,null,null,null,null,null,null,null,null,10.050000000000001,10.050000000000001,10.06,10.24,10.93]
["b) Para decoração (mastros) - por dia",null,null,null,1.74,null," ",null,null,null,null,null,null,null,null,null,null,null,null,null,null,null,1.6,1.6,1.6,1.63,1.74]
["c) Para colocação de anúncios - por mês",null,null,null,2.97,null," ",null,null,null,null,null,null,null,null,null,null,null,null,null,null,null,2.73,2.73,2.73,2.78,2.97]
["d) Marco receptáculo de correio - por ano",null,null,null,17.350000000000001,null," ",null,null,null,null,null,null,null,null,null,null,null,null,null,null,null,15.95,15.95,15.97,16.260000000000002,17.350000000000001]
["4 - Esplanadas - por m2 e por mês (entre os meses de maio e setembro)",null,null,null,"",null," ",null,null,null,null,null,null,null,null,null,null,null,null,null,null,null,null," ","","",""]
["a) Fixa ou fechada:",null,null,null,7.08,null," ",null,null,null,null,null,null,null,null,null,null,null,null,null,null,null,6.51,6.51,6.52,6.64,7.08]
["b) Aberta e sem estrutura:",null,null,null,5.8,null," ",null,null,null,null,null,null,null,null,null,null,null,null,null,null,null,5.33,5.33,5.34,5.44,5.8]
["4.1 - Nos meses restantes do ano - outubro a abril - as taxas prevista no número anterior serão reduzidas a 50%",null,null,null,"",null," ",null,null,null,null,null,null,null,null,null,null,null,null,null,null,null,null," ","","",""]
["4.2 - Também são reduzidas em 50% do valor indicado em 4, as esplanadas que se localizem fora do perímetro da Cidade de Amarante",null,null,null,"",null," ",null,null,null,null,null,null,null,null,null,null,null,null,null,null,null,null," ","","",""]
["5 - Arcas de gelados, brinquedos mecânicos e equipamentos similares - por m2 e por mês",null,null,null,9.65,null," ",null,null,null,null,null,null,null,null,null,null,null,null,null,null,null,8.8699999999999992,8.8699999999999992,8.8800000000000008,9.0399999999999991,9.65]
["6 - Rampas fixas ou móveis na via pública - por metro linear e por ano",null,null,null,10.93,null," ",null,null,null,null,null,null,null,null,null,null,null,null,null,null,null,10.050000000000001,10.050000000000001,10.06,10.24,10.93]
["7 - Vendedores ambulantes:",null,null,null,"",null," ",null,null,null,null,null,null,null,null,null,null,null,null,null,null,null,null," ","","",""]
["a) por metro quadrado e por dia",null,null,null,2.97,null," ",null,null,null,null,null,null,null,null,null,null,null,null,null,null,null,2.73,2.73,2.73,2.78,2.97]
["b) Com estabelecimento amovível diariamente (banca, estrado, barraca, stand ou semelhante) - por m2 e por dia",null,null,null,4.5,null," ",null,null,null,null,null,null,null,null,null,null,null,null,null,null,null,4.1500000000000004,4.1500000000000004,4.1500000000000004,4.22,4.5]
["c) Com veículo automóvel ou atrelado - por metro quadrado e por dia",null,null,null,6.06,null," ",null,null,null,null,null,null,null,null,null,null,null,null,null,null,null,5.57,5.57,5.58,5.68,6.06]
["8 - Outras ocupações do domínio público - por m2 e por dia",null,null,null,1.02,null,{"$f":"IF(F656=\"\",\" \",ROUND(E656*F656,2))","v":" "},null,null,null,null,null,null,null,null,null,null,null,null,null,null,null,0.94,0.94,0.94,0.96,1.02]
["9 - As taxas previstas na presente secção, bem como as previstas no nº 5 da secção V, serão reduzidas a 1/4 quando se destinem a ocupações decorrentes das festas da Cidade (junho)",null,null,null,"",null," ",null,null,null,null,null,null,null,null,null,null,null,null,null,null,null,null,{"$f":"IF(W657=0,\" \",IFERROR(IF(W657>0,ROUND(W657+W657*X$55,2),\" \"),\"\"))","v":" "},"","",""]
[null,null,null,null,"",null," ",null,null,null,null,null,null,null,null,null,null,null,null,null,null,null,null," ","","",""]
["Secção IV",null,null,null,"",null," ",null,null,null,null,null,null,null,null,null,null,null,null,null,null,null,null," ","","",""]
["Ocupações diversas do subsolo:",null,null,null,"",null," ",null,null,null,null,null,null,null,null,null,null,null,null,null,null,null,null," ","","",""]
[null,null,null,null,"",null," ",null,null,null,null,null,null,null,null,null,null,null,null,null,null,null,null," ","","",""]
["1 - Por cada emissão de alvará de licença ou autorização",null,null,null,5.79,null," ",null,null,null,null,null,null,null,null,null,null,null,null,null,null,null,5.32,5.32,5.33,5.43,5.79]
["2 - Averbamento ",null,null,null,5.79,null," ",null,null,null,null,null,null,null,null,null,null,null,null,null,null,null,5.32,5.32,5.33,5.43,5.79]
["3 - Tubos, condutas, cabos condutores e semelhantes - por metro linear e por ano:",null,null,null,1.38,null," ",null,null,null,null,null,null,null,null,null,null,null,null,null,null,null,1.27,1.27,1.27,1.29,1.38]
[null,null,null,null,"",null," ",null,null,null,null,null,null,null,null,null,null,null,null,null,null,null,null," ","","",""]
["Secção V",null,null,null,"",null," ",null,null,null,null,null,null,null,null,null,null,null,null,null,null,null,null," ","","",""]
["Construções ou instalações especiais no solo ou no subsolo",null,null,null,"",null," ",null,null,null,null,null,null,null,null,null,null,null,null,null,null,null,null," ","","",""]
[null,null,null,null,"",null," ",null,null,null,null,null,null,null,null,null,null,null,null,null,null,null,null," ","","",""]
["1 - Por cada emissão de alvará de licença ou autorização",null,null,null,5.79,null," ",null,null,null,null,null,null,null,null,null,null,null,null,null,null,null,5.32,5.32,5.33,5.43,5.79]
["2 - Averbamento ",null,null,null,5.79,null," ",null,null,null,null,null,null,null,null,null,null,null,null,null,null,null,5.32,5.32,5.33,5.43,5.79]
["3 - Cabine ou posto telefónico - por ano",null,null,null,17.350000000000001,null," ",null,null,null,null,null,null,null,null,null,null,null,null,null,null,null,15.95,15.95,15.97,16.260000000000002,17.350000000000001]
["4 - Posto de transformação, cabines eléctricas e semelhantes - por m3 e por ano:",null,null,null,"",null," ",null,null,null,null,null,null,null,null,null,null,null,null,null,null,null,null," ","","",""]
["a) Até 3 m3",null,null,null,17.350000000000001,null," ",null,null,null,null,null,null,null,null,null,null,null,null,null,null,null,15.95,15.95,15.97,16.260000000000002,17.350000000000001]
["b) Por cada m3 a mais",null,null,null,4.5,null," ",null,null,null,null,null,null,null,null,null,null,null,null,null,null,null,4.1500000000000004,4.1500000000000004,4.1500000000000004,4.22,4.5]
["5 - Construções ou instalações provisórias por motivo de festejos ou outras celebrações, para exercício de comércio ou indústria - por m2 ",null,null,null,"",null," ",null,null,null,null,null,null,null,null,null,null,null,null,null,null,null,null," ","","",""]
["a) Por dia",null,null,null,2.02,null," ",null,null,null,null,null,null,null,null,null,null,null,null,null,null,null,1.86,1.86,1.86,1.89,2.02]
["b) Por semana",null,null,null,10.16,null," ",null,null,null,null,null,null,null,null,null,null,null,null,null,null,null,9.34,{"$f":"IF(W677=0,\" \",IFERROR(IF(W677>0,ROUND(W677+W677*X$55,2),\" \"),\"\"))","v":9.34},9.35,9.52,10.16]
["c) Por mês",null,null,null,40.450000000000003,null," ",null,null,null,null,null,null,null,null,null,null,null,null,null,null,null,37.200000000000003,37.200000000000003,37.24,37.909999999999997,40.450000000000003]
["6 - Veículos automóveis e semelhantes estacionados para o exercício de comércio e indústria ou por motivo de festejos ou outras celebrações - por m2",null,null,null,"",null," ",null,null,null,null,null,null,null,null,null,null,null,null,null,null,null,null," ","","",""]
["a) Por dia",null,null,null,2.08,null," ",null,null,null,null,null,null,null,null,null,null,null,null,null,null,null,1.92,1.92,1.92,1.95,2.08]
["b) Por semana",null,null,null,5.6,null," ",null,null,null,null,null,null,null,null,null,null,null,null,null,null,null,5.15,5.15,5.16,5.25,5.6]
["c) Por mês",null,null,null,11.47,null," ",null,null,null,null,null,null,null,null,null,null,null,null,null,null,null,10.55,10.55,10.56,10.75,11.47]
["7 - Pavilhões, quiosques ou outras construções não incluídas nos números anteriores - por m2 e por mês:",null,null,null,7.08,null," ",null,null,null,null,null,null,null,null,null,null,null,null,null,null,null,6.51,6.51,6.52,6.64,7.08]
[null,null,null,null,"",null," ",null,null,null,null,null,null,null,null,null,null,null,null,null,null,null,null," ","","",""]
["Secção VI",null,null,null,"",null," ",null,null,null,null,null,null,null,null,null,null,null,null,null,null,null,null," ","","",""]
["Feiras e mercados",null,null,null,"",null," ",null,null,null,null,null,null,null,null,null,null,null,null,null,null,null,null," ","","",""]
[null,null,null,null,"",null," ",null,null,null,null,null,null,null,null,null,null,null,null,null,null,null,null," ","","",""]
["Ocupação de:",null,null,null,"",null," ",null,null,null,null,null,null,null,null,null,null,null,null,null,null,null,null," ","","",""]
["1 - Lojas, nos mercados municipais com acesso directo ao exterior por metro quadrado e por mês",null,null,null,4.62,null," ",null,null,null,null,null,null,null,null,null,null,null,null,null,null,null,4.25,4.25,4.25,4.33,4.62]
["2 - Talhos, peixarias, estabelecimentos, escritórios, arrecadações e similares, completamente fechados e com acesso pelo interior dos mercados, por metro quadrado e por mês",null,null,null,4.62,null," ",null,null,null,null,null,null,null,null,null,null,null,null,null,null,null,4.25,4.25,4.25,4.33,4.62]
["3 - Bancas ou outras instalações do Município nos mercados - por dia e por banca",null,null,null,1.62,null," ",null,null,null,null,null,null,null,null,null,null,null,null,null,null,null,1.49,1.49,1.49,1.52,1.62]
["4 - Lugares do terrado - por mercado ou feira",null,null,null,"",null," ",null,null,null,null,null,null,null,null,null,null,null,null,null,null,null,null," ","","",""]
["4.1 - Área coberta:",null,null,null,"",null," ",null,null,null,null,null,null,null,null,null,null,null,null,null,null,null,null," ","","",""]
["a) Por m2 ",null,null,null,1.06,null," ",null,null,null,null,null,null,null,null,null,null,null,null,null,null,null,0.97,0.97,0.97,0.99,1.06]
["4.2 - Área descoberta:",null,null,null,"",null," ",null,null,null,null,null,null,null,null,null,null,null,null,null,null,null,null," ","","",""]
["a) Até 20 m2 - por cada m2 ",null,null,null,0.69,null," ",null,null,null,null,null,null,null,null,null,null,null,null,null,null,null,0.64,0.64,0.64,0.65,0.69]
["b) Por cada m2 a mais",null,null,null,{"$f":"AA697","v":0.39},null," ",null,null,null,null,null,null,null,null,null,null,null,null,null,null,null,0.36,{"$f":"IF(W697=0,\" \",IFERROR(IF(W697>0,ROUND(W697+W697*X$55,2),\" \"),\"\"))","v":0.36},0.36,0.37,0.39]
["5 - Lugares de terrado não concessionados, por m2 e por dia",null,null,null,1.06,null," ",null,null,null,null,null,null,null,null,null,null,null,null,null,null,null,0.97,0.97,0.97,0.99,1.06]
[null,null,null,null,"",null," ",null,null,null,null,null,null,null,null,null,null,null,null,null,null,null,null," ","","",""]
["Secção VII",null,null,null,"",null," ",null,null,null,null,null,null,null,null,null,null,null,null,null,null,null,null," ","","",""]
["Tráfego e aparcamento",null,null,null,"",null," ",null,null,null,null,null,null,null,null,null,null,null,null,null,null,null,null," ","","",""]
[null,null,null,null,"",null," ",null,null,null,null,null,null,null,null,null,null,null,null,null,null,null,null," ","","",""]
["Subsecção I",null,null,null,"",null," ",null,null,null,null,null,null,null,null,null,null,null,null,null,null,null,null," ","","",""]
[" Zonas de estacionamento de duração limitada a que se refere o artigo 70º do Código da Estrada:",null,null,null,"",null," ",null,null,null,null,null,null,null,null,null,null,null,null,null,null,null,null," ","","",""]
["1 - Utilização dos espaços de estacionamento cronometrados por parcómetros ou outros aparelhos análogos, com limite máximo de 2 horas e por hora:",null,null,null,0.44,null," ",null,null,null,null,null,null,null,null,null,null,null,null,null,null,null,0.4,0.4,0.4,0.41,0.44]
["2 - Ocupação de lugares privativos de estacionamento, nos termos do art.º 179º do Código Regulamentar",null,null,null,1205.54,null," ",null,null,null,null,null,null,null,null,null,null,null,null,null,null,null,1108.75,1108.75,1109.8599999999999,1129.8399999999999,1205.54]
["3 - Cartão de residente - por cada cartão e por ano ",null,null,null,10.87,null," ",null,null,null,null,null,null,null,null,null,null,null,null,null,null,null,10,10,10.01,10.19,10.87]
[null,null,null,null,"",null," ",null,null,null,null,null,null,null,null,null,null,null,null,null,null,null,null," ","","",""]
["Subsecção II",null,null,null,"",null," ",null,null,null,null,null,null,null,null,null,null,null,null,null,null,null,null," ","","",""]
["Bloqueamento, remoção e depósito de viaturas abandonadas na via pública*",null,null,null,"",null," ",null,null,null,null,null,null,null,null,null,null,null,null,null,null,null,null," ","","",""]
[null,null,null,null,"",null," ",null,null,null,null,null,null,null,null,null,null,null,null,null,null,null,null," ","","",""]
["1 - Taxa de bloqueamento",null,null,null,"",null," ",null,null,null,null,null,null,null,null,null,null,null,null,null,null,null,null," ","","",""]
["a) ciclomotores, motociclos e outros veículos a motores não previstos nas alíneas seguintes",null,null,null,"",null," ",null,null,null,null,null,null,null,null,null,null,null,null,null,null,null,null," ","","",""]
["b) veículos ligeiros",null,null,null,"",null," ",null,null,null,null,null,null,null,null,null,null,null,null,null,null,null,null," ","","",""]
["c) veículos pesados",null,null,null,"",null," ",null,null,null,null,null,null,null,null,null,null,null,null,null,null,null,null," ","","",""]
["2 - Taxa de remoção",null,null,null,"",null," ",null,null,null,null,null,null,null,null,null,null,null,null,null,null,null,null," ","","",""]
["a) ciclomotores, motociclos e outros veículos a motores não previstos nas alíneas seguintes",null,null,null,"",null," ",null,null,null,null,null,null,null,null,null,null,null,null,null,null,null,null,{"$f":"IF(W717=0,\" \",IFERROR(IF(W717>0,ROUND(W717+W717*X$55,2),\" \"),\"\"))","v":" "},"","",""]
["b) veículos ligeiros",null,null,null,"",null," ",null,null,null,null,null,null,null,null,null,null,null,null,null,null,null,null," ","","",""]
["c) veículos pesados",null,null,null,"",null," ",null,null,null,null,null,null,null,null,null,null,null,null,null,null,null,null," ","","",""]
["3 - Taxa pelo depósito de um veículo em parque municipal, por cada período de 24h ou fracção",null,null,null,"",null,{"$f":"IF(F720=\"\",\" \",ROUND(E720*F720,2))","v":" "},null,null,null,null,null,null,null,null,null,null,null,null,null,null,null,null," ","","",""]
["a) ciclomotores, motociclos e outros veículos a motores não previstos nas alíneas seguintes",null,null,null,"",null," ",null,null,null,null,null,null,null,null,null,null,null,null,null,null,null,null," ","","",""]
["b) veículos ligeiros",null,null,null,"",null," ",null,null,null,null,null,null,null,null,null,null,null,null,null,null,null,null," ","","",""]
["c) veículos pesados",null,null,null,"",null," ",null,null,null,null,null,null,null,null,null,null,null,null,null,null,null,null," ","","",""]
["* - Portaria nº1334-F/2010, de 31 dezembro",null,null,null,"",null," ",null,null,null,null,null,null,null,null,null,null,null,null,null,null,null,null," ","","",""]
[null,null,null,null,"",null," ",null,null,null,null,null,null,null,null,null,null,null,null,null,null,null,null," ","","",""]
[null,null,null,null,"",null," ",null,null,null,null,null,null,null,null,null,null,null,null,null,null,null,null," ","","",""]
[null,null,null,null,"",null," ",null,null,null,null,null,null,null,null,null,null,null,null,null,null,null,null," ","","",""]
[null,null,null,null,"",null," ",null,null,null,null,null,null,null,null,null,null,null,null,null,null,null,null," ","","",""]
[null,null,null,null,"",null," ",null,null,null,null,null,null,null,null,null,null,null,null,null,null,null,null," ","","",""]
[null,null,null,null,"",null," ",null,null,null,null,null,null,null,null,null,null,null,null,null,null,null,null," ","","",""]
[null,null,null,null,"",null," ",null,null,null,null,null,null,null,null,null,null,null,null,null,null,null,null," ","","",""]
["CAPITULO IX",null,null,null,"",null," ",null,null,null,null,null,null,null,null,null,null,null,null,null,null,null,null," ","","",""]
["URBANISMO",null,null,null,"",null," ",null,null,null,null,null,null,null,null,null,null,null,null,null,null,null,null," ","","",""]
[null,null,null,null,"",null," ",null,null,null,null,null,null,null,null,null,null,null,null,null,null,null,null," ","","",""]
["Secção I",null,null,null,"",null," ",null,null,null,null,null,null,null,null,null,null,null,null,null,null,null,null," ","","",""]
["Operações de Loteamento",null,null,null,"",null,{"$f":"IF(F736=\"\",\" \",ROUND(E736*F736,2))","v":" "},null,null,null,null,null,null,null,null,null,null,null,null,null,null,null,null," ","","",""]
[null,null,null,null,"",null,{"$f":"IF(F737=\"\",\" \",ROUND(E737*F737,2))","v":" "},null,null,null,null,null,null,null,null,null,null,null,null,null,null,null,null,{"$f":"IF(W737=0,\" \",IFERROR(IF(W737>0,ROUND(W737+W737*X$55,2),\" \"),\"\"))","v":" "},"","",""]
["1 - Apresentação de Pedido de informação prévia ",null,null,null,72.069999999999993,null," ",null,null,null,null,null,null,null,null,null,null,null,null,null,null,null,66.28,66.28,66.349999999999994,67.540000000000006,72.069999999999993]
["2- Apreciação do pedido ",null,null,null,"",null," ",null,null,null,null,null,null,null,null,null,null,null,null,null,null,null,null," ","","",""]
["2.1 Até 10 lotes",null,null,null,163.09,null," ",null,null,null,null,null,null,null,null,null,null,null,null,null,null,null,150,150,150.15,152.85,163.09]
["2.2 Mais de 10 lotes",null,null,null,217.45,null," ",null,null,null,null,null,null,null,null,null,null,null,null,null,null,null,200,200,200.2,203.8,217.45]
["3- O pagamento das taxas definidas nos números anteriores é efetuado no ato de apresentação do pedido, sem o que aquele não é recebido",null,null,null,"",null," ",null,null,null,null,null,null,null,null,null,null,null,null,null,null,null,null," ","","",""]
["4 - Emissão de alvará de licença ou sua renovação",null,null,null,"",null," ",null,null,null,null,null,null,null,null,null,null,null,null,null,null,null,null," ","","",""]
["a) Por cada título",null,null,null,72.069999999999993,null," ",null,null,null,null,null,null,null,null,null,null,null,null,null,null,null,66.28,66.28,66.349999999999994,67.540000000000006,72.069999999999993]
["b) Por cada lote, acresce ao previsto na alínea anterior ",null,null,null,39.619999999999997,null," ",null,null,null,null,null,null,null,null,null,null,null,null,null,null,null,36.43,36.43,36.47,37.130000000000003,39.619999999999997]
["c) Por metro quadrado de area total de construção prevista, acresce ao previsto nas alíneas anteriores",null,null,null,1.96,null," ",null,null,null,null,null,null,null,null,null,null,null,null,null,null,null,1.81,1.81,1.81,1.84,1.96]
["5 - Aditamento ao título na sequência de alteração dos termos e condições da licença",null,null,null,"",null," ",null,null,null,null,null,null,null,null,null,null,null,null,null,null,null,null," ","","",""]
["a) Apreciação do pedido",null,null,null,70.680000000000007,null," ",null,null,null,null,null,null,null,null,null,null,null,null,null,null,null,65,65,65.069999999999993,66.239999999999995,70.680000000000007]
["b) Por cada título",null,null,null,72.069999999999993,null," ",null,null,null,null,null,null,null,null,null,null,null,null,null,null,null,66.28,66.28,66.349999999999994,67.540000000000006,72.069999999999993]
["c) Pela variação do número de lotes, acresce por cada lote",null,null,null,39.619999999999997,null," ",null,null,null,null,null,null,null,null,null,null,null,null,null,null,null,36.43,36.43,36.47,37.130000000000003,39.619999999999997]
["d) Pela variação de metros quadrados da area total de construção, acresce por cada m2",null,null,null,1.96,null," ",null,null,null,null,null,null,null,null,null,null,null,null,null,null,null,1.81,1.81,1.81,1.84,1.96]
["6-  Aditamento simplificado ao título ",null,null,null,28.8,null," ",null,null,null,null,null,null,null,null,null,null,null,null,null,null,null,26.48,26.48,26.51,26.99,28.8]
["b) Pela variação do número de lotes (se aplicável), acresce por cada lote",null,null,null,39.619999999999997,null," ",null,null,null,null,null,null,null,null,null,null,null,null,null,null,null,36.43,36.43,36.47,37.130000000000003,39.619999999999997]
["c) Pela variação de metros quadrados da area total de construção, acresce por cada m2",null,null,null,1.96,null," ",null,null,null,null,null,null,null,null,null,null,null,null,null,null,null,1.81,1.81,1.81,1.84,1.96]
["7 - Averbamento por substituição do requerente ou comunicante, do responsável por qualquer dos projectos apresentados ou técnico responsavel pela exeução da obra e empreiteiro",null,null,null,15.26,null," ",null,null,null,null,null,null,null,null,null,null,null,null,null,null,null,14.04,14.04,14.05,14.3,15.26]
["8- Consulta Pública (à taxa fixada acrescem os encargos que o Município efetivamente suporte com as respetivas publicações)",null,null,null,32.619999999999997,null," ",null,null,null,null,null,null,null,null,null,null,null,null,null,null,null,30,30,30.03,30.57,32.619999999999997]
["9 - Notificação para pronúncia através de edital",null,null,null,38.06,null," ",null,null,null,null,null,null,null,null,null,null,null,null,null,null,null,35,{"$f":"IF(W757=0,\" \",IFERROR(IF(W757>0,ROUND(W757+W757*X$55,2),\" \"),\"\"))","v":35},35.04,35.67,38.06]
["10- Publicitação do título",null,null,null,221.14,null," ",null,null,null,null,null,null,null,null,null,null,null,null,null,null,null,203.39,203.39,203.59,207.25,221.14]
["11- Declaração de manutenção dos pressupostos do pedido de informação prévia",null,null,null,43.49,null," ",null,null,null,null,null,null,null,null,null,null,null,null,null,null,null,40,40,40.04,40.76,43.49]
["12 -  Junção de elementos para suprimento de deficiências/incumprimentos ou apresentação de novos elementos (por cada junção), acrescem, se aplicável, as taxas respetivas em função das alterações",null,null,null,21.75,null," ",null,null,null,null,null,null,null,null,null,null,null,null,null,null,null,20,20,20.02,20.38,21.75]
[null,null,null,null,{"$f":"AA761","v":""},null," ",null,null,null,null,null,null,null,null,null,null,null,null,null,null,null,null," ","","",""]
["Secção II",null,null,null,"",null," ",null,null,null,null,null,null,null,null,null,null,null,null,null,null,null,null," ","","",""]
["Obras de Urbanização",null,null,null,"",null," ",null,null,null,null,null,null,null,null,null,null,null,null,null,null,null,null," ","","",""]
[null,null,null,null,"",null," ",null,null,null,null,null,null,null,null,null,null,null,null,null,null,null,null," ","","",""]
["1 - Apresentação de Pedido de informação prévia ",null,null,null,72.069999999999993,null," ",null,null,null,null,null,null,null,null,null,null,null,null,null,null,null,66.28,66.28,66.349999999999994,67.540000000000006,72.069999999999993]
["2- Apreciação do pedido inicial",null,null,null,108.73,null," ",null,null,null,null,null,null,null,null,null,null,null,null,null,null,null,100,100,100.1,101.9,108.73]
["3- O pagamento das taxas definidas nos números anteriores é efetuado no ato de apresentação do pedido, sem o que aquele não é recebido",null,null,null,"",null," ",null,null,null,null,null,null,null,null,null,null,null,null,null,null,null,null," ","","",""]
["4 - Emissão de alvará de licença ou sua renovação",null,null,null,"",null," ",null,null,null,null,null,null,null,null,null,null,null,null,null,null,null,null," ","","",""]
["a) Por cada título",null,null,null,72.069999999999993,null," ",null,null,null,null,null,null,null,null,null,null,null,null,null,null,null,66.28,66.28,66.349999999999994,67.540000000000006,72.069999999999993]
["b) Em função do prazo: acresce ao montante previsto na alínea anterior, por cada período de 30 dias",null,null,null,34.21,null,{"$f":"IF(F770=\"\",\" \",E770*CEILING(F770/30,1))","v":" "},null,null,null,null,null,null,null,null,null,null,null,null,null,null,null,31.46,31.46,31.49,32.06,34.21]
["c) Em função do valor orçamentado: acresce ainda ao montante previsto nas alíneas anteriores 1% do valor orçamentado das obras a efectuar ",null,null,null,"",null,{"$f":"IF(F771=\"\",\" \",ROUND(0.01*F771,2))","v":" "},null,null,null,null,null,null,null,null,null,null,null,null,null,null,null,null," ","","",""]
["5 - Aditamento ao título na sequência de alteração dos termos e condições da licença ou comunicação prévia",null,null,null,"",null,{"$f":"IF(F772=\"\",\" \",ROUND(E772*F772,2))","v":" "},null,null,null,null,null,null,null,null,null,null,null,null,null,null,null,null," ","","",""]
["a) Apreciação do pedido",null,null,null,70.680000000000007,null,{"$f":"IF(F773=\"\",\" \",ROUND(E773*F773,2))","v":" "},null,null,null,null,null,null,null,null,null,null,null,null,null,null,null,65,65,65.069999999999993,66.239999999999995,70.680000000000007]
["b) Por cada título",null,null,null,72.069999999999993,null," ",null,null,null,null,null,null,null,null,null,null,null,null,null,null,null,66.28,66.28,66.349999999999994,67.540000000000006,72.069999999999993]
["c) Em função do prazo adicional: acresce ao montante previsto na alínea anterior, por cada período de 30 dias ",null,null,null,34.21,null,{"$f":"IF(F775=\"\",\" \",E775*CEILING(F775/30,1))","v":" "},null,null,null,null,null,null,null,null,null,null,null,null,null,null,null,31.46,31.46,31.49,32.06,34.21]
["d) Em função das alterações aprovadas:acresce ainda ao montante previsto nas alíneas anteriores 1% do valor da diferença orçamentada ",null,null,null,"",null,{"$f":"IF(F776=\"\",\" \",ROUND(0.01*F776,2))","v":" "},null,null,null,null,null,null,null,null,null,null,null,null,null,null,null,null," ","","",""]
["6 - Averbamento por substituição do requerente ou comunicante, do responsável por qualquer dos projectos apresentados ou técnico responsavel pela exeução da obra e empreiteiro",null,null,null,15.26,null,{"$f":"IF(F777=\"\",\" \",ROUND(E777*F777,2))","v":" "},null,null,null,null,null,null,null,null,null,null,null,null,null,null,null,14.04,{"$f":"IF(W777=0,\" \",IFERROR(IF(W777>0,ROUND(W777+W777*X$55,2),\" \"),\"\"))","v":14.04},14.05,14.3,15.26]
["7 - Prorrogação do prazo de execução das obras:",null,null,null,"",null,{"$f":"IF(F778=\"\",\" \",ROUND(E778*F778,2))","v":" "},null,null,null,null,null,null,null,null,null,null,null,null,null,null,null,null," ","","",""]
["a) Por cada período de 30 dias ",null,null,null,37.46,null,{"$f":"IF(F779=\"\",\" \",E779*CEILING(F779/30,1))","v":" "},null,null,null,null,null,null,null,null,null,null,null,null,null,null,null,34.46,34.46,34.49,35.11,37.46]
["8 - Execução faseada de obras de urbanização:",null,null,null,"",null,{"$f":"IF(F780=\"\",\" \",ROUND(E780*F780,2))","v":" "},null,null,null,null,null,null,null,null,null,null,null,null,null,null,null,null," ","","",""]
["a) Emissão do alvará do título correspondente à primeira fase ",null,null,null,72.069999999999993,null,{"$f":"IF(F781=\"\",\" \",ROUND(E781*F781,2))","v":" "},null,null,null,null,null,null,null,null,null,null,null,null,null,null,null,66.28,66.28,66.349999999999994,67.540000000000006,72.069999999999993]
["b) Aditamento ao título referente às fases subsequentes ",null,null,null,72.069999999999993,null," ",null,null,null,null,null,null,null,null,null,null,null,null,null,null,null,66.28,66.28,66.349999999999994,67.540000000000006,72.069999999999993]
["9 - Licença especial para conclusão de obras inacabadas:",null,null,null,"",null," ",null,null,null,null,null,null,null,null,null,null,null,null,null,null,null,null," ","","",""]
["a) Por cada título ",null,null,null,72.069999999999993,null," ",null,null,null,null,null,null,null,null,null,null,null,null,null,null,null,66.28,66.28,66.349999999999994,67.540000000000006,72.069999999999993]
["b) Em função do prazo adicional, acresce ao previsto na alínea anterior, por cada período de 30 dias ",null,null,null,34.21,null,{"$f":"IF(F785=\"\",\" \",E785*CEILING(F785/30,1))","v":" "},null,null,null,null,null,null,null,null,null,null,null,null,null,null,null,31.46,31.46,31.49,32.06,34.21]
["c) Em função do valor orçamentado das obras a efectuar: acresce ainda ao montante previsto nas alíneas anteriores 1% do valor orçamentado das obras a efectuar ",null,null,null,"",null,{"$f":"IF(F786=\"\",\" \",ROUND(0.01*F786,2))","v":" "},null,null,null,null,null,null,null,null,null,null,null,null,null,null,null,null," ","","",""]
["10 - Publicitação do título: custo da publicação",null,null,null,221.14,null,{"$f":"IF(F787=\"\",\" \",ROUND(E787*F787,2))","v":" "},null,null,null,null,null,null,null,null,null,null,null,null,null,null,null,203.39,203.39,203.59,207.25,221.14]
["11 -  Junção de elementos para suprimento de deficiências/incumprimentos ou apresentação de novos elementos (por cada junção), acrescem, se aplicável, as taxas respetivas em função das alterações",null,null,null,21.75,null,{"$f":"IF(F788=\"\",\" \",ROUND(E788*F788,2))","v":" "},null,null,null,null,null,null,null,null,null,null,null,null,null,null,null,20,20,20.02,20.38,21.75]
["12- Declaração de manutenção dos pressupostos do pedido de informação prévia",null,null,null,43.49,null," ",null,null,null,null,null,null,null,null,null,null,null,null,null,null,null,40,40,40.04,40.76,43.49]
[null,null,null,null,"",null," ",null,null,null,null,null,null,null,null,null,null,null,null,null,null,null,null," ","","",""]
["Secção III",null,null,null,"",null," ",null,null,null,null,null,null,null,null,null,null,null,null,null,null,null,null," ","","",""]
["Loteamentos com obras de urbanização",null,null,null,"",null," ",null,null,null,null,null,null,null,null,null,null,null,null,null,null,null,null," ","","",""]
[null,null,null,null,"",null," ",null,null,null,null,null,null,null,null,null,null,null,null,null,null,null,null," ","","",""]
["1 - Apresentação de Pedido de informação prévia ",null,null,null,72.069999999999993,null," ",null,null,null,null,null,null,null,null,null,null,null,null,null,null,null,66.28,66.28,66.349999999999994,67.540000000000006,72.069999999999993]
["2- Apreciação do pedido inicial",null,null,null,"",null," ",null,null,null,null,null,null,null,null,null,null,null,null,null,null,null,null," ","","",""]
["2.1 Até 10 lotes",null,null,null,163.09,null," ",null,null,null,null,null,null,null,null,null,null,null,null,null,null,null,150,150,150.15,152.85,163.09]
["2.2 Mais de 10 lotes",null,null,null,217.45,null," ",null,null,null,null,null,null,null,null,null,null,null,null,null,null,null,200,{"$f":"IF(W797=0,\" \",IFERROR(IF(W797>0,ROUND(W797+W797*X$55,2),\" \"),\"\"))","v":200},200.2,203.8,217.45]
["3- O pagamento das taxas definidas nos números anteriores é efetuado no ato de apresentação do pedido, sem o que aquele não é recebido",null,null,null,"",null," ",null,null,null,null,null,null,null,null,null,null,null,null,null,null,null,null," ","","",""]
["4 - Emissão de alvará de licença ou sua renovação",null,null,null,"",null," ",null,null,null,null,null,null,null,null,null,null,null,null,null,null,null,null," ","","",""]
["a) Por cada título",null,null,null,72.069999999999993,null," ",null,null,null,null,null,null,null,null,null,null,null,null,null,null,null,66.28,66.28,66.349999999999994,67.540000000000006,72.069999999999993]
["b) Por cada lote, acresce ao previsto na alínea anterior ",null,null,null,39.619999999999997,null," ",null,null,null,null,null,null,null,null,null,null,null,null,null,null,null,36.43,36.43,36.47,37.130000000000003,39.619999999999997]
["c) Por metro quadrado de area total de construção prevista, acresce ao previsto nas alíneas anteriores",null,null,null,1.96,null," ",null,null,null,null,null,null,null,null,null,null,null,null,null,null,null,1.81,1.81,1.81,1.84,1.96]
["d) Em função do prazo: acresce ao montante previsto na alínea anterior, por cada período de 30 dias",null,null,null,34.21,null,{"$f":"IF(F803=\"\",\" \",E803*CEILING(F803/30,1))","v":" "},null,null,null,null,null,null,null,null,null,null,null,null,null,null,null,31.46,31.46,31.49,32.06,34.21]
["e) Em função do valor orçamentado: acresce ainda ao montante previsto nas alíneas anteriores 1% do valor orçamentado das obras a efectuar ",null,null,null,"",null,{"$f":"IF(F804=\"\",\" \",ROUND(0.01*F804,2))","v":" "},null,null,null,null,null,null,null,null,null,null,null,null,null,null,null,null," ","","",""]
["5 - Aditamento ao título na sequência de alteração dos termos e condições da licença ou comunicação prévia",null,null,null,"",null,{"$f":"IF(F805=\"\",\" \",ROUND(E805*F805,2))","v":" "},null,null,null,null,null,null,null,null,null,null,null,null,null,null,null,null," ","","",""]
["a) Apreciação do pedido",null,null,null,70.680000000000007,null,{"$f":"IF(F806=\"\",\" \",ROUND(E806*F806,2))","v":" "},null,null,null,null,null,null,null,null,null,null,null,null,null,null,null,65,65,65.069999999999993,66.239999999999995,70.680000000000007]
["a) Por cada título",null,null,null,72.069999999999993,null," ",null,null,null,null,null,null,null,null,null,null,null,null,null,null,null,66.28,66.28,66.349999999999994,67.540000000000006,72.069999999999993]
["b) Pela variação do número de lotes (por lote)",null,null,null,39.619999999999997,null," ",null,null,null,null,null,null,null,null,null,null,null,null,null,null,null,36.43,36.43,36.47,37.130000000000003,39.619999999999997]
["c) Pela variação de metros quadrados da area total de construção (por m2)",null,null,null,1.96,null," ",null,null,null,null,null,null,null,null,null,null,null,null,null,null,null,1.81,1.81,1.81,1.84,1.96]
["d) Em função do prazo adicional: acresce ao montante previsto na alínea anterior, por cada período de 30 dias ",null,null,null,34.21,null,{"$f":"IF(F810=\"\",\" \",E810*CEILING(F810/30,1))","v":" "},null,null,null,null,null,null,null,null,null,null,null,null,null,null,null,31.46,31.46,31.49,32.06,34.21]
["e) Em função das alterações aprovadas:acresce ainda ao montante previsto nas alíneas anteriores 1% do valor da diferença orçamentada ",null,null,null,"",null,{"$f":"IF(F811=\"\",\" \",ROUND(0.01*F811,2))","v":" "},null,null,null,null,null,null,null,null,null,null,null,null,null,null,null,null," ","","",""]
["6-  Averbamento por substituição do requerente ou comunicante, do responsável por qualquer dos projectos apresentados ou técnico responsavel pela exeução da obra e empreiteiro",null,null,null,15.26,null,{"$f":"IF(F812=\"\",\" \",ROUND(E812*F812,2))","v":" "},null,null,null,null,null,null,null,null,null,null,null,null,null,null,null,14.04,14.04,14.05,14.3,15.26]
["7 - Prorrogação do prazo de execução das obras:",null,null,null,"",null,{"$f":"IF(F813=\"\",\" \",ROUND(E813*F813,2))","v":" "},null,null,null,null,null,null,null,null,null,null,null,null,null,null,null,null," ","","",""]
["a) Por cada período de 30 dias ",null,null,null,34.21,null,{"$f":"IF(F814=\"\",\" \",E814*CEILING(F814/30,1))","v":" "},null,null,null,null,null,null,null,null,null,null,null,null,null,null,null,31.46,31.46,31.49,32.06,34.21]
["8 - Execução faseada de obras de urbanização:",null,null,null,"",null,{"$f":"IF(F815=\"\",\" \",ROUND(E815*F815,2))","v":" "},null,null,null,null,null,null,null,null,null,null,null,null,null,null,null,null," ","","",""]
["a) Emissão do alvará do título correspondente à primeira fase ",null,null,null,72.069999999999993,null,{"$f":"IF(F816=\"\",\" \",ROUND(E816*F816,2))","v":" "},null,null,null,null,null,null,null,null,null,null,null,null,null,null,null,66.28,66.28,66.349999999999994,67.540000000000006,72.069999999999993]
["b) Aditamento ao título referente às fases subsequentes ",null,null,null,72.069999999999993,null," ",null,null,null,null,null,null,null,null,null,null,null,null,null,null,null,66.28,{"$f":"IF(W817=0,\" \",IFERROR(IF(W817>0,ROUND(W817+W817*X$55,2),\" \"),\"\"))","v":66.28},66.349999999999994,67.540000000000006,72.069999999999993]
["9 - Licença especial para conclusão de obras inacabadas:",null,null,null,"",null," ",null,null,null,null,null,null,null,null,null,null,null,null,null,null,null,null," ","","",""]
["a) Por cada título ",null,null,null,72.069999999999993,null," ",null,null,null,null,null,null,null,null,null,null,null,null,null,null,null,66.28,66.28,66.349999999999994,67.540000000000006,72.069999999999993]
["b) Em função do prazo adicional, acresce ao previsto na alínea anterior, por cada período de 30 dias ",null,null,null,34.21,null,{"$f":"IF(F820=\"\",\" \",E820*CEILING(F820/30,1))","v":" "},null,null,null,null,null,null,null,null,null,null,null,null,null,null,null,31.46,31.46,31.49,32.06,34.21]
["c) Em função do valor orçamentado das obras a efectuar: acresce ainda ao montante previsto nas alíneas anteriores 1% do valor orçamentado das obras a efectuar ",null,null,null,"",null,{"$f":"IF(F821=\"\",\" \",ROUND(0.01*F821,2))","v":" "},null,null,null,null,null,null,null,null,null,null,null,null,null,null,null,null," ","","",""]
["10- Consulta Pública (à taxa fixada acrescem os encargos que o Município efetivamente suporte com as respetivas publicações)",null,null,null,32.619999999999997,null,{"$f":"IF(F822=\"\",\" \",ROUND(E822*F822,2))","v":" "},null,null,null,null,null,null,null,null,null,null,null,null,null,null,null,30,30,30.03,30.57,32.619999999999997]
["11 - Notificação para pronúncia através de edital",null,null,null,38.06,null,{"$f":"IF(F823=\"\",\" \",ROUND(E823*F823,2))","v":" "},null,null,null,null,null,null,null,null,null,null,null,null,null,null,null,35,35,35.04,35.67,38.06]
["12 - Publicitação do título",null,null,null,221.14,null," ",null,null,null,null,null,null,null,null,null,null,null,null,null,null,null,203.39,203.39,203.59,207.25,221.14]
["13- Declaração de manutenção dos pressupostos do pedido de informação prévia",null,null,null,{"$f":"AA825","v":43.49},null," ",null,null,null,null,null,null,null,null,null,null,null,null,null,null,null,40,40,40.04,40.76,43.49]
["14 -  Junção de elementos para suprimento de deficiências/incumprimentos ou apresentação de novos elementos (por cada junção), acrescem, se aplicável, as taxas respetivas em função das alterações",null,null,null,21.75,null," ",null,null,null,null,null,null,null,null,null,null,null,null,null,null,null,20,20,20.02,20.38,21.75]
[null,null,null,null,"",null," ",null,null,null,null,null,null,null,null,null,null,null,null,null,null,null,null," ","","",""]
["Secção IV",null,null,null,"",null," ",null,null,null,null,null,null,null,null,null,null,null,null,null,null,null,null," ","","",""]
["Trabalhos de remodelação de terrenos",null,null,null,"",null," ",null,null,null,null,null,null,null,null,null,null,null,null,null,null,null,null," ","","",""]
[null,null,null,null,"",null," ",null,null,null,null,null,null,null,null,null,null,null,null,null,null,null,null," ","","",""]
["1 - Apresentação de Pedido de informação prévia ",null,null,null,72.069999999999993,null," ",null,null,null,null,null,null,null,null,null,null,null,null,null,null,null,66.28,66.28,66.349999999999994,67.540000000000006,72.069999999999993]
["2- Apreciação do pedido inicial",null,null,null,163.09,null," ",null,null,null,null,null,null,null,null,null,null,null,null,null,null,null,150,150,150.15,152.85,163.09]
["3- O pagamento das taxas definidas nos números anteriores é efetuado no ato de apresentação do pedido, sem o que aquele não é recebido",null,null,null,"",null," ",null,null,null,null,null,null,null,null,null,null,null,null,null,null,null,null," ","","",""]
["4 - Emissão de alvará de licença ou sua renovação",null,null,null,"",null," ",null,null,null,null,null,null,null,null,null,null,null,null,null,null,null,null," ","","",""]
["a) Por cada título ",null,null,null,72.069999999999993,null," ",null,null,null,null,null,null,null,null,null,null,null,null,null,null,null,66.28,66.28,66.349999999999994,67.540000000000006,72.069999999999993]
["b) Por metro quadrado da area intervencionada, a acrescer ao montante previsto na alínea anterior ",null,null,null,0.03,null," ",null,null,null,null,null,null,null,null,null,null,null,null,null,null,null,0.03,0.03,0.03,0.03,0.03]
["c) Por metro cúbico do volume de terras a movimentar, a acrescer ao montante previsto nas alíneas anteriores",null,null,null,0.12,null," ",null,null,null,null,null,null,null,null,null,null,null,null,null,null,null,0.11,{"$f":"IF(W837=0,\" \",IFERROR(IF(W837>0,ROUND(W837+W837*X$55,2),\" \"),\"\"))","v":0.11},0.11,0.11,0.12]
["d) Em função do prazo: acresce ainda ao montante previsto nas alíneas anteriores, por cada período de 30 dias ",null,null,null,6.84,null,{"$f":"IF(F838=\"\",\" \",E838*CEILING(F838/30,1))","v":" "},null,null,null,null,null,null,null,null,null,null,null,null,null,null,null,6.29,6.29,6.3,6.41,6.84]
["5 - Aditamento ao título na sequência de alteração dos termos e condições da licença",null,null,null,"",null,{"$f":"IF(F839=\"\",\" \",ROUND(E839*F839,2))","v":" "},null,null,null,null,null,null,null,null,null,null,null,null,null,null,null,null," ","","",""]
["a) Apreciação do pedido",null,null,null,70.680000000000007,null,{"$f":"IF(F840=\"\",\" \",ROUND(E840*F840,2))","v":" "},null,null,null,null,null,null,null,null,null,null,null,null,null,null,null,65,65,65.069999999999993,66.239999999999995,70.680000000000007]
["b) Por cada título ",null,null,null,72.069999999999993,null," ",null,null,null,null,null,null,null,null,null,null,null,null,null,null,null,66.28,66.28,66.349999999999994,67.540000000000006,72.069999999999993]
["c) Nos casos em que o aditamento titule um aumento da área da operação urbanística e/ou volume de terras a movimentar aplicam-se ainda as taxas previstas nas alíneas b), c) e d) do número anterior, que incidem sobre o aumento autorizado",null,null,null,"",null," ",null,null,null,null,null,null,null,null,null,null,null,null,null,null,null,null," ","","",""]
["6-  Averbamento por substituição do requerente ou comunicante, do responsável por qualquer dos projectos apresentados ou técnico responsavel pela exeução da obra e empreiteiro",null,null,null,15.26,null," ",null,null,null,null,null,null,null,null,null,null,null,null,null,null,null,14.04,14.04,14.05,14.3,15.26]
["7 - Prorrogação do prazo de execução dos trabalhos:",null,null,null,"",null," ",null,null,null,null,null,null,null,null,null,null,null,null,null,null,null,null," ","","",""]
["a) Por cada período de 30 dias ",null,null,null,12.57,null,{"$f":"IF(F845=\"\",\" \",E845*CEILING(F845/30,1))","v":" "},null,null,null,null,null,null,null,null,null,null,null,null,null,null,null,11.56,11.56,11.57,11.78,12.57]
["8 - Licença especial para conclusão de trabalhos inacabados ",null,null,null,"",null,{"$f":"IF(F846=\"\",\" \",ROUND(E846*F846,2))","v":" "},null,null,null,null,null,null,null,null,null,null,null,null,null,null,null,null," ","","",""]
["a) Por cada título ",null,null,null,72.069999999999993,null,{"$f":"IF(F847=\"\",\" \",ROUND(E847*F847,2))","v":" "},null,null,null,null,null,null,null,null,null,null,null,null,null,null,null,66.28,66.28,66.349999999999994,67.540000000000006,72.069999999999993]
["b) Em função do prazo adicional, acresce ao montante previsto na alínea anterior, por cada período de 30 dias",null,null,null,12.57,null,{"$f":"IF(F848=\"\",\" \",E848*CEILING(F848/30,1))","v":" "},null,null,null,null,null,null,null,null,null,null,null,null,null,null,null,11.56,11.56,11.57,11.78,12.57]
["c) Em função do valor orçamentado: acresce ainda ao previsto nas alíneas anteriores 1% do valor orçamentado das obras a efectuar ",null,null,null,"",null,{"$f":"IF(F849=\"\",\" \",ROUND(0.01*F849,2))","v":" "},null,null,null,null,null,null,null,null,null,null,null,null,null,null,null,null," ","","",""]
["9 - Publicitação do título: custo da publicação",null,null,null,31.5,null,{"$f":"IF(F850=\"\",\" \",ROUND(E850*F850,2))","v":" "},null,null,null,null,null,null,null,null,null,null,null,null,null,null,null,28.97,28.97,29,29.52,31.5]
["10- Declaração de manutenção dos pressupostos do pedido de informação prévia",null,null,null,43.49,null,{"$f":"IF(F851=\"\",\" \",ROUND(E851*F851,2))","v":" "},null,null,null,null,null,null,null,null,null,null,null,null,null,null,null,40,40,40.04,40.76,43.49]
["11 -  Junção de elementos para suprimento de deficiências/incumprimentos ou apresentação de novos elementos (por cada junção), acrescem, se aplicável, as taxas respetivas em função das alterações",null,null,null,21.75,null," ",null,null,null,null,null,null,null,null,null,null,null,null,null,null,null,20,20,20.02,20.38,21.75]
[null,null,null,null,"",null," ",null,null,null,null,null,null,null,null,null,null,null,null,null,null,null,null," ","","",""]
["Secção V",null,null,null,"",null," ",null,null,null,null,null,null,null,null,null,null,null,null,null,null,null,null," ","","",""]
["Obras de Edificação (Construção, Reconstrução, Ampliação e Alteração) e de Demolição das Edificações",null,null,null,"",null," ",null,null,null,null,null,null,null,null,null,null,null,null,null,null,null,null," ","","",""]
[null,null,null,null,"",null," ",null,null,null,null,null,null,null,null,null,null,null,null,null,null,null,null," ","","",""]
["1 - Apresentação de Pedido de informação prévia ",null,null,null,72.069999999999993,null," ",null,null,null,null,null,null,null,null,null,null,null,null,null,null,null,66.28,{"$f":"IF(W857=0,\" \",IFERROR(IF(W857>0,ROUND(W857+W857*X$55,2),\" \"),\"\"))","v":66.28},66.349999999999994,67.540000000000006,72.069999999999993]
["2 - Apresentação de pedido de licenciamento/comunicação prévia",null,null,null,163.09,null," ",null,null,null,null,null,null,null,null,null,null,null,null,null,null,null,150,150,150.15,152.85,163.09]
["3- Apreciação do pedido inicial ",null,null,null,163.09,null," ",null,null,null,null,null,null,null,null,null,null,null,null,null,null,null,150,150,150.15,152.85,163.09]
["4- O pagamento das taxas definidas nos números anteriores é efetuado no ato de apresentação do pedido, sem o que aquele não é recebido",null,null,null,"",null," ",null,null,null,null,null,null,null,null,null,null,null,null,null,null,null,null," ","","",""]
["5 - Emissão de alvará de licença ou sua renovação",null,null,null,"",null," ",null,null,null,null,null,null,null,null,null,null,null,null,null,null,null,null," ","","",""]
["5.1 - Por cada título:",null,null,null,72.069999999999993,null," ",null,null,null,null,null,null,null,null,null,null,null,null,null,null,null,66.28,66.28,66.349999999999994,67.540000000000006,72.069999999999993]
["5.2 - Acresce ao montante previsto no ponto anterior:",null,null,null,"",null," ",null,null,null,null,null,null,null,null,null,null,null,null,null,null,null,null," ","","",""]
["a) Prazo de execução das obras: por cada período de 30 dias ",null,null,null,6.84,null,{"$f":"IF(F864=\"\",\" \",E864*CEILING(F864/30,1))","v":" "},null,null,null,null,null,null,null,null,null,null,null,null,null,null,null,6.29,6.29,6.3,6.41,6.84]
["b) Acresce, nas obras de construção, reconstrução e ampliação, por m2 de area destinada a:",null,null,null,"",null,{"$f":"IF(F865=\"\",\" \",ROUND(E865*F865,2))","v":" "},null,null,null,null,null,null,null,null,null,null,null,null,null,null,null,null," ","","",""]
["b1) Habitação e turismo rural ",null,null,null,2.78,null,{"$f":"IF(F866=\"\",\" \",ROUND(E866*F866,2))","v":" "},null,null,null,null,null,null,null,null,null,null,null,null,null,null,null,2.56,2.56,2.56,2.61,2.78]
["b2) Comércio, serviços, emprendimentos turísticos e estabelecimentos de alojamento local",null,null,null,2.5099999999999998,null," ",null,null,null,null,null,null,null,null,null,null,null,null,null,null,null,2.31,2.31,2.31,2.35,2.5099999999999998]
["b3) Industria, oficinas, armazens e estacionamentos",null,null,null,1.84,null," ",null,null,null,null,null,null,null,null,null,null,null,null,null,null,null,1.69,1.69,1.69,1.72,1.84]
["b4) Equipamentos de utilização colectiva não integrado em empreendimentos turísticos",null,null,null,0.99,null," ",null,null,null,null,null,null,null,null,null,null,null,null,null,null,null,0.91,0.91,0.91,0.93,0.99]
["b5) Instalações destinadas exclusivamente a usos agrícolas ",null,null,null,0.99,null," ",null,null,null,null,null,null,null,null,null,null,null,null,null,null,null,0.91,0.91,0.91,0.93,0.99]
["c) por metro linear de muros de vedação ou de suporte ",null,null,null,0.99,null," ",null,null,null,null,null,null,null,null,null,null,null,null,null,null,null,0.91,0.91,0.91,0.93,0.99]
["d) Por m3, tanques, cubas e outros depósitos ",null,null,null,5.5,null," ",null,null,null,null,null,null,null,null,null,null,null,null,null,null,null,5.05,5.05,5.0599999999999996,5.15,5.5]
["e) Por m2 de piscinas ",null,null,null,0.81,null," ",null,null,null,null,null,null,null,null,null,null,null,null,null,null,null,0.75,0.75,0.75,0.76,0.81]
["5.3 - Acresce ao montante previsto no 5.1. e 5.2.a) nas obras de alteração ou conservação:",null,null,null,"",null," ",null,null,null,null,null,null,null,null,null,null,null,null,null,null,null,null," ","","",""]
["a) Em função do valor orçamentado: 1% do valor orçamentado das obras a efectuar ",null,null,null,"",null,{"$f":"IF(F875=\"\",\" \",ROUND(0.01*F875,2))","v":" "},null,null,null,null,null,null,null,null,null,null,null,null,null,null,null,null," ","","",""]
["b) Em caso de alteração do número de fogos e/ou alteração do destino de utilização, por m2 de area total de construção alterada",null,null,null,0.99,null,{"$f":"IF(F876=\"\",\" \",ROUND(E876*F876,2))","v":" "},null,null,null,null,null,null,null,null,null,null,null,null,null,null,null,0.91,0.91,0.91,0.93,0.99]
["5.4 - Acresce ao montante previsto no 5.1. e 5.2.a), nas obras de demolição:",null,null,null,"",null,{"$f":"IF(F877=\"\",\" \",ROUND(E877*F877,2))","v":" "},null,null,null,null,null,null,null,null,null,null,null,null,null,null,null,null,{"$f":"IF(W877=0,\" \",IFERROR(IF(W877>0,ROUND(W877+W877*X$55,2),\" \"),\"\"))","v":" "},"","",""]
["a) Em função do valor orçamentado: 1% do valor orçamentado das obras de demolição ",null,null,null,"",null,{"$f":"IF(F878=\"\",\" \",ROUND(0.01*F878,2))","v":" "},null,null,null,null,null,null,null,null,null,null,null,null,null,null,null,null," ","","",""]
["6 - Aditamento ao título na sequência de alteração dos termos e condições da licença ou admissão da comunicação prévia",null,null,null,"",null,{"$f":"IF(F879=\"\",\" \",ROUND(E879*F879,2))","v":" "},null,null,null,null,null,null,null,null,null,null,null,null,null,null,null,null," ","","",""]
["a) Apreciação do pedido",null,null,null,70.680000000000007,null,{"$f":"IF(F880=\"\",\" \",ROUND(E880*F880,2))","v":" "},null,null,null,null,null,null,null,null,null,null,null,null,null,null,null,65,65,65.069999999999993,66.239999999999995,70.680000000000007]
["b) Por cada título",null,null,null,72.069999999999993,null," ",null,null,null,null,null,null,null,null,null,null,null,null,null,null,null,66.28,66.28,66.349999999999994,67.540000000000006,72.069999999999993]
["c) Por m2 de aumento de área em obras de construção, reconstrução e ampliação, aplicam-se também as taxas previstas nas alíneas a), b1), b2), b3), b4), b5), b6), b7), c), d) e/ou e) do 5.2 consoante os casos",null,null,null,"",null," ",null,null,null,null,null,null,null,null,null,null,null,null,null,null,null,null," ","","",""]
["d) Por m2 de aumento de area em obras de alteração ou conservação, aplicam-se tambem as taxas previstas na alínea a) do 5.2. e alíneas a) e b) do 5.3 ",null,null,null,"",null," ",null,null,null,null,null,null,null,null,null,null,null,null,null,null,null,null," ","","",""]
["e) Por m2 de aumento da area a demolir, em obras de demolição, aplicam-se tambem as taxas previstas na alínea a) do 5.2. e na alínea a) do 5.4 ",null,null,null,"",null," ",null,null,null,null,null,null,null,null,null,null,null,null,null,null,null,null," ","","",""]
["7-  Averbamento por substituição do requerente ou comunicante, do responsável por qualquer dos projectos apresentados ou técnico responsavel pela exeução da obra e empreiteiro",null,null,null,15.26,null," ",null,null,null,null,null,null,null,null,null,null,null,null,null,null,null,14.04,14.04,14.05,14.3,15.26]
["8 - Prorrogação do prazo de execução das obras, por cada período de 30 dias",null,null,null,6.84,null,{"$f":"IF(F886=\"\",\" \",E886*CEILING(F886/30,1))","v":" "},null,null,null,null,null,null,null,null,null,null,null,null,null,null,null,6.29,6.29,6.3,6.41,6.84]
["9 - Execução faseada de obras de edificação:",null,null,null,"",null,{"$f":"IF(F887=\"\",\" \",ROUND(E887*F887,2))","v":" "},null,null,null,null,null,null,null,null,null,null,null,null,null,null,null,null," ","","",""]
["a) Emissão do alvará de licença  correspondente à primeira fase ",null,null,null,72.069999999999993,null,{"$f":"IF(F888=\"\",\" \",ROUND(E888*F888,2))","v":" "},null,null,null,null,null,null,null,null,null,null,null,null,null,null,null,66.28,66.28,66.349999999999994,67.540000000000006,72.069999999999993]
["b) Aditamento ao título referente às fases subsequentes ",null,null,null,{"$f":"AA889","v":72.069999999999993},null," ",null,null,null,null,null,null,null,null,null,null,null,null,null,null,null,66.28,66.28,66.349999999999994,67.540000000000006,72.069999999999993]
["10 - Licença parcial para construção da estrutura nas obras previstas no art.23º/7 do RJUE e trabalhos de escavação e contenção periférica, previstos no artigo 81º do RJUE:",null,null,null,"",null," ",null,null,null,null,null,null,null,null,null,null,null,null,null,null,null,null," ","","",""]
["a) Emissão do alvará",null,null,null,72.069999999999993,null," ",null,null,null,null,null,null,null,null,null,null,null,null,null,null,null,66.28,66.28,66.349999999999994,67.540000000000006,72.069999999999993]
["b) Ao montante definido na alínea anterior acresce 30% do valor das taxas devidas pela globalidade da obra e calculadas nos termos previstos nesta tabela de taxas nos pontos 5.2., 5.3. e 5.4., a deduzir à liquidação das mesmas aquando da emissão do alvará definitivo ",null,null,null,"",null," ",null,null,null,null,null,null,null,null,null,null,null,null,null,null,null,null," ","","",""]
["11 - Licença especial  para conclusão de obras inacabadas:",null,null,null,"",null," ",null,null,null,null,null,null,null,null,null,null,null,null,null,null,null,null," ","","",""]
["a) Emissão do alvará",null,null,null,72.069999999999993,null," ",null,null,null,null,null,null,null,null,null,null,null,null,null,null,null,66.28,66.28,66.349999999999994,67.540000000000006,72.069999999999993]
["b) Em função do prazo adicional, acresce ao montante previsto na alínea anterior, por cada período de 30 dias ",null,null,null,34.21,null,{"$f":"IF(F895=\"\",\" \",E895*CEILING(F895/30,1))","v":" "},null,null,null,null,null,null,null,null,null,null,null,null,null,null,null,31.46,31.46,31.49,32.06,34.21]
["c) Em função do valor orçamentado: acresce ainda ao previsto nas alíneas anteriores 1% do valor orçamentado das obras a efectuar",null,null,null,"",null,{"$f":"IF(F896=\"\",\" \",ROUND(0.01*F896,2))","v":" "},null,null,null,null,null,null,null,null,null,null,null,null,null,null,null,null," ","","",""]
["12- Declaração de manutenção dos pressupostos do pedido de informação prévia",null,null,null,43.49,null,{"$f":"IF(F897=\"\",\" \",ROUND(E897*F897,2))","v":" "},null,null,null,null,null,null,null,null,null,null,null,null,null,null,null,40,{"$f":"IF(W897=0,\" \",IFERROR(IF(W897>0,ROUND(W897+W897*X$55,2),\" \"),\"\"))","v":40},40.04,40.76,43.49]
["13 -  Junção de elementos para suprimento de deficiências/incumprimentos ou apresentação de novos elementos (por cada junção), acrescem, se aplicável, as taxas respetivas em função das alterações",null,null,null,21.75,null,{"$f":"IF(F898=\"\",\" \",ROUND(E898*F898,2))","v":" "},null,null,null,null,null,null,null,null,null,null,null,null,null,null,null,20,20,20.02,20.38,21.75]
[null,null,null,null,"",null," ",null,null,null,null,null,null,null,null,null,null,null,null,null,null,null,null," ","","",""]
["Secção VI",null,null,null,"",null," ",null,null,null,null,null,null,null,null,null,null,null,null,null,null,null,null," ","","",""]
["Utilização e Alteração de Utilização",null,null,null,"",null," ",null,null,null,null,null,null,null,null,null,null,null,null,null,null,null,null," ","","",""]
[null,null,null,null,"",null," ",null,null,null,null,null,null,null,null,null,null,null,null,null,null,null,null," ","","",""]
["1 - Apresentação de Pedido de informação prévia de alteração de utilização",null,null,null,72.069999999999993,null," ",null,null,null,null,null,null,null,null,null,null,null,null,null,null,null,66.28,66.28,66.349999999999994,67.540000000000006,72.069999999999993]
["2- Declaração de manutenção dos pressupostos do pedido de informação prévia",null,null,null,43.49,null," ",null,null,null,null,null,null,null,null,null,null,null,null,null,null,null,40,40,40.04,40.76,43.49]
["3- Apreciação do pedido inicial",null,null,null,97.85,null," ",null,null,null,null,null,null,null,null,null,null,null,null,null,null,null,90,90,90.09,91.71,97.85]
["4- O pagamento das taxas definidas nos números anteriores é efetuado no ato de apresentação do pedido, sem o que aquele não é recebido",null,null,null,"",null," ",null,null,null,null,null,null,null,null,null,null,null,null,null,null,null,null," ","","",""]
["5- Emissão de alvará de autorização de utilização e/ou  de alteração de utilização",null,null,null,"",null," ",null,null,null,null,null,null,null,null,null,null,null,null,null,null,null,null," ","","",""]
["5.1 - Por cada título",null,null,null,72.069999999999993,null," ",null,null,null,null,null,null,null,null,null,null,null,null,null,null,null,66.28,66.28,66.349999999999994,67.540000000000006,72.069999999999993]
["5.2 - Por cada número de polícia atribuído",null,null,null,20.68,null," ",null,null,null,null,null,null,null,null,null,null,null,null,null,null,null,19.02,19.02,19.04,19.38,20.68]
["5.3 - Acresce, ao montante previsto no ponto 5.1. e 5.2. anteriores, nas obras de construção, reconstrução, ampliação, alteração ou conservação, por metro quadrado de area destinada a:",null,null,null,"",null," ",null,null,null,null,null,null,null,null,null,null,null,null,null,null,null,null," ","","",""]
["a) Habitação e turismo rural",null,null,null,0.34,null," ",null,null,null,null,null,null,null,null,null,null,null,null,null,null,null,0.31,0.31,0.31,0.32,0.34]
["b) Comércio, serviços, emprendimentos turísticos e estabelecimentos de alojamento local",null,null,null,0.28000000000000003,null," ",null,null,null,null,null,null,null,null,null,null,null,null,null,null,null,0.26,0.26,0.26,0.26,0.28000000000000003]
["c) Industria, oficinas, armazens e estacionamentos",null,null,null,0.22,null," ",null,null,null,null,null,null,null,null,null,null,null,null,null,null,null,0.21,0.21,0.21,0.21,0.22]
["d) Equipamentos de utilização colectiva não integrado em empreendimentos turísticos",null,null,null,0.19,null," ",null,null,null,null,null,null,null,null,null,null,null,null,null,null,null,0.18,0.18,0.18,0.18,0.19]
["e) Instalações destinadas exclusivamente a usos agrícolas",null,null,null,0.19,null," ",null,null,null,null,null,null,null,null,null,null,null,null,null,null,null,0.18,0.18,0.18,0.18,0.19]
["5.4 - Por metro cúbico de tanques, cubas e outros depósitos ",null,null,null,2.0299999999999998,null," ",null,null,null,null,null,null,null,null,null,null,null,null,null,null,null,1.87,1.87,1.87,1.9,2.0299999999999998]
["5.5 - Por m2 de piscinas",null,null,null,0.81,null," ",null,null,null,null,null,null,null,null,null,null,null,null,null,null,null,0.75,{"$f":"IF(W917=0,\" \",IFERROR(IF(W917>0,ROUND(W917+W917*X$55,2),\" \"),\"\"))","v":0.75},0.75,0.76,0.81]
["6 -  Junção de elementos para suprimento de deficiências/incumprimentos ou apresentação de novos elementos (por cada junção), acrescem, se aplicável, as taxas respetivas em função das alterações",null,null,null,21.75,null," ",null,null,null,null,null,null,null,null,null,null,null,null,null,null,null,20,20,20.02,20.38,21.75]
[null,null,null,null,"",null," ",null,null,null,null,null,null,null,null,null,null,null,null,null,null,null,null," ","","",""]
["Secção VII",null,null,null,"",null," ",null,null,null,null,null,null,null,null,null,null,null,null,null,null,null,null," ","","",""]
["Operações de destaque",null,null,null,"",null," ",null,null,null,null,null,null,null,null,null,null,null,null,null,null,null,null," ","","",""]
[null,null,null,null,"",null," ",null,null,null,null,null,null,null,null,null,null,null,null,null,null,null,null," ","","",""]
["1-Por pedido ou reapreciação",null,null,null,12.25,null," ",null,null,null,null,null,null,null,null,null,null,null,null,null,null,null,11.27,11.27,11.28,11.48,12.25]
["2- O pagamento das taxas definidas no número anterior é efetuado no ato de apresentação do pedido, sem o que aquele não é recebido",null,null,null,"",null," ",null,null,null,null,null,null,null,null,null,null,null,null,null,null,null,null," ","","",""]
["3- Pela emissão de certidão de destaque",null,null,null,55.85,null," ",null,null,null,null,null,null,null,null,null,null,null,null,null,null,null,51.36,51.36,51.41,52.34,55.85]
["4 -  Junção de elementos para suprimento de deficiências/incumprimentos ou apresentação de novos elementos (por cada junção), acrescem, se aplicável, as taxas respetivas em função das alterações",null,null,null,21.75,null," ",null,null,null,null,null,null,null,null,null,null,null,null,null,null,null,20,20,20.02,20.38,21.75]
[null,null,null,null,"",null," ",null,null,null,null,null,null,null,null,null,null,null,null,null,null,null,null," ","","",""]
["Secção VIII",null,null,null,"",null," ",null,null,null,null,null,null,null,null,null,null,null,null,null,null,null,null," ","","",""]
["Fichas Técnicas de Habitação",null,null,null,"",null," ",null,null,null,null,null,null,null,null,null,null,null,null,null,null,null,null," ","","",""]
[null,null,null,null,"",null," ",null,null,null,null,null,null,null,null,null,null,null,null,null,null,null,null," ","","",""]
["1 - Depósito de cada exemplar da Ficha Técnica de Habitação",null,null,null,19.100000000000001,null," ",null,null,null,null,null,null,null,null,null,null,null,null,null,null,null,17.559999999999999,17.559999999999999,17.579999999999998,17.899999999999999,19.100000000000001]
[null,null,null,null,"",null," ",null,null,null,null,null,null,null,null,null,null,null,null,null,null,null,null," ","","",""]
["Secção IX",null,null,null,"",null," ",null,null,null,null,null,null,null,null,null,null,null,null,null,null,null,null," ","","",""]
["Informação urbana",null,null,null,"",null," ",null,null,null,null,null,null,null,null,null,null,null,null,null,null,null,null," ","","",""]
[null,null,null,null,"",null," ",null,null,null,null,null,null,null,null,null,null,null,null,null,null,null,null," ","","",""]
[" 1 - Marcação de alinhamento e nivelamento, em terreno confinante com a via pública ou outro - por cada 10 metros lineares ou fracção.",null,null,null,71.98,null," ",null,null,null,null,null,null,null,null,null,null,null,null,null,null,null,66.2,66.2,66.27,67.459999999999994,71.98]
["2. Fornecimento de informação geográfica  impressa em suporte analógico (papel comum):",null,null,null,"",null," ",null,null,null,null,null,null,null,null,null,null,null,null,null,null,null,null,{"$f":"IF(W937=0,\" \",IFERROR(IF(W937>0,ROUND(W937+W937*X$55,2),\" \"),\"\"))","v":" "},"","",""]
["2.1 - Cartografia base:",null,null,null,"",null," ",null,null,null,null,null,null,null,null,null,null,null,null,null,null,null,null," ","","",""]
["a) Formato A4",null,null,null,3.95,null," ",null,null,null,null,null,null,null,null,null,null,null,null,null,null,null,3.63,3.63,3.63,3.7,3.95]
["b) Formato A3",null,null,null,7.9,null," ",null,null,null,null,null,null,null,null,null,null,null,null,null,null,null,7.26,7.26,7.27,7.4,7.9]
["c) Formato superior a A3",null,null,null,15.79,null," ",null,null,null,null,null,null,null,null,null,null,null,null,null,null,null,14.53,14.53,14.54,14.8,15.79]
["2.2 - Outras camadas de informação geográfica sem tratamento",null,null,null,"",null," ",null,null,null,null,null,null,null,null,null,null,null,null,null,null,null,null," ","","",""]
["a) Formato A4",null,null,null,4.7300000000000004,null," ",null,null,null,null,null,null,null,null,null,null,null,null,null,null,null,4.3499999999999996,4.3499999999999996,4.3499999999999996,4.43,4.7300000000000004]
["b) Formato A3",null,null,null,9.49,null," ",null,null,null,null,null,null,null,null,null,null,null,null,null,null,null,8.7200000000000006,8.7200000000000006,8.73,8.89,9.49]
["c) Formato superior a A3",null,null,null,18.95,null," ",null,null,null,null,null,null,null,null,null,null,null,null,null,null,null,17.43,17.43,17.45,17.760000000000002,18.95]
["2.3 - Outras camadas de informação geográfica com tratamento",null,null,null,"",null," ",null,null,null,null,null,null,null,null,null,null,null,null,null,null,null,null," ","","",""]
["a) Formato A4",null,null,null,7.1,null," ",null,null,null,null,null,null,null,null,null,null,null,null,null,null,null,6.52,6.52,6.53,6.65,7.1]
["b) Formato A3",null,null,null,14.22,null," ",null,null,null,null,null,null,null,null,null,null,null,null,null,null,null,13.08,13.08,13.09,13.33,14.22]
["c) Formato superior a A3",null,null,null,28.42,null," ",null,null,null,null,null,null,null,null,null,null,null,null,null,null,null,26.14,26.14,26.17,26.64,28.42]
["2.4-  Extractos de PMOT",null,null,null,4.84,null," ",null,null,null,null,null,null,null,null,null,null,null,null,null,null,null,4.46,4.46,4.46,4.54,4.84]
["2.5 - Toda a informação do ponto 2 acresce em 20% com a adição de ortofotomapas",null,null,null,"",null," ",null,null,null,null,null,null,null,null,null,null,null,null,null,null,null,null," ","","",""]
["2.6 - Ortofotomapas",null,null,null,"",null," ",null,null,null,null,null,null,null,null,null,null,null,null,null,null,null,null," ","","",""]
["a) Formato A4",null,null,null,{"$f":"AA953","v":1.0900000000000001},null," ",null,null,null,null,null,null,null,null,null,null,null,null,null,null,null,1,1,1,1.02,1.0900000000000001]
["b) Formato A3",null,null,null,2.1800000000000002,null," ",null,null,null,null,null,null,null,null,null,null,null,null,null,null,null,2,2,2,2.04,2.1800000000000002]
["c) Formato superior a A3",null,null,null,4.34,null," ",null,null,null,null,null,null,null,null,null,null,null,null,null,null,null,4,4,4,4.07,4.34]
["3- Fornecimento de informação geográfica em suporte digital (correio electronico)",null,null,null,"",null," ",null,null,null,null,null,null,null,null,null,null,null,null,null,null,null,null," ","","",""]
["3. 1 - Cartografia base por hectare (escala 1:1000)",null,null,null,"",null," ",null,null,null,null,null,null,null,null,null,null,null,null,null,null,null,null,{"$f":"IF(W957=0,\" \",IFERROR(IF(W957>0,ROUND(W957+W957*X$55,2),\" \"),\"\"))","v":" "},"","",""]
["a) Se área < 5 Hectares",null,null,null,0.7,null," ",null,null,null,null,null,null,null,null,null,null,null,null,null,null,null,0.65,0.65,0.65,0.66,0.7]
["b) Se 5 Hectares =< área < 100 Hectares",null,null,null,0.15,null," ",null,null,null,null,null,null,null,null,null,null,null,null,null,null,null,0.14000000000000001,0.14000000000000001,0.14000000000000001,0.14000000000000001,0.15]
["c) Se área >= 100 Hectares",null,null,null,7.0000000000000007E-2,null," ",null,null,null,null,null,null,null,null,null,null,null,null,null,null,null,7.0000000000000007E-2,7.0000000000000007E-2,7.0000000000000007E-2,7.0000000000000007E-2,7.0000000000000007E-2]
["3.2., Cartografia base por hectare (escala 1:1500 ou superior)",null,null,null,"",null," ",null,null,null,null,null,null,null,null,null,null,null,null,null,null,null,null," ","","",""]
["a) Se área < 5 Hectares",null,null,null,1.41,null,{"$f":"IF(F962=\"\",\" \",ROUND(E962*F962,2))","v":" "},null,null,null,null,null,null,null,null,null,null,null,null,null,null,null,1.3,1.3,1.3,1.32,1.41]
["b) Se 5 Hectares =< área < 100 Hectares",null,null,null,0.31,null," ",null,null,null,null,null,null,null,null,null,null,null,null,null,null,null,0.28000000000000003,0.28000000000000003,0.28000000000000003,0.28999999999999998,0.31]
["c) Se área >= 100 Hectares",null,null,null,0.15,null," ",null,null,null,null,null,null,null,null,null,null,null,null,null,null,null,0.14000000000000001,0.14000000000000001,0.14000000000000001,0.14000000000000001,0.15]
["3.3. - Outras camadas de informação geográfica sem tratamento por hectare",null,null,null,"",null," ",null,null,null,null,null,null,null,null,null,null,null,null,null,null,null,null," ","","",""]
["Se área < 5 Hectares",null,null,null,0.84,null," ",null,null,null,null,null,null,null,null,null,null,null,null,null,null,null,0.78,0.78,0.78,0.79,0.84]
["Se 5 Hectares =< área < 100 Hectares",null,null,null,0.18,null," ",null,null,null,null,null,null,null,null,null,null,null,null,null,null,null,0.17,0.17,0.17,0.17,0.18]
["Se área >= 100 Hectares",null,null,null,0.1,null," ",null,null,null,null,null,null,null,null,null,null,null,null,null,null,null,0.09,0.09,0.09,0.09,0.1]
["3.4 - Outras camadas de informação geográfica com tratamento por hectare",null,null,null,"",null," ",null,null,null,null,null,null,null,null,null,null,null,null,null,null,null,null," ","","",""]
["Se área < 5 Hectares",null,null,null,1.27,null," ",null,null,null,null,null,null,null,null,null,null,null,null,null,null,null,1.17,1.17,1.17,1.19,1.27]
["Se 5 Hectares =< área < 100 Hectares",null,null,null,0.28000000000000003,null," ",null,null,null,null,null,null,null,null,null,null,null,null,null,null,null,0.26,0.26,0.26,0.26,0.28000000000000003]
["Se área >= 100 Hectares",null,null,null,0.15,null," ",null,null,null,null,null,null,null,null,null,null,null,null,null,null,null,0.14000000000000001,0.14000000000000001,0.14000000000000001,0.14000000000000001,0.15]
["3.5-  Informação geográfica de PMOT em formato vectorial não editável (DWF) por cada planta",null,null,null,"",null," ",null,null,null,null,null,null,null,null,null,null,null,null,null,null,null,null," ","","",""]
["3.5.1 Se área < 5 Hectares ( por hectare)",null,null,null,3.81,null," ",null,null,null,null,null,null,null,null,null,null,null,null,null,null,null,3.51,3.51,3.51,3.57,3.81]
["3.5.2 Se área >= 5 Hectares acresce ao valor definido em 3.4.1 (por hectare)",null,null,null,0.11,null," ",null,null,null,null,null,null,null,null,null,null,null,null,null,null,null,0.1,0.1,0.1,0.1,0.11]
["3.6 - Toda a informação do ponto 3 acresce em 5% com a adição de ortofotomapas",null,null,null,"",null," ",null,null,null,null,null,null,null,null,null,null,null,null,null,null,null,null," ","","",""]
["3.7 . Ortofotomapas em formato digital",null,null,null,"",null," ",null,null,null,null,null,null,null,null,null,null,null,null,null,null,null,null,{"$f":"IF(W977=0,\" \",IFERROR(IF(W977>0,ROUND(W977+W977*X$55,2),\" \"),\"\"))","v":" "},"","",""]
["a) Formato A4",null,null,null,0.54,null," ",null,null,null,null,null,null,null,null,null,null,null,null,null,null,null,0.5,0.5,0.5,0.51,0.54]
["b) Formato A3",null,null,null,1.0900000000000001,null," ",null,null,null,null,null,null,null,null,null,null,null,null,null,null,null,1,1,1,1.02,1.0900000000000001]
["c) Formato superior a A3",null,null,null,2.1800000000000002,null," ",null,null,null,null,null,null,null,null,null,null,null,null,null,null,null,2,2,2,2.04,2.1800000000000002]
[null,null,null,null,"",null," ",null,null,null,null,null,null,null,null,null,null,null,null,null,null,null,null," ","","",""]
["Secção X",null,null,null,"",null," ",null,null,null,null,null,null,null,null,null,null,null,null,null,null,null,null," ","","",""]
["Propriedade horizontal",null,null,null,"",null," ",null,null,null,null,null,null,null,null,null,null,null,null,null,null,null,null," ","","",""]
[null,null,null,null,"",null," ",null,null,null,null,null,null,null,null,null,null,null,null,null,null,null,null," ","","",""]
["1 - Por pedido ou reapreciação",null,null,null,92.42,null," ",null,null,null,null,null,null,null,null,null,null,null,null,null,null,null,85,85,85.09,86.62,92.42]
["2- O pagamento das taxas definidas no número anterior é efetuado no ato de apresentação do pedido, sem o que aquele não é recebido",null,null,null,"",null," ",null,null,null,null,null,null,null,null,null,null,null,null,null,null,null,null," ","","",""]
["3 – Certificação de que o edifício satisfaz os requisitos legais para a sua constituição em regime de propriedade horizontal:",null,null,null,"",null," ",null,null,null,null,null,null,null,null,null,null,null,null,null,null,null,null," ","","",""]
["a) Por fracção habitacional – cada 50 m2 ou fracção. ",null,null,null,39.619999999999997,null," ",null,null,null,null,null,null,null,null,null,null,null,null,null,null,null,36.43,36.43,36.47,37.130000000000003,39.619999999999997]
["b) Por local de exercício de actividade comercial, industrial ou de serviços (incluindo turismo) – cada 50 m2 ou fracção",null,null,null,34.21,null," ",null,null,null,null,null,null,null,null,null,null,null,null,null,null,null,31.46,31.46,31.49,32.06,34.21]
["c) Por local de aparcamento, constituindo fracção autónoma – cada 15 m2 ou fracção",null,null,null,20.68,null," ",null,null,null,null,null,null,null,null,null,null,null,null,null,null,null,19.02,19.02,19.04,19.38,20.68]
["d) Por cada garagem ou anexo, constituindo fracção autónoma – cada 15 m2 ou fracção",null,null,null,20.68,null," ",null,null,null,null,null,null,null,null,null,null,null,null,null,null,null,19.02,19.02,19.04,19.38,20.68]
["4 - Declaração de cumprimento dos requisitos legais para alteração da composição da propriedade horizontal ou destino das fracções:",null,null,null,"",null," ",null,null,null,null,null,null,null,null,null,null,null,null,null,null,null,null," ","","",""]
["a) Por rectificação das fracções – por cada fracção alterada ou rectificada",null,null,null,23.39,null," ",null,null,null,null,null,null,null,null,null,null,null,null,null,null,null,21.51,21.51,21.53,21.92,23.39]
["b) Por rectificação das partes comuns – por cada rectificação ou alteração",null,null,null,23.39,null," ",null,null,null,null,null,null,null,null,null,null,null,null,null,null,null,21.51,21.51,21.53,21.92,23.39]
["5 -  Junção de elementos para suprimento de deficiências/incumprimentos ou apresentação de novos elementos (por cada junção), acrescem, se aplicável, as taxas respetivas em função das alterações",null,null,null,21.75,null," ",null,null,null,null,null,null,null,null,null,null,null,null,null,null,null,20,20,20.02,20.38,21.75]
[null,null,null,null,"",null," ",null,null,null,null,null,null,null,null,null,null,null,null,null,null,null,null," ","","",""]
["Secção XI",null,null,null,"",null," ",null,null,null,null,null,null,null,null,null,null,null,null,null,null,null,null,{"$f":"IF(W997=0,\" \",IFERROR(IF(W997>0,ROUND(W997+W997*X$55,2),\" \"),\"\"))","v":" "},"","",""]
["Taxas pela realização, manutenção e reforço de infra-estruturas urbanísticas",null,null,null,"",null," ",null,null,null,null,null,null,null,null,null,null,null,null,null,null,null,null," ","","",""]
[null,null,null,null,"",null," ",null,null,null,null,null,null,null,null,null,null,null,null,null,null,null,null," ","","",""]
["1 - A taxa pela realização, manutenção e reforço de infra-estruturas urbanísticas é a taxa que resulta da fórmula prevista no artigo 70.º do RMEUA.",null,null,null,"",null," ",null,null,null,null,null,null,null,null,null,null,null,null,null,null,null,null," ","","",""]
[null,null,null,null,"",null," ",null,null,null,null,null,null,null,null,null,null,null,null,null,null,null,null," ","","",""]
["Secção XII",null,null,null,"",null," ",null,null,null,null,null,null,null,null,null,null,null,null,null,null,null,null," ","","",""]
["Compensação",null,null,null,"",null," ",null,null,null,null,null,null,null,null,null,null,null,null,null,null,null,null," ","","",""]
[null,null,null,null,"",null," ",null,null,null,null,null,null,null,null,null,null,null,null,null,null,null,null," ","","",""]
["1 - A taxa pela compensação é a taxa que resulta da fórmula prevista no artigo 46.º do RMEUA.",null,null,null,"",null," ",null,null,null,null,null,null,null,null,null,null,null,null,null,null,null,null," ","","",""]
[null,null,null,null,"",null," ",null,null,null,null,null,null,null,null,null,null,null,null,null,null,null,null," ","","",""]
["TABELA DE PREÇOS CAPÍTULO I",null,null,null,"",null," ",null,null,null,null,null,null,null,null,null,null,null,null,null,null,null,null," ","","",""]
["SECRETARIA",null,null,null,"",null," ",null,null,null,null,null,null,null,null,null,null,null,null,null,null,null,null," ","","",""]
[null,null,null,null,"",null," ",null,null,null,null,null,null,null,null,null,null,null,null,null,null,null,null," ","","",""]
["IV - Avisos, livros e outros:",null,null,null,"",null," ",null,null,null,null,null,null,null,null,null,null,null,null,null,null,null,null,null,null,{"$f":"IF(Y1010=0,\" \",IFERROR(IF(Y1010>0,ROUND(Y1010+Y1010*Z$55,2),\" \"),\"\"))","v":" "},""]
["a) Aviso de publicitação de obras de edificação, loteamentos e obras de urbanização",null,null,null,3.67,null," ",null,null,null,null,null,null,null,null,null,null,null,null,null,null,null,3.38,{"$f":"IF(W1011=0,\" \",IFERROR(IF(W1011>0,ROUND(W1011+W1011*X$55,2),\" \"),\"\"))","v":3.38},3.38,3.44,3.67]
["b) Livros de obras de edificação, loteamentos e ou obras de urbanização",null,null,null,9.35,null," ",null,null,null,null,null,null,null,null,null,null,null,null,null,null,null,8.6,8.6,8.61,8.76,9.35]
["c) Livros de reclamação",null,null,null,23.15,null," ",null,null,null,null,null,null,null,null,null,null,null,null,null,null,null,21.3,21.3,21.32,21.7,23.15]
["d) Extractos do Plano Municipal do Ordenamento do Território           ",null,null,null,3.7,null," ",null,null,null,null,null,null,null,null,null,null,null,null,null,null,null,3.41,3.41,3.41,3.47,3.7]
[null,null,null,null,"",null," ",null,null,null,null,null,null,null,null,null,null,null,null,null,null,null,null," ","","",""]
[]
[]
[]
[]
[]
[]
[]
[]
[]
[]
[]
[]
["CAPÍTULO I - SECRETARIA",null,null,null,null,null,{"$f":"SUM($G$57:$G$100)","v":0}]
["CAPÍTULO II - INSPECÇÕES E VISTORIAS"]
["Seccção I - Inspecção higio-sanitária",null,null,null,null,null,{"$f":"SUM(G59:G102)","v":0}]
["Secção II - Inspecções e Vistorias",null,null,null,null,null,{"$f":"SUM($G$116:$G$172)","v":0}]
["CAPÍTULO III - CEMITÉRIOS"]
["Secção I - Inumações",null,null,null,null,null,{"$f":"SUM(G62:G105)","v":0}]
["Secção II - Exumações e Trasladações",null,null,null,null,null,0]
["Secção III - Ocupação de sepulturas e ossários municipais",null,null,null,null,null,0]
["Secção IV - Concessão de terrenos",null,null,null,null,null,0]
["Secção V - Obras em jazigos e sepulturas",null,null,null,null,null,0]
["Secção VI - Serviços diversos",null,null,null,null,null,0]
["CAPÍTULO IV - Licenciamentos e autorizações  diversas "]
["Secção I - Licenciamento de instalações de armazenamento de produtos de petróleo e de postos de abastecimento de combustíveis",null,null,null,null,null,{"$f":"SUM($G$298:$G$307)","v":0}]
["Secção II - Licenciamento da actividade industrial",null,null,null,null,null,{"$f":"SUM($G$312:G314)","v":0}]
["Secção III -  Intervenção sobre o exercício de actividades diversas",null,null,null,null,null,{"$f":"SUM(G71:G114)","v":0}]
["Seccção IV - Licenças de exploração para actividade de transporte em táxi, de condução e licenciamento de veículos",null,null,null,null,null,{"$f":"SUM(G72:G115)","v":0}]
["Secção V - Infra-estruturas de radiocomunicações e aerogeradores",null,null,null,null,null,{"$f":"SUM($G$347:$G$350)","v":0}]
["Secção VI - Pareceres, licenças ou autorizações diversos",null,null,null,null,null,{"$f":"SUM(G74:G117)","v":0}]
["Secção VII - Diversos",null,null,null,null,null,{"$f":"SUM(G75:G118)","v":0}]
["CAPÍTULO V - AMBIENTE"]
["Secção I - Animais",null,null,null,null,null,{"$f":"SUM(G77:G120)","v":0}]
["Secção II - Licenças especiais de ruído",null,null,null,null,null,{"$f":"SUM($G$413:$G$420)","v":0}]
["Secção III - Informações sobre ambiente",null,null,null,null,null,{"$f":"SUM(G79:G122)","v":0}]
["Secção IV - Desobstruções em redes de drenagem de águas residuais e esvaziamento de fossas",null,null,null,null,null,{"$f":"SUM(G80:G123)","v":0}]
["Secção V  - TAXA DE RECURSOS HÍDRICOS",null,null,null,null,null,{"$f":"SUM(G81:G124)","v":0}]
["CAPÍTULO VI - GESTÃO DO ESPAÇO PÚBLICO"]
["Secção I - Publicidade visual afecta a mobiliário urbano ou autónomo",null,null,null,null,null,{"$f":"SUM(G451:G472)","v":0}]
["Secção II - Publicidade instalada em edifícios",null,null,null,null,null,{"$f":"SUM(G477:G487)","v":0}]
["Secção III - Publicidade Móvel",null,null,null,null,null,{"$f":"SUM(G492:G513)","v":0}]
["Secção IV - Publicidade sonora",null,null,null,null,null,{"$f":"SUM(G518:G521)","v":0}]
["Secção V - Campanhas publicitárias de rua",null,null,null,null,null,{"$f":"SUM(G526:G528)","v":0}]
["Secção VI - Publicidade diversa",null,null,null,null,null,{"$f":"SUM(G533:G547)","v":0}]
["Secção VII - Alteração dos termos ou condições do licenciamento",null,null,null,null,null,{"$f":"SUM(G552:G554)","v":0}]
["CAPÍTULO VII - UTILIZAÇÃO DO DOMÍNIO PÚBLICO E PRIVADO MUNICIPAL",null,null,null,null,null,{"$f":"SUM(G90:G133)","v":0}]
["CAPÍTULO VIII - OCUPAÇÃO DE DOMÍNIO PÚBLICO"]
["Secção I - Ocupação da via pública por motivo de obras",null,null,null,null,null,{"$f":"SUM(G599:G612)","v":0}]
["Secção II - Ocupação do espaço aéreo da via pública",null,null,null,null,null,{"$f":"SUM(G93:G136)","v":0}]
["Secção III - Ocupações diversas do solo",null,null,null,null,null,0]
["Secção IV - Ocupações diversas do subsolo:",null,null,null,null,null,0]
["Secção V - Construções ou instalações especiais no solo ou no subsolo",null,null,null,null,null,0]
["Secção VI - Feiras e mercados",null,null,null,null,null,0]
["Secção VII - Tráfego e aparcamento",null,null,null,null,null,0]
["Subsecção I -  Zonas de estacionamento de duração limitada a que se refere o artigo 70º do Código da Estrada:",null,null,null,null,null,0]
["Subsecção II - Bloqueamento, remoção e depósito de viaturas abandonadas na via pública",null,null,null,null,null,0]
["CAPÍTULO IX - URBANISMO"]
["Secção I - Operações de Loteamento",null,null,null,null,null,{"$f":"SUM(G738:G760)","v":0}]
["Secção II - Obras de Urbanização",null,null,null,null,null,{"$f":"SUM(G765:G789)","v":0}]
["Secção III - Loteamentos com obras de urbanização",null,null,null,null,null,{"$f":"SUM(G794:G826)","v":0}]
["Secção IV - Trabalhos de remodelação de terrenos",null,null,null,null,null,{"$f":"SUM(G831:G852)","v":0}]
["Secção V - Obras de Edificação (Construção, Reconstrução, Ampliação e Alteração) e de Demolição das Edificações",null,null,null,null,null,{"$f":"SUM(G857:G898)","v":0}]
["Secção VI - Utilização e Alteração de Utilização",null,null,null,null,null,{"$f":"SUM(G903:G918)","v":0}]
["Secção VII - Operações de destaque",null,null,null,null,null,{"$f":"SUM(G923:G926)","v":0}]
["Secção VIII - Fichas Técnicas de Habitação",null,null,null,null,null,{"$f":"SUM(G931)","v":0}]
["Secção IX - Informação urbana",null,null,null,null,null,{"$f":"SUM(G936:G980)","v":0}]
["Secção X - Propriedade horizontal",null,null,null,null,null,{"$f":"SUM(G985:G995)","v":0}]
["Secção XI - Taxas pela realização, manutenção e reforço de infra-estruturas urbanísticas",null,null,null,null,null,{"$f":"'TMI C1_C2'!$I$37","v":" "}]
["Secção XII - Compensação",null,null,null,null,null,{"$f":"IFERROR('TMI C1_C2'!$I$61+'TMI C1_C2'!$I$86,\"-\")","v":0}]
["TABELA DE PREÇOS - CAPÍTULO I - SECRETARIA",null,null,null,null,null,{"$f":"SUM(G1011:G1014)","v":0}]
[]
["TOTAL A COBRAR:",null,null,null,null,null,{"$f":"ROUND(SUM(G1084,G1083,G1082,G1081,G1080,G1079,G1078,G1077,G1076,G1075,G1074,G1073,G1063,G1060,G1059,G1058,G1057,G1056,G1055,G1054,G1049,G1044,G1041,G1040,G1031,G1028,G1085),2)","v":0}]
[{"$f":"IF(G1087>0,\"(\"&Extenso_Valor(G1087)&\")\",\"\")","v":""}]
[]
["O/A Funcionário/a:"]
[]
[]
["Data:"]
[]
[]
["Pago pela guia nº"]
["em"]

{"sheet":"TMI C1_C2","index":1,"n_rows":241,"n_cols":33,"rows_kept":241,"cut":false,"hidden":false,"merged":[[85,0,85,7],[73,0,75,7],[72,0,72,7],[73,8,75,8],[76,0,76,7],[77,0,77,7],[84,0,84,7],[66,0,66,7],[67,0,67,7],[68,0,70,6],[71,0,71,7],[65,0,65,8],[53,3,53,6],[54,0,54,7],[55,0,55,7],[56,0,56,7],[64,0,64,8],[58,0,58,7],[59,0,59,7],[60,0,60,7],[62,0,62,8],[57,0,57,7],[48,0,53,2],[48,3,48,6],[49,3,49,6],[50,3,50,6],[51,3,51,6],[52,3,52,6],[44,0,44,8],[45,0,45,7],[46,0,47,2],[46,3,46,6],[47,3,47,6],[20,0,20,6],[21,0,21,6],[42,0,42,7],[25,0,25,6],[26,0,26,6],[27,0,27,6],[30,0,30,8],[31,0,31,6],[32,0,32,6],[33,0,33,6],[36,0,36,7],[38,0,38,8],[40,0,40,8],[41,0,41,8],[6,0,6,7],[7,0,8,2],[7,3,7,6],[8,3,8,6],[24,0,24,8],[9,0,15,2],[9,3,9,6],[10,3,10,6],[11,3,11,6],[12,3,12,6],[13,3,13,6],[14,3,14,6],[15,3,15,6],[16,0,16,2],[17,0,17,8],[19,0,19,6],[0,0,0,8],[2,0,2,8],[3,0,3,8],[4,0,4,7],[5,0,5,7]]}
["Simulador - Estimativa dos Encargos Urbanísticos\n\nTaxa pela realização, reforço ou manutenção de infra-estruturas:\n(Artigo III/66.º do Código Regulamentar do Município de Amarante)"]
[]
["O valor da taxa pela realização, reforço e manutenção de infra-estruturas (TMI), a que se refere o artigo III/66.º do Código Regulamentar do Município de Amarante, é calculado segundo a seguinte expressão:"]
["TMI = Ac x V x ∑i x Fm"]
["Ac - Área total de construção prevista ou a servir na operação urbanística, em metros quadrados;"]
["V  - Valor médio de construção fixado, por metro quadrado, para efeitos de IMI, e atualizado\nanualmente por portaria governamental;",null,null,null,null,null,null,null,532]
["i - coeficiente correspondente a cada uma das infraestruturas gerais disponíveis ou a disponibilizar no local da realização da operação urbanística, que toma os valores constantes do quadro seguinte:"]
["A arruamento Público\n(colocar x)",null,null,"Pavimentado",null,null,null,0.3]
[null,null,null,"Não pavimentado, ou quando se torne necessário ao interessado construir ou reforçar acessos viários fora do(s) prédio(s) objeto da operação urbanística e essas vias integrem ou se destinem a integrar o domínio municipal.",null,null,null,0.2]
["Às infraestruturas gerais de\n(colocar x)",null,null,"Abastecimento de Água",null,null,null,0.15]
[null,null,null,"Drenagem de Águas Residuais",null,null,null,0.2]
[null,null,null,"Drenadem de Águas Pluviais",null,null,null,0.1]
[null,null,null,"Distribuição de Gás  ",null,null,null,0.05]
[null,null,null,"Distribuição de Energia Eléctrica",null,null,null,0.05]
[null,null,null,"Telecomunicações",null,null,null,0.05]
[null,null,null,"Iluminação Pública",null,null,null,0.1]
[null,null,null,null,null,null,null,null,{"$f":"IF($I$5=0,\" \",SUMIF(I8:I16,\"X\",H8:H16))","v":" "}]
["Fm — fator municipal orientado para a execução da política de ordenamento do território definida nos planos municipais de ordenamento do território e determinado através da fórmula de cálculo seguinte:\nFm  =W*Y*Z:"]
["W (varia em função da localização da operação urbanistica)  (colocar x)"]
["A operação urbanistica se inclui em perimetro urbano",null,null,null,null,null,null,0.7]
["A operação urbanistica se localize fora do perimetro urbano",null,null,null,null,null,null,1]
["Industrial",null,null,null,null,null,null,0.5]
[null,null,null,null,null,null,null,null,{"$f":"IF($I$5=0,\" \",SUMIF(I20:I22,\"X\",H20:H22))","v":" "}]
[]
["Y (varia conforme a carga que os usos dos edifícios previstos na operação urbanística determinam sobre as infraestruturas) (colocar x)"]
["Y = 1,0 para habitação unifamiliar e ou colectiva, ou quando Ac hab > 80 % Ac",null,null,null,null,null,null,1]
["Y = 1,2 para habitação e outros usos, quando Ac hab <= 80 % Ac",null,null,null,null,null,null,1.2]
["Y = 1,3 para comércio, serviços, indústria ou armazéns",null,null,null,null,null,null,1.3]
[null,null,null,null,null,null,null,null,{"$f":"IF($I$5=0,\" \",SUMIF(I26:I28,\"X\",H26:H28))","v":" "}]
[]
[" Z (é um coeficiente ponderador, compreendido entre 0,008 e 0,012, indexado à dotação inicial do plano plurianual de investimentos do Município para a aquisição de bens de capital, a definir anualmente com a aprovação dos documentos previsionais)"]
["a) Montante inferior a 5 milhões de euros",null,null,null,null,null,null,8.0000000000000002E-3]
["b) Montante compreendido entre 5M€ e 20M€",null,null,null,null,null,null,0.01]
["c) Montante superior a 20M€",null,null,null,null,null,null,1.2E-2,"X"]
[null,null,null,null,null,null,null,null,{"$f":"IF($I$6=0,\" \",IF(I32=\"X\",H32,IF(I33=\"X\",H33,IF(I34=\"x\",H34,\"\"))))","v":1.2E-2}]
[]
["O valor da TMI a cobrar é de",null,null,null,null,null,null,null,{"$f":"IF($I$5=0,\" \",ROUND($I$5*$I$6*$I$17*$I$23*$I$29*$I$35,2))","v":" "}]
[]
["Compensação\nC = C1 + C2\n(Artigo III/41.º do Código Regulamentar do Município de Amarante)"]
[]
["C1 — é o valor da compensação devida ao Município quando não se justifique a cedência, no todo ou em parte, de áreas destinadas a espaços verdes e de utilização coletiva ou à instalação de equipamentos públicos no local;"]
[]
["Af (m²) - Área de cedência em falta"]
[]
["Fp - fator de ponderação do valor relativo do terreno, em função do índice de infraestruturação disponível no local da realização da operação urbanística, compreendido entre 0,15 e 0,20:"]
["Índice de infraestruturação disponível no local da operação urbanística",null,null,null,null,null,null,null," (colocar x)"]
["Arruamento Público",null,null,"Pavimentado em calçada, betuminoso ou equivalente",null,null,null,9.4999999999999998E-3]
[null,null,null,"Com passeio do lado da parcela",null,null,null,3.5000000000000001E-3]
["As Infra-estrururas gerais de:",null,null,"Abastecimento de Aguas",null,null,null,7.0000000000000001E-3]
[null,null,null,"Drenagem de Aguas Residuais",null,null,null,8.9999999999999993E-3]
[null,null,null,"Drenadem de Aguas Pluviais",null,null,null,3.0000000000000001E-3]
[null,null,null,"Distribuição de Gás  ",null,null,null,6.0000000000000001E-3]
[null,null,null,"Distribuição de Energia Eléctrica",null,null,null,6.0000000000000001E-3]
[null,null,null,"Telecomunicações",null,null,null,6.0000000000000001E-3]
["Total de i",null,null,null,null,null,null,null,{"$f":"IF($I$43=0,\" \",SUMIF(I47:I54,\"X\",H47:H54))","v":" "}]
["Fp = 0,15 + ∑ i",null,null,null,null,null,null,null,{"$f":"IF($I$55=\" \",\" \",0.15+$I$55)","v":" "}]
["Ac (m²) - área total de construção admissível no local da operação urbanística, de acordo com o previsto em plano municipal de ordenamento do território, em metros quadrados;"]
["V  - valor médio de construção fixado, por metro quadrado, para efeitos de IMI e atualizado anualmente por portaria governamental;",null,null,null,null,null,null,null,{"$f":"I6","v":532}]
["St (m²) - Superfície total do prédio objecto da operação urbanística"]
["Valor do terreno obtido por m² ",null,null,null,null,null,null,null,{"$f":"IF($I$43=0,\" \",(I56*I57*I58)/I59)","v":" "}]
["O valor da compensação C1 a cobrar é de",null,null,null,null,null,null,null,{"$f":"IF(I43=0,0,ROUND(I43*I60,2))","v":0}]
[]
["C2 — é o valor da compensação devida ao Município quando o prédio já se encontre servido pelas infraestruturas referidas na alínea h) do artigo 2.º do Decreto -Lei n.º 555/99, de 16 de dezembro, na sua redação atual."]
[]
[]
["C2 = V * (F1 + F2) "]
["V  - Valor médio de construção fixado, por metro quadrado, para efeitos de IMI, e atualizado\nanualmente por portaria governamental;",null,null,null,null,null,null,null,{"$f":"I6","v":532}]
["F1 = 0,035 * A"]
["A  -  É a superfície  determinada  pelo  comprimento(L)  das  linhas  de  confrontação  do(s) arruamento(s) existente(s) com os lotes, multiplicado pelas suas distâncias(D) ao eixo do(s) dito(s) arruamento(s).      A=L*D",null,null,null,null,null,null,"Valor de L"]
[null,null,null,null,null,null,null,"Valor de D"]
[null,null,null,null,null,null,null,null,{"$f":"IFERROR(I69*I70,\" - \")","v":0}]
["F1 obtido",null,null,null,null,null,null,null,{"$f":"IFERROR(0.035*$I$71,\" - \")","v":0}]
["F2 = 0,062 * (L/2) * (R1 + R2 + R3)"]
["L  -  é o comprimento das linhas de confrontação do(s) arruamento(s) devidamente infraestruturado(s), no todo ou em parte, com os lotes cujas edificações estabeleçam serventias ou acessibilidades diretas para o(s) dito(s) arruamento(s), em metros;",null,null,null,null,null,null,null,{"$f":"IF(I69=\"\",\"\",I69)","v":""}]
[]
[]
["Determinação de R1, R2 e R3:"]
["No(s) arruamento(s) acima referido(s):",null,null,null,null,null,null,null," (colocar x)"]
["Existe rede pública de abastecimento de água",null,null,null,null,null,"R1 =",1]
["Não existe rede pública de abastecimento de água",null,null,null,null,null,"R1 =",0]
["Existe rede pública de drenagem de águas residuais",null,null,null,null,null,"R2 =",1.4]
["Não existe rede pública de drenagem de águas residuais",null,null,null,null,null,"R2 =",0]
["Existe rede pública de drenagem de águas pluviais",null,null,null,null,null,"R3 =",1.8]
["Não existe rede pública de drenagem de águas pluviais",null,null,null,null,null,"R3 =",0]
["F2 obtido",null,null,null,null,null,null,null,{"$f":"IFERROR(0.062*($I$69/2)*SUMIF($I$79:$I$84,\"x\",$H$79:$H$84),\" - \")","v":0}]
["O valor da compensação C2 a cobrar é de",null,null,null,null,null,null,null,{"$f":"IFERROR(ROUND($I$67*($I$72+$I$85),2),\" - \")","v":0}]
[null,null,null,null,null,null,null,null,null,null,null,null,null,null,null,null,null,null,null,null,null,null,null,null,null,null,null,"",{"$f":"IFERROR(IF(AB87>0,ROUND(AB87*#REF!,2),\" \"),\"\")","v":""},null,{"$f":"IFERROR(ROUND(AC87,2),\"\")","v":""},null,{"$f":"IF(AC87<>\" \",IF(AC87=AE87,\"\",\"XXXX\"),\"\")","v":""}]
[null,null,null,null,null,null,null,null,null,null,null,null,null,null,null,null,null,null,null,null,null,null,null,null,null,null,null,"",{"$f":"IFERROR(IF(AB88>0,ROUND(AB88*#REF!,2),\" \"),\"\")","v":""},null,{"$f":"IFERROR(ROUND(AC88,2),\"\")","v":""},null,{"$f":"IF(AC88<>\" \",IF(AC88=AE88,\"\",\"XXXX\"),\"\")","v":""}]
[null,null,null,null,null,null,null,null,null,null,null,null,null,null,null,null,null,null,null,null,null,null,null,null,null,null,null,"",{"$f":"IFERROR(IF(AB89>0,ROUND(AB89*#REF!,2),\" \"),\"\")","v":""},null,""]
[null,null,null,null,null,null,null,null,null,null,null,null,null,null,null,null,null,null,null,null,null,null,null,null,null,null,null,"",{"$f":"IFERROR(IF(AB90>0,ROUND(AB90*#REF!,2),\" \"),\"\")","v":""},null,""]
[null,null,null,null,null,null,null,null,null,null,null,null,null,null,null,null,null,null,null,null,null,null,null,null,null,null,null,"",{"$f":"IFERROR(IF(AB91>0,ROUND(AB91*#REF!,2),\" \"),\"\")","v":""},null,""]
[null,null,null,null,null,null,null,null,null,null,null,null,null,null,null,null,null,null,null,null,null,null,null,null,null,null,null,"",{"$f":"IFERROR(IF(AB92>0,ROUND(AB92*#REF!,2),\" \"),\"\")","v":""},null,""]
[null,null,null,null,null,null,null,null,null,null,null,null,null,null,null,null,null,null,null,null,null,null,null,null,null,null,null,"",{"$f":"IFERROR(IF(AB93>0,ROUND(AB93*#REF!,2),\" \"),\"\")","v":""},null,""]
[null,null,null,null,null,null,null,null,null,null,null,null,null,null,null,null,null,null,null,null,null,null,null,null,null,null,null,"",{"$f":"IFERROR(IF(AB94>0,ROUND(AB94*#REF!,2),\" \"),\"\")","v":""},null,""]
[null,null,null,null,null,null,null,null,null,null,null,null,null,null,null,null,null,null,null,null,null,null,null,null,null,null,null,"",{"$f":"IFERROR(IF(AB95>0,ROUND(AB95*#REF!,2),\" \"),\"\")","v":""},null,""]
[null,null,null,null,null,null,null,null,null,null,null,null,null,null,null,null,null,null,null,null,null,null,null,null,null,null,null,"",{"$f":"IFERROR(IF(AB96>0,ROUND(AB96*#REF!,2),\" \"),\"\")","v":""},null,""]
[null,null,null,null,null,null,null,null,null,null,null,null,null,null,null,null,null,null,null,null,null,null,null,null,null,null,null,"",{"$f":"IFERROR(IF(AB97>0,ROUND(AB97*#REF!,2),\" \"),\"\")","v":""},null,""]
[null,null,null,null,null,null,null,null,null,null,null,null,null,null,null,null,null,null,null,null,null,null,null,null,null,null,null,"",{"$f":"IFERROR(IF(AB98>0,ROUND(AB98*#REF!,2),\" \"),\"\")","v":""},null,""]
[null,null,null,null,null,null,null,null,null,null,null,null,null,null,null,null,null,null,null,null,null,null,null,null,null,null,null,"",{"$f":"IFERROR(IF(AB99>0,ROUND(AB99*#REF!,2),\" \"),\"\")","v":""},null,""]
[null,null,null,null,null,null,null,null,null,null,null,null,null,null,null,null,null,null,null,null,null,null,null,null,null,null,null,"",{"$f":"IFERROR(IF(AB100>0,ROUND(AB100*#REF!,2),\" \"),\"\")","v":""},null,""]
[null,null,null,null,null,null,null,null,null,null,null,null,null,null,null,null,null,null,null,null,null,null,null,null,null,null,null,"",{"$f":"IFERROR(IF(AB101>0,ROUND(AB101*#REF!,2),\" \"),\"\")","v":""},null,""]
[null,null,null,null,null,null,null,null,null,null,null,null,null,null,null,null,null,null,null,null,null,null,null,null,null,null,null,"",{"$f":"IFERROR(IF(AB102>0,ROUND(AB102*#REF!,2),\" \"),\"\")","v":""},null,""]
[null,null,null,null,null,null,null,null,null,null,null,null,null,null,null,null,null,null,null,null,null,null,null,null,null,null,null,"",{"$f":"IFERROR(IF(AB103>0,ROUND(AB103*#REF!,2),\" \"),\"\")","v":""},null,""]
[null,null,null,null,null,null,null,null,null,null,null,null,null,null,null,null,null,null,null,null,null,null,null,null,null,null,null,"",{"$f":"IFERROR(IF(AB104>0,ROUND(AB104*#REF!,2),\" \"),\"\")","v":""},null,""]
[null,null,null,null,null,null,null,null,null,null,null,null,null,null,null,null,null,null,null,null,null,null,null,null,null,null,null,"",{"$f":"IFERROR(IF(AB105>0,ROUND(AB105*#REF!,2),\" \"),\"\")","v":""},null,""]
[null,null,null,null,null,null,null,null,null,null,null,null,null,null,null,null,null,null,null,null,null,null,null,null,null,null,null,"",{"$f":"IFERROR(IF(AB106>0,ROUND(AB106*#REF!,2),\" \"),\"\")","v":""},null,""]
[null,null,null,null,null,null,null,null,null,null,null,null,null,null,null,null,null,null,null,null,null,null,null,null,null,null,null,"",{"$f":"IFERROR(IF(AB107>0,ROUND(AB107*#REF!,2),\" \"),\"\")","v":""},null,""]
[null,null,null,null,null,null,null,null,null,null,null,null,null,null,null,null,null,null,null,null,null,null,null,null,null,null,null,"",{"$f":"IFERROR(IF(AB108>0,ROUND(AB108*#REF!,2),\" \"),\"\")","v":""},null,""]
[null,null,null,null,null,null,null,null,null,null,null,null,null,null,null,null,null,null,null,null,null,null,null,null,null,null,null,"",{"$f":"IFERROR(IF(AB109>0,ROUND(AB109*#REF!,2),\" \"),\"\")","v":""},null,""]
[null,null,null,null,null,null,null,null,null,null,null,null,null,null,null,null,null,null,null,null,null,null,null,null,null,null,null,"",{"$f":"IFERROR(IF(AB110>0,ROUND(AB110*#REF!,2),\" \"),\"\")","v":""},null,""]
[null,null,null,null,null,null,null,null,null,null,null,null,null,null,null,null,null,null,null,null,null,null,null,null,null,null,null,"",{"$f":"IFERROR(IF(AB111>0,ROUND(AB111*#REF!,2),\" \"),\"\")","v":""},null,""]
[null,null,null,null,null,null,null,null,null,null,null,null,null,null,null,null,null,null,null,null,null,null,null,null,null,null,null,"",{"$f":"IFERROR(IF(AB112>0,ROUND(AB112*#REF!,2),\" \"),\"\")","v":""},null,""]
[null,null,null,null,null,null,null,null,null,null,null,null,null,null,null,null,null,null,null,null,null,null,null,null,null,null,null,"",{"$f":"IFERROR(IF(AB113>0,ROUND(AB113*#REF!,2),\" \"),\"\")","v":""},null,""]
[null,null,null,null,null,null,null,null,null,null,null,null,null,null,null,null,null,null,null,null,null,null,null,null,null,null,null,"",{"$f":"IFERROR(IF(AB114>0,ROUND(AB114*#REF!,2),\" \"),\"\")","v":""},null,""]
[null,null,null,null,null,null,null,null,null,null,null,null,null,null,null,null,null,null,null,null,null,null,null,null,null,null,null,"",{"$f":"IFERROR(IF(AB115>0,ROUND(AB115*#REF!,2),\" \"),\"\")","v":""},null,""]
[null,null,null,null,null,null,null,null,null,null,null,null,null,null,null,null,null,null,null,null,null,null,null,null,null,null,null,"",{"$f":"IFERROR(IF(AB116>0,ROUND(AB116*#REF!,2),\" \"),\"\")","v":""},null,""]
[null,null,null,null,null,null,null,null,null,null,null,null,null,null,null,null,null,null,null,null,null,null,null,null,null,null,null,"",{"$f":"IFERROR(IF(AB117>0,ROUND(AB117*#REF!,2),\" \"),\"\")","v":""},null,""]
[null,null,null,null,null,null,null,null,null,null,null,null,null,null,null,null,null,null,null,null,null,null,null,null,null,null,null,"",{"$f":"IFERROR(IF(AB118>0,ROUND(AB118*#REF!,2),\" \"),\"\")","v":""},null,""]
[null,null,null,null,null,null,null,null,null,null,null,null,null,null,null,null,null,null,null,null,null,null,null,null,null,null,null,"",{"$f":"IFERROR(IF(AB119>0,ROUND(AB119*#REF!,2),\" \"),\"\")","v":""},null,""]
[null,null,null,null,null,null,null,null,null,null,null,null,null,null,null,null,null,null,null,null,null,null,null,null,null,null,null,"",{"$f":"IFERROR(IF(AB120>0,ROUND(AB120*#REF!,2),\" \"),\"\")","v":""},null,""]
[null,null,null,null,null,null,null,null,null,null,null,null,null,null,null,null,null,null,null,null,null,null,null,null,null,null,null,"",{"$f":"IFERROR(IF(AB121>0,ROUND(AB121*#REF!,2),\" \"),\"\")","v":""},null,""]
[null,null,null,null,null,null,null,null,null,null,null,null,null,null,null,null,null,null,null,null,null,null,null,null,null,null,null,"",{"$f":"IFERROR(IF(AB122>0,ROUND(AB122*#REF!,2),\" \"),\"\")","v":""},null,""]
[null,null,null,null,null,null,null,null,null,null,null,null,null,null,null,null,null,null,null,null,null,null,null,null,null,null,null,"",{"$f":"IFERROR(IF(AB123>0,ROUND(AB123*#REF!,2),\" \"),\"\")","v":""},null,""]
[null,null,null,null,null,null,null,null,null,null,null,null,null,null,null,null,null,null,null,null,null,null,null,null,null,null,null,"",{"$f":"IFERROR(IF(AB124>0,ROUND(AB124*#REF!,2),\" \"),\"\")","v":""},null,""]
[null,null,null,null,null,null,null,null,null,null,null,null,null,null,null,null,null,null,null,null,null,null,null,null,null,null,null,"",{"$f":"IFERROR(IF(AA125>0,ROUND(AA125*#REF!,2),\" \"),\"\")","v":" "},null,""]
[null,null,null,null,null,null,null,null,null,null,null,null,null,null,null,null,null,null,null,null,null,null,null,null,null,null,null,"",{"$f":"IFERROR(IF(AA126>0,ROUND(AA126*#REF!,2),\" \"),\"\")","v":" "},null,""]
[null,null,null,null,null,null,null,null,null,null,null,null,null,null,null,null,null,null,null,null,null,null,null,null,null,null,null,"",{"$f":"IFERROR(IF(AA127>0,ROUND(AA127*#REF!,2),\" \"),\"\")","v":" "},null,""]
[null,null,null,null,null,null,null,null,null,null,null,null,null,null,null,null,null,null,null,null,null,null,null,null,null,null,null,"",{"$f":"IFERROR(IF(AA128>0,ROUND(AA128*#REF!,2),\" \"),\"\")","v":" "},null,""]
[null,null,null,null,null,null,null,null,null,null,null,null,null,null,null,null,null,null,null,null,null,null,null,null,null,null,null,"",{"$f":"IFERROR(IF(AA129>0,ROUND(AA129*#REF!,2),\" \"),\"\")","v":" "},null,""]
[null,null,null,null,null,null,null,null,null,null,null,null,null,null,null,null,null,null,null,null,null,null,null,null,null,null,null,"",{"$f":"IFERROR(IF(AA130>0,ROUND(AA130*#REF!,2),\" \"),\"\")","v":" "},null,""]
[null,null,null,null,null,null,null,null,null,null,null,null,null,null,null,null,null,null,null,null,null,null,null,null,null,null,null,"",{"$f":"IFERROR(IF(AA131>0,ROUND(AA131*#REF!,2),\" \"),\"\")","v":" "},null,""]
[null,null,null,null,null,null,null,null,null,null,null,null,null,null,null,null,null,null,null,null,null,null,null,null,null,null,null,"",{"$f":"IFERROR(IF(AA132>0,ROUND(AA132*#REF!,2),\" \"),\"\")","v":" "},null,""]
[null,null,null,null,null,null,null,null,null,null,null,null,null,null,null,null,null,null,null,null,null,null,null,null,null,null,null,"",{"$f":"IFERROR(IF(AA133>0,ROUND(AA133*#REF!,2),\" \"),\"\")","v":" "},null,""]
[null,null,null,null,null,null,null,null,null,null,null,null,null,null,null,null,null,null,null,null,null,null,null,null,null,null,null,"",{"$f":"IFERROR(IF(AA134>0,ROUND(AA134*#REF!,2),\" \"),\"\")","v":" "},null,""]
[null,null,null,null,null,null,null,null,null,null,null,null,null,null,null,null,null,null,null,null,null,null,null,null,null,null,null,null,{"$f":"IFERROR(IF(AA135>0,ROUND(AA135*#REF!,2),\" \"),\"\")","v":" "},null,""]
[null,null,null,null,null,null,null,null,null,null,null,null,null,null,null,null,null,null,null,null,null,null,null,null,null,null,null,null,{"$f":"IFERROR(IF(AA136>0,ROUND(AA136*#REF!,2),\" \"),\"\")","v":" "},null,""]
[null,null,null,null,null,null,null,null,null,null,null,null,null,null,null,null,null,null,null,null,null,null,null,null,null,null,null,null,{"$f":"IFERROR(IF(AA137>0,ROUND(AA137*#REF!,2),\" \"),\"\")","v":" "},null,""]
[null,null,null,null,null,null,null,null,null,null,null,null,null,null,null,null,null,null,null,null,null,null,null,null,null,null,null,null,{"$f":"IFERROR(IF(AA138>0,ROUND(AA138*#REF!,2),\" \"),\"\")","v":" "},null,""]
[null,null,null,null,null,null,null,null,null,null,null,null,null,null,null,null,null,null,null,null,null,null,null,null,null,null,null,null,{"$f":"IFERROR(IF(AA139>0,ROUND(AA139*#REF!,2),\" \"),\"\")","v":" "},null,""]
[null,null,null,null,null,null,null,null,null,null,null,null,null,null,null,null,null,null,null,null,null,null,null,null,null,null,null,null,{"$f":"IFERROR(IF(AA140>0,ROUND(AA140*#REF!,2),\" \"),\"\")","v":" "},null,""]
[null,null,null,null,null,null,null,null,null,null,null,null,null,null,null,null,null,null,null,null,null,null,null,null,null,null,null,null,{"$f":"IFERROR(IF(AA141>0,ROUND(AA141*#REF!,2),\" \"),\"\")","v":" "},null,""]
[null,null,null,null,null,null,null,null,null,null,null,null,null,null,null,null,null,null,null,null,null,null,null,null,null,null,null,null,{"$f":"IFERROR(IF(AA142>0,ROUND(AA142*#REF!,2),\" \"),\"\")","v":" "},null,""]
[null,null,null,null,null,null,null,null,null,null,null,null,null,null,null,null,null,null,null,null,null,null,null,null,null,null,null,null,{"$f":"IFERROR(IF(AA143>0,ROUND(AA143*#REF!,2),\" \"),\"\")","v":" "},null,""]
[null,null,null,null,null,null,null,null,null,null,null,null,null,null,null,null,null,null,null,null,null,null,null,null,null,null,null,null,{"$f":"IFERROR(IF(AA144>0,ROUND(AA144*#REF!,2),\" \"),\"\")","v":" "},null,""]
[null,null,null,null,null,null,null,null,null,null,null,null,null,null,null,null,null,null,null,null,null,null,null,null,null,null,null,null,{"$f":"IFERROR(IF(AA145>0,ROUND(AA145*#REF!,2),\" \"),\"\")","v":" "},null,""]
[null,null,null,null,null,null,null,null,null,null,null,null,null,null,null,null,null,null,null,null,null,null,null,null,null,null,null,null,{"$f":"IFERROR(IF(AA146>0,ROUND(AA146*#REF!,2),\" \"),\"\")","v":" "},null,""]
[null,null,null,null,null,null,null,null,null,null,null,null,null,null,null,null,null,null,null,null,null,null,null,null,null,null,null,null,{"$f":"IFERROR(IF(AA147>0,ROUND(AA147*#REF!,2),\" \"),\"\")","v":" "},null,""]
[null,null,null,null,null,null,null,null,null,null,null,null,null,null,null,null,null,null,null,null,null,null,null,null,null,null,null,null,{"$f":"IFERROR(IF(AA148>0,ROUND(AA148*#REF!,2),\" \"),\"\")","v":" "},null,""]
[null,null,null,null,null,null,null,null,null,null,null,null,null,null,null,null,null,null,null,null,null,null,null,null,null,null,null,null,{"$f":"IFERROR(IF(AA149>0,ROUND(AA149*#REF!,2),\" \"),\"\")","v":" "},null,""]
[null,null,null,null,null,null,null,null,null,null,null,null,null,null,null,null,null,null,null,null,null,null,null,null,null,null,null,null,{"$f":"IFERROR(IF(AA150>0,ROUND(AA150*#REF!,2),\" \"),\"\")","v":" "},null,{"$f":"IFERROR(ROUND(AC150,2),\"\")","v":""}]
[null,null,null,null,null,null,null,null,null,null,null,null,null,null,null,null,null,null,null,null,null,null,null,null,null,null,null,null,{"$f":"IFERROR(IF(AA151>0,ROUND(AA151*#REF!,2),\" \"),\"\")","v":" "},null,""]
[null,null,null,null,null,null,null,null,null,null,null,null,null,null,null,null,null,null,null,null,null,null,null,null,null,null,null,null,{"$f":"IFERROR(IF(AA152>0,ROUND(AA152*#REF!,2),\" \"),\"\")","v":" "},null,""]
[null,null,null,null,null,null,null,null,null,null,null,null,null,null,null,null,null,null,null,null,null,null,null,null,null,null,null,null,{"$f":"IFERROR(IF(AA153>0,ROUND(AA153*#REF!,2),\" \"),\"\")","v":" "},null,""]
[null,null,null,null,null,null,null,null,null,null,null,null,null,null,null,null,null,null,null,null,null,null,null,null,null,null,null,null,{"$f":"IFERROR(IF(AA154>0,ROUND(AA154*#REF!,2),\" \"),\"\")","v":" "},null,""]
[null,null,null,null,null,null,null,null,null,null,null,null,null,null,null,null,null,null,null,null,null,null,null,null,null,null,null,null,{"$f":"IFERROR(IF(AA155>0,AA155*#REF!,\" \"),\"\")","v":" "},null,""]
[null,null,null,null,null,null,null,null,null,null,null,null,null,null,null,null,null,null,null,null,null,null,null,null,null,null,null,null,{"$f":"IFERROR(IF(AA156>0,AA156*#REF!,\" \"),\"\")","v":" "},null,""]
[null,null,null,null,null,null,null,null,null,null,null,null,null,null,null,null,null,null,null,null,null,null,null,null,null,null,null,null,{"$f":"IFERROR(IF(AA157>0,AA157*#REF!,\" \"),\"\")","v":" "},null,""]
[null,null,null,null,null,null,null,null,null,null,null,null,null,null,null,null,null,null,null,null,null,null,null,null,null,null,null,null,{"$f":"IFERROR(IF(AA158>0,AA158*#REF!,\" \"),\"\")","v":" "},null,""]
[null,null,null,null,null,null,null,null,null,null,null,null,null,null,null,null,null,null,null,null,null,null,null,null,null,null,null,null,{"$f":"IFERROR(IF(AA159>0,AA159*#REF!,\" \"),\"\")","v":" "},null,""]
[null,null,null,null,null,null,null,null,null,null,null,null,null,null,null,null,null,null,null,null,null,null,null,null,null,null,null,null,{"$f":"IFERROR(IF(AA160>0,AA160*#REF!,\" \"),\"\")","v":" "},null,""]
[null,null,null,null,null,null,null,null,null,null,null,null,null,null,null,null,null,null,null,null,null,null,null,null,null,null,null,null,{"$f":"IFERROR(IF(AA161>0,AA161*#REF!,\" \"),\"\")","v":" "},null,""]
[null,null,null,null,null,null,null,null,null,null,null,null,null,null,null,null,null,null,null,null,null,null,null,null,null,null,null,null,{"$f":"IFERROR(IF(AA162>0,AA162*#REF!,\" \"),\"\")","v":" "},null,""]
[null,null,null,null,null,null,null,null,null,null,null,null,null,null,null,null,null,null,null,null,null,null,null,null,null,null,null,null,{"$f":"IFERROR(IF(AA163>0,AA163*#REF!,\" \"),\"\")","v":" "},null,""]
[null,null,null,null,null,null,null,null,null,null,null,null,null,null,null,null,null,null,null,null,null,null,null,null,null,null,null,null,{"$f":"IFERROR(IF(AA164>0,AA164*#REF!,\" \"),\"\")","v":" "},null,""]
[null,null,null,null,null,null,null,null,null,null,null,null,null,null,null,null,null,null,null,null,null,null,null,null,null,null,null,null,{"$f":"IFERROR(IF(AA165>0,AA165*#REF!,\" \"),\"\")","v":" "},null,""]
[null,null,null,null,null,null,null,null,null,null,null,null,null,null,null,null,null,null,null,null,null,null,null,null,null,null,null,null,{"$f":"IFERROR(IF(AA166>0,AA166*#REF!,\" \"),\"\")","v":" "},null,""]
[null,null,null,null,null,null,null,null,null,null,null,null,null,null,null,null,null,null,null,null,null,null,null,null,null,null,null,null,{"$f":"IFERROR(IF(AA167>0,AA167*#REF!,\" \"),\"\")","v":" "},null,""]
[null,null,null,null,null,null,null,null,null,null,null,null,null,null,null,null,null,null,null,null,null,null,null,null,null,null,null,null,{"$f":"IFERROR(IF(AA168>0,AA168*#REF!,\" \"),\"\")","v":" "},null,""]
[null,null,null,null,null,null,null,null,null,null,null,null,null,null,null,null,null,null,null,null,null,null,null,null,null,null,null,null,{"$f":"IFERROR(IF(AA169>0,AA169*#REF!,\" \"),\"\")","v":" "},null,""]
[null,null,null,null,null,null,null,null,null,null,null,null,null,null,null,null,null,null,null,null,null,null,null,null,null,null,null,null,null,null,0]
[null,null,null,null,null,null,null,null,null,null,null,null,null,null,null,null,null,null,null,null,null,null,null,null,null,null,null,null,null,null,0]
[null,null,null,null,null,null,null,null,null,null,null,null,null,null,null,null,null,null,null,null,null,null,null,null,null,null,null,null,null,null,0]
[null,null,null,null,null,null,null,null,null,null,null,null,null,null,null,null,null,null,null,null,null,null,null,null,null,null,null,null,null,null,0]
[null,null,null,null,null,null,null,null,null,null,null,null,null,null,null,null,null,null,null,null,null,null,null,null,null,null,null,null,null,null,0]
[null,null,null,null,null,null,null,null,null,null,null,null,null,null,null,null,null,null,null,null,null,null,null,null,null,null,null,null,null,null,0]
[null,null,null,null,null,null,null,null,null,null,null,null,null,null,null,null,null,null,null,null,null,null,null,null,null,null,null,null,null,null,0]
[null,null,null,null,null,null,null,null,null,null,null,null,null,null,null,null,null,null,null,null,null,null,null,null,null,null,null,null,null,null,0]
[null,null,null,null,null,null,null,null,null,null,null,null,null,null,null,null,null,null,null,null,null,null,null,null,null,null,null,null,null,null,0]
[null,null,null,null,null,null,null,null,null,null,null,null,null,null,null,null,null,null,null,null,null,null,null,null,null,null,null,null,null,null,0]
[null,null,null,null,null,null,null,null,null,null,null,null,null,null,null,null,null,null,null,null,null,null,null,null,null,null,null,null,null,null,0]
[null,null,null,null,null,null,null,null,null,null,null,null,null,null,null,null,null,null,null,null,null,null,null,null,null,null,null,null,null,null,0]
[null,null,null,null,null,null,null,null,null,null,null,null,null,null,null,null,null,null,null,null,null,null,null,null,null,null,null,null,null,null,0]
[null,null,null,null,null,null,null,null,null,null,null,null,null,null,null,null,null,null,null,null,null,null,null,null,null,null,null,null,null,null,0]
[null,null,null,null,null,null,null,null,null,null,null,null,null,null,null,null,null,null,null,null,null,null,null,null,null,null,null,null,null,null,0]
[null,null,null,null,null,null,null,null,null,null,null,null,null,null,null,null,null,null,null,null,null,null,null,null,null,null,null,null,null,null,0]
[null,null,null,null,null,null,null,null,null,null,null,null,null,null,null,null,null,null,null,null,null,null,null,null,null,null,null,null,null,null,0]
[null,null,null,null,null,null,null,null,null,null,null,null,null,null,null,null,null,null,null,null,null,null,null,null,null,null,null,null,null,null,0]
[null,null,null,null,null,null,null,null,null,null,null,null,null,null,null,null,null,null,null,null,null,null,null,null,null,null,null,null,null,null,0]
[null,null,null,null,null,null,null,null,null,null,null,null,null,null,null,null,null,null,null,null,null,null,null,null,null,null,null,null,null,null,0]
[null,null,null,null,null,null,null,null,null,null,null,null,null,null,null,null,null,null,null,null,null,null,null,null,null,null,null,null,null,null,0]
[null,null,null,null,null,null,null,null,null,null,null,null,null,null,null,null,null,null,null,null,null,null,null,null,null,null,null,null,null,null,0]
[null,null,null,null,null,null,null,null,null,null,null,null,null,null,null,null,null,null,null,null,null,null,null,null,null,null,null,null,null,null,0]
[null,null,null,null,null,null,null,null,null,null,null,null,null,null,null,null,null,null,null,null,null,null,null,null,null,null,null,null,null,null,0]
[null,null,null,null,null,null,null,null,null,null,null,null,null,null,null,null,null,null,null,null,null,null,null,null,null,null,null,null,null,null,0]
[null,null,null,null,null,null,null,null,null,null,null,null,null,null,null,null,null,null,null,null,null,null,null,null,null,null,null,null,null,null,0]
[null,null,null,null,null,null,null,null,null,null,null,null,null,null,null,null,null,null,null,null,null,null,null,null,null,null,null,null,null,null,0]
[null,null,null,null,null,null,null,null,null,null,null,null,null,null,null,null,null,null,null,null,null,null,null,null,null,null,null,null,null,null,0]
[null,null,null,null,null,null,null,null,null,null,null,null,null,null,null,null,null,null,null,null,null,null,null,null,null,null,null,null,null,null,0]
[null,null,null,null,null,null,null,null,null,null,null,null,null,null,null,null,null,null,null,null,null,null,null,null,null,null,null,null,null,null,0]
[null,null,null,null,null,null,null,null,null,null,null,null,null,null,null,null,null,null,null,null,null,null,null,null,null,null,null,null,null,null,0]
[null,null,null,null,null,null,null,null,null,null,null,null,null,null,null,null,null,null,null,null,null,null,null,null,null,null,null,null,null,null,0]
[null,null,null,null,null,null,null,null,null,null,null,null,null,null,null,null,null,null,null,null,null,null,null,null,null,null,null,null,null,null,0]
[null,null,null,null,null,null,null,null,null,null,null,null,null,null,null,null,null,null,null,null,null,null,null,null,null,null,null,null,null,null,0]
[null,null,null,null,null,null,null,null,null,null,null,null,null,null,null,null,null,null,null,null,null,null,null,null,null,null,null,null,null,null,0]
[null,null,null,null,null,null,null,null,null,null,null,null,null,null,null,null,null,null,null,null,null,null,null,null,null,null,null,null,null,null,0]
[null,null,null,null,null,null,null,null,null,null,null,null,null,null,null,null,null,null,null,null,null,null,null,null,null,null,null,null,null,null,0]
[null,null,null,null,null,null,null,null,null,null,null,null,null,null,null,null,null,null,null,null,null,null,null,null,null,null,null,null,null,null,0]
[null,null,null,null,null,null,null,null,null,null,null,null,null,null,null,null,null,null,null,null,null,null,null,null,null,null,null,null,null,null,0]
[null,null,null,null,null,null,null,null,null,null,null,null,null,null,null,null,null,null,null,null,null,null,null,null,null,null,null,null,null,null,0]
[null,null,null,null,null,null,null,null,null,null,null,null,null,null,null,null,null,null,null,null,null,null,null,null,null,null,null,null,null,null,0]
[null,null,null,null,null,null,null,null,null,null,null,null,null,null,null,null,null,null,null,null,null,null,null,null,null,null,null,null,null,null,0]
[null,null,null,null,null,null,null,null,null,null,null,null,null,null,null,null,null,null,null,null,null,null,null,null,null,null,null,null,null,null,0]
[null,null,null,null,null,null,null,null,null,null,null,null,null,null,null,null,null,null,null,null,null,null,null,null,null,null,null,null,null,null,0]
[null,null,null,null,null,null,null,null,null,null,null,null,null,null,null,null,null,null,null,null,null,null,null,null,null,null,null,null,null,null,{"$f":"IFERROR(ROUND(AC214,2),\"\")","v":0}]
[null,null,null,null,null,null,null,null,null,null,null,null,null,null,null,null,null,null,null,null,null,null,null,null,null,null,null,null,null,null,0]
[null,null,null,null,null,null,null,null,null,null,null,null,null,null,null,null,null,null,null,null,null,null,null,null,null,null,null,null,null,null,0]
[null,null,null,null,null,null,null,null,null,null,null,null,null,null,null,null,null,null,null,null,null,null,null,null,null,null,null,null,null,null,0]
[null,null,null,null,null,null,null,null,null,null,null,null,null,null,null,null,null,null,null,null,null,null,null,null,null,null,null,null,null,null,0]
[null,null,null,null,null,null,null,null,null,null,null,null,null,null,null,null,null,null,null,null,null,null,null,null,null,null,null,null,null,null,0]
[null,null,null,null,null,null,null,null,null,null,null,null,null,null,null,null,null,null,null,null,null,null,null,null,null,null,null,null,null,null,0]
[null,null,null,null,null,null,null,null,null,null,null,null,null,null,null,null,null,null,null,null,null,null,null,null,null,null,null,null,null,null,0]
[null,null,null,null,null,null,null,null,null,null,null,null,null,null,null,null,null,null,null,null,null,null,null,null,null,null,null,null,null,null,0]
[null,null,null,null,null,null,null,null,null,null,null,null,null,null,null,null,null,null,null,null,null,null,null,null,null,null,null,null,null,null,0]
[null,null,null,null,null,null,null,null,null,null,null,null,null,null,null,null,null,null,null,null,null,null,null,null,null,null,null,null,null,null,0]
[null,null,null,null,null,null,null,null,null,null,null,null,null,null,null,null,null,null,null,null,null,null,null,null,null,null,null,null,null,null,0]
[null,null,null,null,null,null,null,null,null,null,null,null,null,null,null,null,null,null,null,null,null,null,null,null,null,null,null,null,null,null,0]
[null,null,null,null,null,null,null,null,null,null,null,null,null,null,null,null,null,null,null,null,null,null,null,null,null,null,null,null,null,null,0]
[null,null,null,null,null,null,null,null,null,null,null,null,null,null,null,null,null,null,null,null,null,null,null,null,null,null,null,null,null,null,0]
[null,null,null,null,null,null,null,null,null,null,null,null,null,null,null,null,null,null,null,null,null,null,null,null,null,null,null,null,null,null,0]
[null,null,null,null,null,null,null,null,null,null,null,null,null,null,null,null,null,null,null,null,null,null,null,null,null,null,null,null,null,null,0]
[null,null,null,null,null,null,null,null,null,null,null,null,null,null,null,null,null,null,null,null,null,null,null,null,null,null,null,null,null,null,0]
[null,null,null,null,null,null,null,null,null,null,null,null,null,null,null,null,null,null,null,null,null,null,null,null,null,null,null,null,null,null,0]
[null,null,null,null,null,null,null,null,null,null,null,null,null,null,null,null,null,null,null,null,null,null,null,null,null,null,null,null,null,null,0]
[null,null,null,null,null,null,null,null,null,null,null,null,null,null,null,null,null,null,null,null,null,null,null,null,null,null,null,null,null,null,0]
[null,null,null,null,null,null,null,null,null,null,null,null,null,null,null,null,null,null,null,null,null,null,null,null,null,null,null,null,null,null,0]
[null,null,null,null,null,null,null,null,null,null,null,null,null,null,null,null,null,null,null,null,null,null,null,null,null,null,null,null,null,null,{"$f":"IF(AC236=\"\",\"\",ROUND(AC236,2))","v":""}]
[null,null,null,null,null,null,null,null,null,null,null,null,null,null,null,null,null,null,null,null,null,null,null,null,null,null,null,null,null,null,""]
[null,null,null,null,null,null,null,null,null,null,null,null,null,null,null,null,null,null,null,null,null,null,null,null,null,null,null,null,null,null,""]
[null,null,null,null,null,null,null,null,null,null,null,null,null,null,null,null,null,null,null,null,null,null,null,null,null,null,null,null,null,null,""]
[null,null,null,null,null,null,null,null,null,null,null,null,null,null,null,null,null,null,null,null,null,null,null,null,null,null,null,null,null,null,""]
[null,null,null,null,null,null,null,null,null,null,null,null,null,null,null,null,null,null,null,null,null,null,null,null,null,null,null,null,null,null,""]